{"text_format":"1","workbook":"xlsx","n_sheets":11,"sheets":["表紙","111支援計画","121支援対象者","122CO2排出量","131支援機関","132支援スケジュール","非表示_活動量と単位","非表示_産業分類","非表示_集計シート①","非表示_集計シート②","非表示_集計シート③"],"not_rendered":{"charts":0,"images":0,"macros":1,"external_links":0,"defined_names":111,"comments":6,"pivot_tables":0},"unopened":[],"bounds":{"document_bytes":16777216,"sheet_cells":100000,"rows_first":2000,"rows_last":500,"rows_between":2000,"halvings":0,"cell_chars":16384,"cell_head_chars":4096},"cells_cut":0,"cells_raw":0,"read":"whole","date_system":"1900"}

{"sheet":"表紙","index":0,"n_rows":60,"n_cols":80,"rows_kept":60,"cut":false,"hidden":false,"merged":[[20,11,22,26],[11,2,13,35],[15,2,17,35],[46,3,48,10],[49,3,51,10],[46,11,48,35],[49,11,51,35],[57,3,59,10],[57,11,59,35],[57,42,59,49],[57,50,59,74],[54,3,56,10],[54,11,56,35],[3,29,3,36],[49,42,51,49],[49,50,51,74],[54,42,56,49],[54,50,56,74],[11,41,13,74],[15,41,17,74],[20,50,22,65],[46,42,48,49],[46,50,48,74],[3,64,3,66]]}
[]
[]
[]
[null,null,null,null,null,null,null,null,null,null,null,null,null,null,null,null,null,null,null,null,null,null,null,null,null,null,null,null,null,"Ver. 3.1",null,null,null,null,null,null,null,null,null,null,"記入例及び注記",null,null,null,null,null,null,null,null,"セル色凡例",null,null,null,null,null,"直接入力",null,null,null,null,"選択",null,null,null,"自動計算",null,null,null,null,null,null,null,null,null,null,null,null,null,null,"セル色の表示／非表示"]
[null,null,null,null,null,null,null,null,null,null,null,null,null,null,null,null,null,null,null,null,null,null,null,null,null,null,null,null,null,null,null,null,null,null,null,null,null,null,null,null,"※","保護がかけられていないシートであっても、",null,null,null,null,null,null,null,null,null,null,null,null,null,null,null,null,null,null,null,null,null,null,null,null,null,null,null,null,null,null,null,null,null,null,null,null,null,false]
[null,null,null,null,null,null,null,null,null,null,null,null,null,null,null,null,null,null,null,null,null,null,null,null,null,null,null,null,null,null,null,null,null,null,null,null,null,null,null,null,null,"セルの結合や分割、行列の挿入や削除等は行わないようにしてください。"]
[]
[]
[]
[]
[]
[null,null,"環境省 SHIFT事業",null,null,null,null,null,null,null,null,null,null,null,null,null,null,null,null,null,null,null,null,null,null,null,null,null,null,null,null,null,null,null,null,null,null,null,null,null,null,"環境省 SHIFT事業"]
[]
[]
[]
[null,null,"CO2削減計画策定支援",null,null,null,null,null,null,null,null,null,null,null,null,null,null,null,null,null,null,null,null,null,null,null,null,null,null,null,null,null,null,null,null,null,null,null,null,null,null,"CO2削減計画策定支援"]
[]
[]
[]
[]
[null,null,null,null,null,null,null,null,null,null,null,"支援計画書",null,null,null,null,null,null,null,null,null,null,null,null,null,null,null,null,null,null,null,null,null,null,null,null,null,null,null,null,null,null,null,null,null,null,null,null,null,null,"支援計画書"]
[]
[]
[]
[]
[]
[]
[]
[]
[]
[]
[]
[]
[]
[]
[]
[]
[]
[]
[]
[]
[]
[]
[]
[]
[]
[null,null,null,"事業者",null,null,null,null,null,null,null,null,null,null,null,null,null,null,null,null,null,null,null,null,null,null,null,null,null,null,null,null,null,null,null,null,null,null,null,null,null,null,"事業者",null,null,null,null,null,null,null,"○○株式会社"]
[]
[]
[null,null,null,"工場・事業場",null,null,null,null,null,null,null,null,null,null,null,null,null,null,null,null,null,null,null,null,null,null,null,null,null,null,null,null,null,null,null,null,null,null,null,null,null,null,"工場・事業場",null,null,null,null,null,null,null,"○○工場"]
[]
[]
[]
[]
[null,null,null,"主支援機関",null,null,null,null,null,null,null,null,null,null,null,null,null,null,null,null,null,null,null,null,null,null,null,null,null,null,null,null,null,null,null,null,null,null,null,null,null,null,"主支援機関",null,null,null,null,null,null,null,"株式会社●●"]
[]
[]
[null,null,null,"副支援機関／共同支援機関",null,null,null,null,null,null,null,null,null,null,null,null,null,null,null,null,null,null,null,null,null,null,null,null,null,null,null,null,null,null,null,null,null,null,null,null,null,null,"副支援機関／共同支援機関",null,null,null,null,null,null,null,"なし",null,null,null,null,null,null,null,null,null,null,null,null,null,null,null,null,null,null,null,null,null,null,null,null,null,null,null,null,"副支援機関"]
[null,null,null,null,null,null,null,null,null,null,null,null,null,null,null,null,null,null,null,null,null,null,null,null,null,null,null,null,null,null,null,null,null,null,null,null,null,null,null,null,null,null,null,null,null,null,null,null,null,null,null,null,null,null,null,null,null,null,null,null,null,null,null,null,null,null,null,null,null,null,null,null,null,null,null,null,null,null,null,"共同支援機関"]
[null,null,null,null,null,null,null,null,null,null,null,null,null,null,null,null,null,null,null,null,null,null,null,null,null,null,null,null,null,null,null,null,null,null,null,null,null,null,null,null,null,null,null,null,null,null,null,null,null,null,null,null,null,null,null,null,null,null,null,null,null,null,null,null,null,null,null,null,null,null,null,null,null,null,null,null,null,null,null,"副支援機関／共同支援機関"]

{"sheet":"111支援計画","index":1,"n_rows":96,"n_cols":88,"rows_kept":96,"cut":false,"hidden":false,"merged":[[101,58,101,59],[17,3,18,36],[17,42,18,75],[38,8,38,36],[101,60,101,75],[73,58,73,59],[74,58,74,59],[75,58,75,59],[76,58,76,59],[77,58,77,59],[78,58,78,59],[79,58,79,59],[80,58,80,59],[81,58,81,59],[97,58,97,59],[98,58,98,59],[99,58,99,59],[100,58,100,59],[91,58,91,59],[92,58,92,59],[82,60,82,75],[83,60,83,75],[84,60,84,75],[85,60,85,75],[86,60,86,75],[87,60,87,75],[88,60,88,75],[89,60,89,75],[90,60,90,75],[102,60,102,75],[103,60,103,75],[91,60,91,75],[92,60,92,75],[93,60,93,75],[94,60,94,75],[96,60,96,75],[97,60,97,75],[98,60,98,75],[99,60,99,75],[100,60,100,75],[102,58,102,59],[103,58,103,59],[101,56,101,57],[102,56,102,57],[103,56,103,57],[75,60,75,75],[76,60,76,75],[77,60,77,75],[78,60,78,75],[79,60,79,75],[80,60,80,75],[81,60,81,75],[94,58,94,59],[96,58,96,59],[82,58,82,59],[83,58,83,59],[84,58,84,59],[85,58,85,59],[86,58,86,59],[87,58,87,59],[88,58,88,59],[89,58,89,59],[90,58,90,59],[100,56,100,57],[93,58,93,59],[90,56,90,57],[91,56,91,57],[92,56,92,57],[93,56,93,57],[94,56,94,57],[96,56,96,57],[97,56,97,57],[98,56,98,57],[99,56,99,57],[97,54,97,55],[98,54,98,55],[99,54,99,55],[100,54,100,55],[101,54,101,55],[102,54,102,55],[103,54,103,55],[73,56,73,57],[74,56,74,57],[75,56,75,57],[76,56,76,57],[77,56,77,57],[78,56,78,57],[79,56,79,57],[80,56,80,57],[81,56,81,57],[82,56,82,57],[83,56,83,57],[84,56,84,57],[85,56,85,57],[86,56,86,57],[87,56,87,57],[88,56,88,57],[89,56,89,57],[103,52,103,53],[73,54,73,55],[74,54,74,55],[75,54,75,55],[76,54,76,55],[77,54,77,55],[78,54,78,55],[79,54,79,55],[80,54,80,55],[81,54,81,55],[82,54,82,55],[83,54,83,55],[84,54,84,55],[85,54,85,55],[86,54,86,55],[87,54,87,55],[88,54,88,55],[89,54,89,55],[90,54,90,55],[91,54,91,55],[92,54,92,55],[93,54,93,55],[94,54,94,55],[96,54,96,55],[93,52,93,53],[94,52,94,53],[96,52,96,53],[97,52,97,53],[98,52,98,53],[99,52,99,53],[100,52,100,53],[101,52,101,53],[81,52,81,53],[82,52,82,53],[83,52,83,53],[102,52,102,53],[84,52,84,53],[85,52,85,53],[86,52,86,53],[87,52,87,53],[88,52,88,53],[89,52,89,53],[90,52,90,53],[91,52,91,53],[92,52,92,53],[99,11,99,12],[99,13,99,14],[99,15,99,16],[99,17,99,18],[99,19,99,20],[99,21,99,36],[100,11,100,12],[100,13,100,14],[100,15,100,16],[100,17,100,18],[100,19,100,20],[100,21,100,36],[97,11,97,12],[97,13,97,14],[97,15,97,16],[97,17,97,18],[97,19,97,20],[97,21,97,36],[98,11,98,12],[98,13,98,14],[98,15,98,16],[98,17,98,18],[98,19,98,20],[98,21,98,36],[87,19,87,20],[92,19,92,20],[90,15,90,16],[91,15,91,16],[92,15,92,16],[87,15,87,16],[88,15,88,16],[93,15,93,16],[87,21,87,36],[88,19,88,20],[88,21,88,36],[89,19,89,20],[89,21,89,36],[90,19,90,20],[90,21,90,36],[91,19,91,20],[91,21,91,36],[92,17,92,18],[93,17,93,18],[89,15,89,16],[94,15,94,16],[71,17,71,18],[73,17,73,18],[74,17,74,18],[75,17,75,18],[76,17,76,18],[77,17,77,18],[78,17,78,18],[79,17,79,18],[80,17,80,18],[81,17,81,18],[82,17,82,18],[83,17,83,18],[84,17,84,18],[85,17,85,18],[86,17,86,18],[87,17,87,18],[88,17,88,18],[89,17,89,18],[90,17,90,18],[91,17,91,18],[94,17,94,18],[71,15,71,16],[96,41,96,49],[97,41,97,49],[96,50,96,51],[97,50,97,51],[93,41,93,49],[94,41,94,49],[93,50,93,51],[94,50,94,51],[87,11,87,12],[88,11,88,12],[89,11,89,12],[90,11,90,12],[91,11,91,12],[92,11,92,12],[93,11,93,12],[94,11,94,12],[87,13,87,14],[88,13,88,14],[89,13,89,14],[90,13,90,14],[91,13,91,14],[92,13,92,14],[93,13,93,14],[94,13,94,14],[102,41,102,49],[103,41,103,49],[102,50,102,51],[103,50,103,51],[100,41,100,49],[101,41,101,49],[100,50,100,51],[101,50,101,51],[98,41,98,49],[99,41,99,49],[98,50,98,51],[99,50,99,51],[91,41,91,49],[92,41,92,49],[91,50,91,51],[92,50,92,51],[89,41,89,49],[90,41,90,49],[89,50,89,51],[90,50,90,51],[87,41,87,49],[88,41,88,49],[87,50,87,51],[88,50,88,51],[85,41,85,49],[86,41,86,49],[85,50,85,51],[86,50,86,51],[83,41,83,49],[84,41,84,49],[83,50,83,51],[84,50,84,51],[81,41,81,49],[82,41,82,49],[81,50,81,51],[82,50,82,51],[74,52,74,53],[73,60,73,75],[74,60,74,75],[55,50,56,73],[57,50,58,73],[79,41,79,49],[80,41,80,49],[79,50,79,51],[80,50,80,51],[77,41,77,49],[78,41,78,49],[77,50,77,51],[78,50,78,51],[75,41,75,49],[76,41,76,49],[75,50,75,51],[76,50,76,51],[75,52,75,53],[76,52,76,53],[77,52,77,53],[78,52,78,53],[79,52,79,53],[80,52,80,53],[45,50,46,73],[47,50,48,73],[49,50,50,73],[51,50,52,73],[53,50,54,73],[55,40,56,49],[73,41,73,49],[74,41,74,49],[73,50,73,51],[74,50,74,51],[57,40,58,49],[68,40,69,75],[70,40,71,49],[62,41,62,42],[63,41,63,42],[64,41,64,42],[70,50,71,51],[70,52,71,53],[70,54,70,75],[71,54,71,55],[71,56,71,57],[71,58,71,59],[71,60,71,75],[73,52,73,53],[49,35,50,36],[55,35,56,36],[53,35,54,36],[51,35,52,36],[45,40,46,49],[47,40,48,49],[49,40,50,49],[51,40,52,49],[53,40,54,49],[74,2,74,10],[73,2,73,10],[73,11,73,12],[74,11,74,12],[73,21,73,36],[74,21,74,36],[68,1,69,36],[70,1,71,10],[57,1,58,10],[70,11,71,12],[70,15,70,36],[71,21,71,36],[70,13,71,14],[73,13,73,14],[74,13,74,14],[73,15,73,16],[74,15,74,16],[71,19,71,20],[73,19,73,20],[74,19,74,20],[57,11,58,34],[57,35,58,36],[76,2,76,10],[75,2,75,10],[75,11,75,12],[76,11,76,12],[75,21,75,36],[76,21,76,36],[78,2,78,10],[77,2,77,10],[77,11,77,12],[78,11,78,12],[77,21,77,36],[78,21,78,36],[75,13,75,14],[76,13,76,14],[77,13,77,14],[78,13,78,14],[75,15,75,16],[76,15,76,16],[77,15,77,16],[78,15,78,16],[75,19,75,20],[76,19,76,20],[77,19,77,20],[78,19,78,20],[80,2,80,10],[79,2,79,10],[79,11,79,12],[80,11,80,12],[79,21,79,36],[80,21,80,36],[82,2,82,10],[81,2,81,10],[81,11,81,12],[82,11,82,12],[81,21,81,36],[82,21,82,36],[79,13,79,14],[80,13,80,14],[81,13,81,14],[82,13,82,14],[79,15,79,16],[80,15,80,16],[81,15,81,16],[82,15,82,16],[79,19,79,20],[80,19,80,20],[81,19,81,20],[82,19,82,20],[84,2,84,10],[83,2,83,10],[83,11,83,12],[84,11,84,12],[83,21,83,36],[84,21,84,36],[86,2,86,10],[85,2,85,10],[85,11,85,12],[86,11,86,12],[85,21,85,36],[86,21,86,36],[83,13,83,14],[84,13,84,14],[85,13,85,14],[86,13,86,14],[83,15,83,16],[84,15,84,16],[85,15,85,16],[86,15,86,16],[83,19,83,20],[84,19,84,20],[85,19,85,20],[86,19,86,20],[90,2,90,10],[91,2,91,10],[87,2,87,10],[89,2,89,10],[92,2,92,10],[100,2,100,10],[92,21,92,36],[93,19,93,20],[93,21,93,36],[94,19,94,20],[94,21,94,36],[96,11,96,12],[96,13,96,14],[96,15,96,16],[96,17,96,18],[96,19,96,20],[88,2,88,10],[99,2,99,10],[98,2,98,10],[97,2,97,10],[94,2,94,10],[93,2,93,10],[96,2,96,10],[96,21,96,36],[102,2,102,10],[101,2,101,10],[103,2,103,10],[101,11,101,12],[101,13,101,14],[101,15,101,16],[101,17,101,18],[101,19,101,20],[101,21,101,36],[102,11,102,12],[102,13,102,14],[102,15,102,16],[102,17,102,18],[102,19,102,20],[102,21,102,36],[103,11,103,12],[103,13,103,14],[103,15,103,16],[103,17,103,18],[103,19,103,20],[103,21,103,36],[3,64,3,66],[41,1,42,36],[25,1,30,36],[31,8,31,14],[3,1,3,9],[3,10,3,21],[4,1,4,21],[8,1,9,36],[8,40,9,75],[25,40,30,75],[41,40,42,75],[33,1,36,7],[37,1,37,7],[31,1,31,7],[37,40,37,46],[38,40,38,46],[31,47,31,50],[34,48,36,75],[34,47,36,47],[33,40,36,46],[32,40,32,46],[32,1,32,7],[32,8,32,36],[34,8,36,8],[45,74,46,75],[47,74,48,75],[49,74,50,75],[51,74,52,75],[53,74,54,75],[55,74,56,75],[57,74,58,75],[34,9,36,36],[31,40,31,46],[32,47,32,75],[47,1,48,10],[45,1,46,10],[49,1,50,10],[51,1,52,10],[55,1,56,10],[53,1,54,10],[45,35,46,36],[45,11,46,34],[47,11,48,34],[49,11,50,34],[51,11,52,34],[53,11,54,34],[55,11,56,34],[47,35,48,36]]}
[]
[]
[]
[null,"1．支援計画書",null,null,null,null,null,null,null,null,"11．支援計画",null,null,null,null,null,null,null,null,null,null,null,null,null,null,null,null,null,null,null,null,null,null,null,null,null,null,null,null,null,"記入例及び注記",null,null,null,null,null,null,null,null,"セル色凡例",null,null,null,null,null,"直接入力",null,null,null,null,"選択",null,null,null,"自動計算",null,null,null,null,null,null,null,null,null,null,null,null,null,null,null,null,null,null,null,null,"セル色の表示／非表示"]
[null,"111．支援計画",null,null,null,null,null,null,null,null,null,null,null,null,null,null,null,null,null,null,null,null,null,null,null,null,null,null,null,null,null,null,null,null,null,null,null,null,null,null,null,null,null,null,null,null,null,null,null,null,null,null,null,null,null,null,null,null,null,null,null,null,null,null,null,null,null,null,null,null,null,null,null,null,null,null,null,null,null,null,null,null,null,null,null,false]
[]
[]
[null,"１．支援内容",null,null,null,null,null,null,null,null,null,null,null,null,null,null,null,null,null,null,null,null,null,null,null,null,null,null,null,null,null,null,null,null,null,null,null,null,null,null,"１．支援内容"]
[null,"　当支援機関は、環境省及び補助金執行団体が示す様式・マニュアル・ガイドライン等に従い、貴事業者からの要望及び支援対象工場・事業場の現状に基づいた支援を行います。",null,null,null,null,null,null,null,null,null,null,null,null,null,null,null,null,null,null,null,null,null,null,null,null,null,null,null,null,null,null,null,null,null,null,null,null,null,null,"　当支援機関は、環境省及び補助金執行団体が示す様式・マニュアル・ガイドライン等に従い、貴事業者からの要望及び支援対象工場・事業場の現状に基づいた支援を行います。"]
[]
[null,"　当支援機関は、貴事業者への支援内容に応じた成果物を作成します。",null,null,null,null,null,null,null,null,null,null,null,null,null,null,null,null,null,null,null,null,null,null,null,null,null,null,null,null,null,null,null,null,null,null,null,null,null,null,"　当支援機関は、貴事業者への支援内容に応じた成果物を作成します。"]
[null,null,"・","基準年度_算定報告書（環境省指定様式）",null,null,null,null,null,null,null,null,null,null,null,null,null,null,null,null,null,null,null,null,null,null,null,null,null,null,null,null,null,null,null,null,null,null,null,null,null,"・","基準年度_算定報告書（環境省指定様式）"]
[null,null,null,"工場・事業場のCO2排出源を特定し、3年度平均による基準年度CO2排出量等を算出する。",null,null,null,null,null,null,null,null,null,null,null,null,null,null,null,null,null,null,null,null,null,null,null,null,null,null,null,null,null,null,null,null,null,null,null,null,null,null,"工場・事業場のCO2排出源を特定し、3年度平均による基準年度CO2排出量等を算出する。"]
[null,null,"・","診断報告書（環境省指定様式）",null,null,null,null,null,null,null,null,null,null,null,null,null,null,null,null,null,null,null,null,null,null,null,null,null,null,null,null,null,null,null,null,null,null,null,null,null,"・","診断報告書（環境省指定様式）"]
[null,null,null,"エネルギー管理・CO2削減への取組の現状を把握し、脱炭素化に向けた課題を抽出する。",null,null,null,null,null,null,null,null,null,null,null,null,null,null,null,null,null,null,null,null,null,null,null,null,null,null,null,null,null,null,null,null,null,null,null,null,null,null,"エネルギー管理・CO2削減への取組の現状を把握し、脱炭素化に向けた課題を抽出する。"]
[null,null,null,"課題に対する改善策として、効果的なCO2削減対策を提案する。",null,null,null,null,null,null,null,null,null,null,null,null,null,null,null,null,null,null,null,null,null,null,null,null,null,null,null,null,null,null,null,null,null,null,null,null,null,null,"課題に対する改善策として、効果的なCO2削減対策を提案する。"]
[null,null,"・","実施計画書（環境省指定様式）",null,null,null,null,null,null,null,null,null,null,null,null,null,null,null,null,null,null,null,null,null,null,null,null,null,null,null,null,null,null,null,null,null,null,null,null,null,"・","実施計画書（環境省指定様式）"]
[null,null,null,"提案したCO2削減対策のうち、実施予定とされた対策による、短期または３～５年程度の中長期のCO2削減計画を作成する。",null,null,null,null,null,null,null,null,null,null,null,null,null,null,null,null,null,null,null,null,null,null,null,null,null,null,null,null,null,null,null,null,null,null,null,null,null,null,"提案したCO2削減対策のうち、実施予定とされた対策による、短期または３～５年程度の中長期のCO2削減計画を作成する。"]
[]
[]
[]
[null,"２．支援内容に関する要望",null,null,null,null,null,null,null,null,null,null,null,null,null,null,null,null,null,null,null,null,null,null,null,null,null,null,null,null,null,null,null,null,null,null,null,null,null,null,"２．支援内容に関する要望"]
[null,"　支援内容について貴事業者から示された要望のまとめです。",null,null,null,null,null,null,null,null,null,null,null,null,null,null,null,null,null,null,null,null,null,null,null,null,null,null,null,null,null,null,null,null,null,null,null,null,null,null,"　支援内容について貴事業者から示された要望のまとめです。"]
[]
[null,"【要望】",null,null,null,null,null,null,null,null,null,null,null,null,null,null,null,null,null,null,null,null,null,null,null,null,null,null,null,null,null,null,null,null,null,null,null,null,null,null,"【要望】"]
[null,null,null,null,null,null,null,null,null,null,null,null,null,null,null,null,null,null,null,null,null,null,null,null,null,null,null,null,null,null,null,null,null,null,null,null,null,null,null,null,"・運用改善対策等の少コスト対策を提案してほしい\n・設備導入対策は、投資回収年数が10年未満であることが望ましい\n・給湯設備の電化について対策提案してほしい\n・対策実施手順を丁寧に説明してほしい"]
[]
[]
[]
[]
[]
[null,"希望CO2削減率",null,null,null,null,null,null,null,null,null,null,null,null,null,"％","(工場・事業場全体の基準年度CO2排出量に対するCO2削減率)",null,null,null,null,null,null,null,null,null,null,null,null,null,null,null,null,null,null,null,null,null,null,null,"希望CO2削減率",null,null,null,null,null,null,15,null,null,null,"％","(工場・事業場全体の基準年度CO2排出量に対するCO2削減率)"]
[null,"設備更新支援への申請希望",null,null,null,null,null,null,"①申請希望あり（A/B事業）",null,null,null,null,null,null,null,null,null,null,null,null,null,null,null,null,null,null,null,null,null,null,null,null,null,null,null,null,null,null,null,"設備更新支援への申請希望",null,null,null,null,null,null,"申請希望あり（A/B事業）",null,null,null,null,null,null,null,null,null,null,null,null,null,null,null,null,null,null,null,null,null,null,null,null,null,null,null,null,null,null,null,null,null,null,null,null,null,"支援範囲"]
[null,"支援対象範囲",null,null,null,null,null,null,null,null,"工場・事業場全体",null,null,null,null,null,null,null,null,null,"システム（単一）",null,null,null,null,null,null,null,null,"システム（複数）",null,null,null,null,null,null,null,null,null,null,"支援対象範囲",null,null,null,null,null,null,"⦿",null,"工場・事業場全体",null,null,null,null,null,null,null,"〇",null,"システム（単一）",null,null,null,null,null,null,"〇",null,"システム（複数）",null,null,null,null,null,null,null,null,null,null,null,null,null,null,null,null,0]
[null,null,null,null,null,null,null,null,"備考",null,null,null,null,null,null,null,null,null,null,null,null,null,null,null,null,null,null,null,null,null,null,null,null,null,null,null,null,null,null,null,null,null,null,null,null,null,null,"備考"]
[]
[null,null,null,null,null,null,null,null,null,null,null,null,null,null,null,null,null,null,null,null,null,null,null,null,null,null,null,null,null,null,null,null,null,null,null,null,null,null,null,null,null,null,null,null,null,null,null,null,null,null,null,null,null,null,null,null,null,null,null,null,null,null,null,null,null,null,null,null,null,null,null,null,null,null,null,null,null,null,null,null,null,null,null,null,null,"DXシステム導入"]
[null,"DXシステム導入",null,null,null,null,null,null,null,null,"あり",null,null,null,null,null,"なし",null,null,null,null,null,null,null,null,null,null,null,null,null,null,null,null,null,null,null,null,null,null,null,"DXシステム導入",null,null,null,null,null,null,"⦿",null,"あり",null,null,null,"〇",null,"なし",null,null,null,null,null,null,null,null,null,null,null,null,null,null,null,null,null,null,null,null,null,null,null,null,null,null,null,null,null,2]
[null,"成果物",null,null,null,null,null,null,{"$f":"IF($I$33=\"\",\"\",VLOOKUP($I$33,$CH$40:$CJ$44,2,FALSE)&\"　\"&VLOOKUP($I$33,$CH$40:$CJ$44,3,FALSE))","v":"・算定報告書　・診断報告書　・実施計画書A/B"},null,null,null,null,null,null,null,null,null,null,null,null,null,null,null,null,null,null,null,null,null,null,null,null,null,null,null,null,null,null,null,"成果物",null,null,null,null,null,null,"・算定報告書　・診断報告書　・実施計画書 A/B",null,null,null,null,null,null,null,null,null,null,null,null,null,null,null,null,null,null,null,null,null,null,null,null,null,null,null,null,null,null,null,null,null,null,null,null,null,"機器導入支援への申請希望","算定報告書・診断報告書","実施計画書の種類"]
[null,null,null,null,null,null,null,null,null,null,null,null,null,null,null,null,null,null,null,null,null,null,null,null,null,null,null,null,null,null,null,null,null,null,null,null,null,null,null,null,null,null,null,null,null,null,null,null,null,null,null,null,null,null,null,null,null,null,null,null,null,null,null,null,null,null,null,null,null,null,null,null,null,null,null,null,null,null,null,null,null,null,null,null,null,"①申請希望あり（A/B事業）","・算定報告書　・診断報告書","・実施計画書A/B"]
[null,"３．支援方針",null,null,null,null,null,null,null,null,null,null,null,null,null,null,null,null,null,null,null,null,null,null,null,null,null,null,null,null,null,null,null,null,null,null,null,null,null,null,"３．支援方針",null,null,null,null,null,null,null,null,null,null,null,null,null,null,null,null,null,null,null,null,null,null,null,null,null,null,null,null,null,null,null,null,null,null,null,null,null,null,null,null,null,null,null,null,"②申請希望あり（C事業）","・算定報告書","・実施計画書C"]
[null,"　貴事業者からの要望を踏まえ、下記の方針に従い支援を行います。（現地調査、計測結果等により変更する場合があります。）",null,null,null,null,null,null,null,null,null,null,null,null,null,null,null,null,null,null,null,null,null,null,null,null,null,null,null,null,null,null,null,null,null,null,null,null,null,null,"　貴事業所からの要望を踏まえ、下記の方針に従い支援を行います。（現地調査、計測結果等により変更する場合があります。）",null,null,null,null,null,null,null,null,null,null,null,null,null,null,null,null,null,null,null,null,null,null,null,null,null,null,null,null,null,null,null,null,null,null,null,null,null,null,null,null,null,null,null,null,"③申請希望あり（事業未定）","・算定報告書　・診断報告書","・実施計画書A/B/C"]
[null,null,null,null,null,null,null,null,null,null,null,null,null,null,null,null,null,null,null,null,null,null,null,null,null,null,null,null,null,null,null,null,null,null,null,null,null,null,null,null,null,null,null,null,null,null,null,null,null,null,null,null,null,null,null,null,null,null,null,null,null,null,null,null,null,null,null,null,null,null,null,null,null,null,null,null,null,null,null,null,null,null,null,null,null,"④申請希望なし（実施計画書A/B 策定希望）","・算定報告書　・診断報告書","・実施計画書A/B"]
[null,null,null,null,null,null,null,null,null,null,null,null,null,null,null,null,null,null,null,null,null,null,null,null,null,null,null,null,null,null,null,null,null,null,null,null,null,null,null,null,null,null,null,null,null,null,null,null,null,null,null,null,null,null,null,null,null,null,null,null,null,null,null,null,null,null,null,null,null,null,null,null,null,null,null,null,null,null,null,null,null,null,null,null,null,"⑤申請希望なし（実施計画書C 策定希望）","・算定報告書","・実施計画書C"]
[null,"【要望に基づいた対策提案方針】",null,null,null,null,null,null,null,null,null,null,null,null,null,null,null,null,null,null,null,null,null,null,null,null,null,null,null,null,null,null,null,null,null,null,null,null,null,null,"【要望に基づいた対策提案方針】"]
[null,"対策提案の視点",null,null,null,null,null,null,null,null,null,"対策提案方針",null,null,null,null,null,null,null,null,null,null,null,null,null,null,null,null,null,null,null,null,null,null,null,"DX\n活用",null,null,null,null,"対策提案の視点",null,null,null,null,null,null,null,null,null,"対策提案方針",null,null,null,null,null,null,null,null,null,null,null,null,null,null,null,null,null,null,null,null,null,null,null,"DX\n活用"]
[null,null,null,null,null,null,null,null,null,null,null,null,null,null,null,null,null,null,null,null,null,null,null,null,null,null,null,null,null,null,null,null,null,null,null,null,null,null,null,null,null,null,null,null,null,null,null,null,null,null,null,null,null,null,null,null,null,null,null,null,null,null,null,null,null,null,null,null,null,null,null,null,null,null,null,null,null,null,null,null,null,null,null,null,null,"対策提案の視点"]
[null,null,null,null,null,null,null,null,null,null,null,null,null,null,null,null,null,null,null,null,null,null,null,null,null,null,null,null,null,null,null,null,null,null,null,null,null,null,null,null,"運用改善",null,null,null,null,null,null,null,null,null,"運用改善対策については、実施方法を具体的に提案します。\nDXシステムの計測結果を利用して空調と給湯の運用改善を提案します。",null,null,null,null,null,null,null,null,null,null,null,null,null,null,null,null,null,null,null,null,null,null,null,"○",null,null,null,null,null,null,null,null,null,null,"運用改善"]
[null,null,null,null,null,null,null,null,null,null,null,null,null,null,null,null,null,null,null,null,null,null,null,null,null,null,null,null,null,null,null,null,null,null,null,null,null,null,null,null,null,null,null,null,null,null,null,null,null,null,null,null,null,null,null,null,null,null,null,null,null,null,null,null,null,null,null,null,null,null,null,null,null,null,null,null,null,null,null,null,null,null,null,null,null,"部分更新・機能付加"]
[null,null,null,null,null,null,null,null,null,null,null,null,null,null,null,null,null,null,null,null,null,null,null,null,null,null,null,null,null,null,null,null,null,null,null,null,null,null,null,null,"部分更新・機能付加",null,null,null,null,null,null,null,null,null,"部分更新・機能付加対策は少コストのため対策を提案します。",null,null,null,null,null,null,null,null,null,null,null,null,null,null,null,null,null,null,null,null,null,null,null,null,null,null,null,null,null,null,null,null,null,null,"設備導入(高効率化)"]
[null,null,null,null,null,null,null,null,null,null,null,null,null,null,null,null,null,null,null,null,null,null,null,null,null,null,null,null,null,null,null,null,null,null,null,null,null,null,null,null,null,null,null,null,null,null,null,null,null,null,null,null,null,null,null,null,null,null,null,null,null,null,null,null,null,null,null,null,null,null,null,null,null,null,null,null,null,null,null,null,null,null,null,null,null,"脱炭素化\n(燃料低炭素化・電化)"]
[null,null,null,null,null,null,null,null,null,null,null,null,null,null,null,null,null,null,null,null,null,null,null,null,null,null,null,null,null,null,null,null,null,null,null,null,null,null,null,null,"設備導入(高効率化)",null,null,null,null,null,null,null,null,null,"投資回収年数に注意し、設備導入対策を提案します。",null,null,null,null,null,null,null,null,null,null,null,null,null,null,null,null,null,null,null,null,null,null,null,null,null,null,null,null,null,null,null,null,null,null,"脱炭素化\n(再生可能エネルギー利用)"]
[null,null,null,null,null,null,null,null,null,null,null,null,null,null,null,null,null,null,null,null,null,null,null,null,null,null,null,null,null,null,null,null,null,null,null,null,null,null,null,null,null,null,null,null,null,null,null,null,null,null,null,null,null,null,null,null,null,null,null,null,null,null,null,null,null,null,null,null,null,null,null,null,null,null,null,null,null,null,null,null,null,null,null,null,null,"脱炭素化\n(低炭素系統電力への変更)"]
[null,null,null,null,null,null,null,null,null,null,null,null,null,null,null,null,null,null,null,null,null,null,null,null,null,null,null,null,null,null,null,null,null,null,null,null,null,null,null,null,"脱炭素化\n(燃料低炭素化・電化)",null,null,null,null,null,null,null,null,null,"給湯設備の電化対策を提案します。"]
[]
[]
[]
[]
[]
[]
[null,"【脱炭素化促進のための対策提案方針】",null,null,null,null,null,null,null,null,null,null,null,null,null,null,null,null,null,null,null,null,null,null,null,null,null,null,null,null,null,null,null,null,null,null,null,null,null,null,"【脱炭素化促進のための対策提案方針】"]
[null,null,"脱炭素化を促進する下記の対策を提案に含める予定です。",null,null,null,null,null,null,null,null,null,null,null,null,null,null,null,null,null,null,null,null,null,null,null,null,null,null,null,null,null,null,null,null,null,null,null,null,null,null,"脱炭素化を促進する下記の対策を提案に含める予定です。",null,null,null,null,null,null,null,null,null,null,null,null,null,null,null,null,null,null,null,null,null,null,null,null,null,null,null,null,null,null,null,null,null,null,null,null,null,null,null,null,null,null,null,"脱炭素化促進提案"]
[null,null,null,null,"燃料低炭素化または電化",null,null,null,null,null,null,null,null,null,null,null,null,null,null,null,null,null,null,null,null,null,null,null,null,null,null,null,null,null,null,null,null,null,null,null,null,"☑",null,"燃料低炭素化または電化",null,null,null,null,null,null,null,null,null,null,null,null,null,null,null,null,null,null,null,null,null,null,null,null,null,null,null,null,null,null,null,null,null,null,null,null,null,null,null,null,null,false,"燃料低炭素化または電化"]
[null,null,null,null,"再生可能エネルギー利用等の対策",null,null,null,null,null,null,null,null,null,null,null,null,null,null,null,null,null,null,null,null,null,null,null,null,null,null,null,null,null,null,null,null,null,null,null,null,"□",null,"再生可能エネルギー利用等の対策",null,null,null,null,null,null,null,null,null,null,null,null,null,null,null,null,null,null,null,null,null,null,null,null,null,null,null,null,null,null,null,null,null,null,null,null,null,null,null,null,null,false,"再生可能エネルギー利用等の対策"]
[null,null,null,null,"低炭素系統電力への変更（排出係数：0.00025t-CO2/kWh未満・固定値）",null,null,null,null,null,null,null,null,null,null,null,null,null,null,null,null,null,null,null,null,null,null,null,null,null,null,null,null,null,null,null,null,null,null,null,null,"☑",null,"低炭素系統電力への変更（排出係数：0.00025t-CO2/kWh未満・固定値）",null,null,null,null,null,null,null,null,null,null,null,null,null,null,null,null,null,null,null,null,null,null,null,null,null,null,null,null,null,null,null,null,null,null,null,null,null,null,null,null,null,false,"低炭素電力（排出係数：0.00037t-CO2/kWh未満・固定値）への変更"]
[]
[]
[null,"【対象システム・設備】",null,null,null,null,null,null,null,null,null,null,null,null,null,null,null,null,null,null,null,null,null,null,null,null,null,null,null,null,null,null,null,null,null,null,null,null,null,null,"【対象システム・設備】"]
[null,"　貴事業者からの要望を踏まえ、下表で示すシステム及び設備について診断、計測、対策提案を行います。（現地調査、計測結果等により変更する場合があります。）",null,null,null,null,null,null,null,null,null,null,null,null,null,null,null,null,null,null,null,null,null,null,null,null,null,null,null,null,null,null,null,null,null,null,null,null,null,null,"　貴事業者からの要望を踏まえ、下表で示すシステム及び設備について診断、計測、対策提案を行います。（現地調査、計測結果等により変更する場合があります。）"]
[]
[null,"対象システム・設備",null,null,null,null,null,null,null,null,null,"診断\n対象",null,"対象数",null,"実施項目",null,null,null,null,null,null,null,null,null,null,null,null,null,null,null,null,null,null,null,null,null,null,null,null,"対象システム・設備",null,null,null,null,null,null,null,null,null,"診断\n対象",null,"対象数",null,"実施項目"]
[null,null,null,null,null,null,null,null,null,null,null,null,null,null,null,"提案",null,"計測",null,"DX",null,"計測予定項目",null,null,null,null,null,null,null,null,null,null,null,null,null,null,null,null,null,null,null,null,null,null,null,null,null,null,null,null,null,null,null,null,"提案",null,"計測",null,"DX",null,"計測予定項目"]
[null,"ユーティリティ・一般設備",null,null,null,null,null,null,null,null,null,null,null,null,null,null,null,null,null,null,null,null,null,null,null,null,null,null,null,null,null,null,null,null,null,null,null,null,null,null,"ユーティリティ・一般設備"]
[null,null,"空調システム",null,null,null,null,null,null,null,null,null,null,null,null,null,null,null,null,null,null,null,null,null,null,null,null,null,null,null,null,null,null,null,null,null,null,null,null,null,null,"空調システム",null,null,null,null,null,null,null,null,"○",null,1,null,"○",null,"○",null,"○",null,"電力量(DX計測)、温度"]
[null,null,"蒸気システム",null,null,null,null,null,null,null,null,null,null,null,null,null,null,null,null,null,null,null,null,null,null,null,null,null,null,null,null,null,null,null,null,null,null,null,null,null,null,"蒸気システム"]
[null,null,"冷却水システム",null,null,null,null,null,null,null,null,null,null,null,null,null,null,null,null,null,null,null,null,null,null,null,null,null,null,null,null,null,null,null,null,null,null,null,null,null,null,"冷却水システム"]
[null,null,"圧空システム",null,null,null,null,null,null,null,null,null,null,null,null,null,null,null,null,null,null,null,null,null,null,null,null,null,null,null,null,null,null,null,null,null,null,null,null,null,null,"圧空システム"]
[null,null,"照明設備",null,null,null,null,null,null,null,null,null,null,null,null,null,null,null,null,null,null,null,null,null,null,null,null,null,null,null,null,null,null,null,null,null,null,null,null,null,null,"照明設備",null,null,null,null,null,null,null,null,"○",null,2000,null,"○",null,"○",null,null,null,"照度"]
[null,null,"受変電・配電設備",null,null,null,null,null,null,null,null,null,null,null,null,null,null,null,null,null,null,null,null,null,null,null,null,null,null,null,null,null,null,null,null,null,null,null,null,null,null,"受変電・配電設備"]
[null,null,"OA機器",null,null,null,null,null,null,null,null,null,null,null,null,null,null,null,null,null,null,null,null,null,null,null,null,null,null,null,null,null,null,null,null,null,null,null,null,null,null,"OA機器"]
[null,null,"電動機・ポンプ・ファン",null,null,null,null,null,null,null,null,null,null,null,null,null,null,null,null,null,null,null,null,null,null,null,null,null,null,null,null,null,null,null,null,null,null,null,null,null,null,"電動機・ポンプ・ファン"]
[null,null,"工業炉",null,null,null,null,null,null,null,null,null,null,null,null,null,null,null,null,null,null,null,null,null,null,null,null,null,null,null,null,null,null,null,null,null,null,null,null,null,null,"工業炉"]
[null,null,"冷凍・冷蔵設備",null,null,null,null,null,null,null,null,null,null,null,null,null,null,null,null,null,null,null,null,null,null,null,null,null,null,null,null,null,null,null,null,null,null,null,null,null,null,"冷凍・冷蔵設備"]
[null,null,"排水処理設備",null,null,null,null,null,null,null,null,null,null,null,null,null,null,null,null,null,null,null,null,null,null,null,null,null,null,null,null,null,null,null,null,null,null,null,null,null,null,"排水処理設備"]
[null,null,"昇降設備",null,null,null,null,null,null,null,null,null,null,null,null,null,null,null,null,null,null,null,null,null,null,null,null,null,null,null,null,null,null,null,null,null,null,null,null,null,null,"昇降設備"]
[null,null,"給湯・温水利用設備",null,null,null,null,null,null,null,null,null,null,null,null,null,null,null,null,null,null,null,null,null,null,null,null,null,null,null,null,null,null,null,null,null,null,null,null,null,null,"給湯・温水利用設備",null,null,null,null,null,null,null,null,"○",null,1,null,"○",null,"○",null,"○",null,"ガス使用量(DX計測)"]
[null,null,"発電設備",null,null,null,null,null,null,null,null,null,null,null,null,null,null,null,null,null,null,null,null,null,null,null,null,null,null,null,null,null,null,null,null,null,null,null,null,null,null,"発電設備"]
[null,null,"水利用設備",null,null,null,null,null,null,null,null,null,null,null,null,null,null,null,null,null,null,null,null,null,null,null,null,null,null,null,null,null,null,null,null,null,null,null,null,null,null,"水利用設備"]
[null,null,"エネルギー管理設備",null,null,null,null,null,null,null,null,null,null,null,null,null,null,null,null,null,null,null,null,null,null,null,null,null,null,null,null,null,null,null,null,null,null,null,null,null,null,"エネルギー管理設備"]
[]
[]
[]
[]
[]
[]
[null,"生産設備",null,null,null,null,null,null,null,null,null,null,null,null,null,null,null,null,null,null,null,null,null,null,null,null,null,null,null,null,null,null,null,null,null,null,null,null,null,null,"生産設備"]

{"sheet":"121支援対象者","index":2,"n_rows":49,"n_cols":83,"rows_kept":49,"cut":false,"hidden":false,"merged":[[46,41,46,47],[47,41,50,75],[42,41,42,42],[43,41,43,42],[44,41,44,42],[42,52,42,53],[43,52,43,53],[44,52,44,53],[32,41,33,48],[32,49,33,75],[34,41,35,44],[34,45,34,48],[34,49,34,56],[35,45,35,48],[35,49,35,56],[44,63,44,64],[30,41,31,44],[30,45,30,48],[30,49,30,75],[31,45,31,48],[31,49,31,75],[27,41,27,48],[27,49,27,75],[28,41,29,48],[28,50,28,56],[29,49,29,75],[24,45,24,48],[24,49,24,75],[25,40,25,75],[26,41,26,48],[26,49,26,75],[16,41,24,44],[16,45,16,48],[16,49,16,75],[17,45,18,48],[17,50,17,56],[18,49,18,75],[19,45,19,48],[19,49,19,75],[20,45,20,48],[20,49,20,75],[21,45,21,48],[21,49,21,75],[22,45,22,48],[22,49,22,75],[23,45,23,48],[23,49,23,75],[13,41,15,44],[13,45,13,48],[13,49,13,75],[14,45,14,48],[14,49,14,75],[15,45,15,48],[15,49,15,75],[8,40,8,75],[9,41,12,44],[9,45,9,48],[9,49,9,75],[10,45,10,48],[10,49,10,75],[11,45,12,48],[11,50,11,56],[12,49,12,75],[3,1,3,9],[3,10,3,21],[4,1,4,21],[8,1,8,36],[9,2,12,5],[9,6,9,9],[9,10,9,36],[10,6,10,9],[10,10,10,36],[11,6,12,9],[11,11,11,17],[12,10,12,36],[19,10,19,36],[24,6,24,9],[24,10,24,36],[25,1,25,36],[26,2,26,9],[26,10,26,36],[20,6,20,9],[20,10,20,36],[13,2,15,5],[13,6,13,9],[13,10,13,36],[14,6,14,9],[14,10,14,36],[15,6,15,9],[15,10,15,36],[47,2,50,36],[46,2,46,8],[32,2,33,9],[32,10,33,36],[34,2,35,5],[34,6,34,9],[34,10,34,17],[35,6,35,9],[35,10,35,17],[3,64,3,66],[28,2,29,9],[28,11,28,17],[29,10,29,36],[30,2,31,5],[30,6,30,9],[30,10,30,36],[31,6,31,9],[31,10,31,36],[27,2,27,9],[27,10,27,36],[21,6,21,9],[21,10,21,36],[22,6,22,9],[22,10,22,36],[23,6,23,9],[23,10,23,36],[16,2,24,5],[16,6,16,9],[16,10,16,36],[17,6,18,9],[17,11,17,17],[18,10,18,36],[19,6,19,9]]}
[]
[]
[]
[null,"1．支援計画書",null,null,null,null,null,null,null,null,"12．支援対象者",null,null,null,null,null,null,null,null,null,null,null,null,null,null,null,null,null,null,null,null,null,null,null,null,null,null,null,null,null,"記入例及び注記",null,null,null,null,null,null,null,null,"セル色凡例",null,null,null,null,null,"直接入力",null,null,null,null,"選択",null,null,null,"自動計算",null,null,null,null,null,null,null,null,null,null,null,null,null,null,"セル色の表示／非表示"]
[null,"121．支援対象者",null,null,null,null,null,null,null,null,null,null,null,null,null,null,null,null,null,null,null,null,null,null,null,null,null,null,null,null,null,null,null,null,null,null,null,null,null,null,"※","保護がかけられていないシートであっても、",null,null,null,null,null,null,null,null,null,null,null,null,null,null,null,null,null,null,null,null,null,null,null,null,null,null,null,null,null,null,null,null,null,null,null,null,null,false]
[null,null,null,null,null,null,null,null,null,null,null,null,null,null,null,null,null,null,null,null,null,null,null,null,null,null,null,null,null,null,null,null,null,null,null,null,null,null,null,null,null,"セルの結合や分割、行列の挿入や削除等は行わないようにしてください。"]
[]
[null,"１．支援対象事業者／工場・事業場",null,null,null,null,null,null,null,null,null,null,null,null,null,null,null,null,null,null,null,null,null,null,null,null,null,null,null,null,null,null,null,null,null,null,null,null,null,null,"１．支援対象事業者／工場・事業場"]
[null,"事業者",null,null,null,null,null,null,null,null,null,null,null,null,null,null,null,null,null,null,null,null,null,null,null,null,null,null,null,null,null,null,null,null,null,null,null,null,null,null,"事業者"]
[null,null,"法人",null,null,null,"法人番号",null,null,null,null,null,null,null,null,null,null,null,null,null,null,null,null,null,null,null,null,null,null,null,null,null,null,null,null,null,null,null,null,null,null,"法人",null,null,null,"法人番号"]
[null,null,null,null,null,null,"法人名",null,null,null,{"$f":"IF(表紙!L47=\"\",\"\",表紙!L47)","v":""},null,null,null,null,null,null,null,null,null,null,null,null,null,null,null,null,null,null,null,null,null,null,null,null,null,null,null,null,null,null,null,null,null,null,"法人名",null,null,null,"○○株式会社"]
[null,null,null,null,null,null,"所在地",null,null,null,"〒",null,null,null,null,null,null,null,null,null,null,null,null,null,null,null,null,null,null,null,null,null,null,null,null,null,null,null,null,null,null,null,null,null,null,"所在地",null,null,null,"〒"]
[]
[null,null,"事業実施責任者",null,null,null,"所属",null,null,null,null,null,null,null,null,null,null,null,null,null,null,null,null,null,null,null,null,null,null,null,null,null,null,null,null,null,null,null,null,null,null,"事業実施責任者",null,null,null,"所属"]
[null,null,null,null,null,null,"役職",null,null,null,null,null,null,null,null,null,null,null,null,null,null,null,null,null,null,null,null,null,null,null,null,null,null,null,null,null,null,null,null,null,null,null,null,null,null,"役職"]
[null,null,null,null,null,null,"氏名",null,null,null,null,null,null,null,null,null,null,null,null,null,null,null,null,null,null,null,null,null,null,null,null,null,null,null,null,null,null,null,null,null,null,null,null,null,null,"氏名"]
[null,null,"事務連絡",null,null,null,"法人名",null,null,null,null,null,null,null,null,null,null,null,null,null,null,null,null,null,null,null,null,null,null,null,null,null,null,null,null,null,null,null,null,null,null,"事務連絡",null,null,null,"法人名"]
[null,null,null,null,null,null,"所在地",null,null,null,"〒",null,null,null,null,null,null,null,null,null,null,null,null,null,null,null,null,null,null,null,null,null,null,null,null,null,null,null,null,null,null,null,null,null,null,"所在地",null,null,null,"〒"]
[]
[null,null,null,null,null,null,"所属",null,null,null,null,null,null,null,null,null,null,null,null,null,null,null,null,null,null,null,null,null,null,null,null,null,null,null,null,null,null,null,null,null,null,null,null,null,null,"所属"]
[null,null,null,null,null,null,"役職",null,null,null,null,null,null,null,null,null,null,null,null,null,null,null,null,null,null,null,null,null,null,null,null,null,null,null,null,null,null,null,null,null,null,null,null,null,null,"役職"]
[null,null,null,null,null,null,"氏名",null,null,null,null,null,null,null,null,null,null,null,null,null,null,null,null,null,null,null,null,null,null,null,null,null,null,null,null,null,null,null,null,null,null,null,null,null,null,"氏名"]
[null,null,null,null,null,null,"E-mail",null,null,null,null,null,null,null,null,null,null,null,null,null,null,null,null,null,null,null,null,null,null,null,null,null,null,null,null,null,null,null,null,null,null,null,null,null,null,"E-mail"]
[null,null,null,null,null,null,"電話番号",null,null,null,null,null,null,null,null,null,null,null,null,null,null,null,null,null,null,null,null,null,null,null,null,null,null,null,null,null,null,null,null,null,null,null,null,null,null,"電話番号"]
[null,null,null,null,null,null,"FAX番号",null,null,null,null,null,null,null,null,null,null,null,null,null,null,null,null,null,null,null,null,null,null,null,null,null,null,null,null,null,null,null,null,null,null,null,null,null,null,"FAX番号"]
[null,"工場・事業場",null,null,null,null,null,null,null,null,null,null,null,null,null,null,null,null,null,null,null,null,null,null,null,null,null,null,null,null,null,null,null,null,null,null,null,null,null,null,"工場・事業場"]
[null,null,"法人番号",null,null,null,null,null,null,null,null,null,null,null,null,null,null,null,null,null,null,null,null,null,null,null,null,null,null,null,null,null,null,null,null,null,null,null,null,null,null,"法人番号"]
[null,null,"工場・事業場名",null,null,null,null,null,null,null,{"$f":"IF(表紙!L50=\"\",\"\",表紙!L50)","v":""},null,null,null,null,null,null,null,null,null,null,null,null,null,null,null,null,null,null,null,null,null,null,null,null,null,null,null,null,null,null,"工場・事業場名",null,null,null,null,null,null,null,"○○工場"]
[null,null,"所在地",null,null,null,null,null,null,null,"〒",null,null,null,null,null,null,null,null,null,null,null,null,null,null,null,null,null,null,null,null,null,null,null,null,null,null,null,null,null,null,"所在地",null,null,null,null,null,null,null,"〒"]
[null,null,null,null,null,null,null,null,null,null,null,null,null,null,null,null,null,null,null,null,null,null,null,null,null,null,null,null,null,null,null,null,null,null,null,null,null,null,null,null,null,null,null,null,null,null,null,null,null,null,null,null,null,null,null,null,null,null,null,null,null,null,null,null,null,null,null,null,null,null,null,null,null,null,null,null,null,null,null,null,null,"中分類振り分け結果"]
[null,null,"業種※",null,null,null,"中分類",null,null,null,null,null,null,null,null,null,null,null,null,null,null,null,null,null,null,null,null,null,null,null,null,null,null,null,null,null,null,null,null,null,null,"業種※",null,null,null,"中分類",null,null,null,"09 食料品製造業",null,null,null,null,null,null,null,null,null,null,null,null,null,null,null,null,null,null,null,null,null,null,null,null,null,null,null,null,null,null,null,{"$f":"IF(K31=\"\",\"\",VLOOKUP(K31,中分類振り分け,2,FALSE))","v":""}]
[null,null,null,null,null,null,"小分類",null,null,null,null,null,null,null,null,null,null,null,null,null,null,null,null,null,null,null,null,null,null,null,null,null,null,null,null,null,null,null,null,null,null,null,null,null,null,"小分類",null,null,null,"094 調味料製造業"]
[null,null,"主な事業内容",null,null,null,null,null,null,null,null,null,null,null,null,null,null,null,null,null,null,null,null,null,null,null,null,null,null,null,null,null,null,null,null,null,null,null,null,null,null,"主な事業内容"]
[]
[null,null,"年間CO2\n排出量",null,null,null,"参考年度",null,null,null,{"$f":"IF('122CO2排出量'!I29=\"\",\"\",'122CO2排出量'!I29)","v":"令和4年度"},null,null,null,null,null,null,null,null,null,null,null,null,null,null,null,null,null,null,null,null,null,null,null,null,null,null,null,null,null,null,"年間CO2\n排出量",null,null,null,"参考年度",null,null,null,"令和4年度"]
[null,null,null,null,null,null,"CO2排出量",null,null,null,{"$f":"'122CO2排出量'!I30","v":0},null,null,null,null,null,null,null,"t-CO2/年",null,null,null,null,null,null,null,null,null,null,null,null,null,null,null,null,null,null,null,null,null,null,null,null,null,null,"CO2排出量",null,null,null,1590,null,null,null,null,null,null,null,"t-CO2/年"]
[]
[null,"※","日本産業分類（平成25年10月改定）に基づく",null,null,null,null,null,null,null,null,null,null,null,null,null,null,null,null,null,null,null,null,null,null,null,null,null,null,null,null,null,null,null,null,null,null,null,null,null,"※","日本産業分類（平成25年10月改定）に基づく"]
[]
[null,"２．環境指標への取組状況",null,null,null,null,null,null,null,null,null,null,null,null,null,null,null,null,null,null,null,null,null,null,null,null,null,null,null,null,null,null,null,null,null,null,null,null,null,null,"２．環境指標への取組状況"]
[null,"　貴事業者（支援対象工場・事業場を含む）が現在批准、宣言、取得している環境指標です。",null,null,null,null,null,null,null,null,null,null,null,null,null,null,null,null,null,null,null,null,null,null,null,null,null,null,null,null,null,null,null,null,null,null,null,null,null,null,"　貴事業者（支援対象工場・事業場を含む）が現在批准、宣言、取得している環境指標です。"]
[null,null,null,null,null,null,null,null,null,null,null,null,null,null,null,null,null,null,null,null,null,null,null,null,null,null,null,null,null,null,null,null,null,null,null,null,null,null,null,null,null,null,null,null,null,null,null,null,null,null,null,null,null,null,null,null,null,null,null,null,null,null,null,null,null,null,null,null,null,null,null,null,null,null,null,null,null,null,null,null,null,"環境指標"]
[null,null,null,null,"SBT／中小企業SBT",null,null,null,null,null,null,null,null,null,null,"TCFD（気候関連財務情報開示タスクフォース）",null,null,null,null,null,null,null,null,null,null,null,null,null,null,null,null,null,null,null,null,null,null,null,null,null,"□",null,"SBT／中小企業SBT",null,null,null,null,null,null,null,null,"□",null,"TCFD（気候関連財務情報開示タスクフォース）",null,null,null,null,null,null,null,null,null,null,null,null,null,null,null,null,null,null,null,null,null,null,null,null,null,null,false,"SBT／中小企業SBT"]
[null,null,null,null,"RE100",null,null,null,null,null,null,null,null,null,null,"RE Action",null,null,null,null,null,null,null,null,null,null,null,null,null,null,null,null,null,null,null,null,null,null,null,null,null,"☑",null,"RE100",null,null,null,null,null,null,null,null,"□",null,"RE Action",null,null,null,null,null,null,null,null,null,null,null,null,null,null,null,null,null,null,null,null,null,null,null,null,null,null,false,"TCFD（気候関連財務情報開示タスクフォース）"]
[null,null,null,null,"エコアクション２１",null,null,null,null,null,null,null,null,null,null,"ISO14001",null,null,null,null,null,null,null,null,null,null,"エコファースト",null,null,null,null,null,null,null,null,null,null,null,null,null,null,"☑",null,"エコアクション２１",null,null,null,null,null,null,null,null,"□",null,"ISO14001",null,null,null,null,null,null,null,null,"□",null,"エコファースト",null,null,null,null,null,null,null,null,null,null,null,null,null,null,null,false,"RE100"]
[null,null,null,null,null,null,null,null,null,null,null,null,null,null,null,null,null,null,null,null,null,null,null,null,null,null,null,null,null,null,null,null,null,null,null,null,null,null,null,null,null,null,null,null,null,null,null,null,null,null,null,null,null,null,null,null,null,null,null,null,null,null,null,null,null,null,null,null,null,null,null,null,null,null,null,null,null,null,null,null,null,false,"RE Action"]
[null,null,"備考",null,null,null,null,null,null,null,null,null,null,null,null,null,null,null,null,null,null,null,null,null,null,null,null,null,null,null,null,null,null,null,null,null,null,null,null,null,null,"備考",null,null,null,null,null,null,null,null,null,null,null,null,null,null,null,null,null,null,null,null,null,null,null,null,null,null,null,null,null,null,null,null,null,null,null,null,null,null,null,false,"エコアクション２１"]
[null,null,null,null,null,null,null,null,null,null,null,null,null,null,null,null,null,null,null,null,null,null,null,null,null,null,null,null,null,null,null,null,null,null,null,null,null,null,null,null,null,null,null,null,null,null,null,null,null,null,null,null,null,null,null,null,null,null,null,null,null,null,null,null,null,null,null,null,null,null,null,null,null,null,null,null,null,null,null,null,null,false,"ISO14001"]
[null,null,null,null,null,null,null,null,null,null,null,null,null,null,null,null,null,null,null,null,null,null,null,null,null,null,null,null,null,null,null,null,null,null,null,null,null,null,null,null,null,null,null,null,null,null,null,null,null,null,null,null,null,null,null,null,null,null,null,null,null,null,null,null,null,null,null,null,null,null,null,null,null,null,null,null,null,null,null,null,null,false,"エコファースト"]

{"sheet":"122CO2排出量","index":3,"n_rows":52,"n_cols":112,"rows_kept":52,"cut":false,"hidden":false,"merged":[[45,1,45,7],[45,8,45,12],[45,13,45,14],[45,16,45,18],[45,20,45,23],[45,24,45,27],[45,28,45,31],[45,51,45,57],[45,58,45,62],[28,8,28,12],[29,8,29,12],[43,28,43,31],[43,1,43,7],[43,8,43,12],[43,13,43,14],[43,16,43,18],[43,20,43,23],[37,28,37,31],[38,1,38,7],[38,28,38,31],[39,28,39,31],[39,1,39,7],[39,8,39,12],[39,13,39,14],[39,16,39,18],[37,1,37,7],[37,8,37,12],[37,13,37,14],[36,24,36,27],[36,28,36,31],[37,16,37,18],[37,24,37,27],[36,1,36,7],[44,24,44,27],[40,24,40,27],[38,8,38,12],[38,13,38,14],[38,16,38,18],[38,20,38,23],[38,24,38,27],[39,20,39,23],[39,24,39,27],[43,24,43,27],[41,24,41,27],[36,8,36,12],[36,13,36,14],[36,16,36,18],[36,20,36,23],[44,1,44,7],[44,8,44,12],[44,13,44,14],[44,16,44,18],[42,1,42,7],[42,8,42,12],[42,13,42,14],[42,16,42,18],[42,20,42,23],[37,20,37,23],[41,1,41,7],[41,8,41,12],[41,13,41,14],[41,16,41,18],[41,20,41,23],[40,1,40,7],[40,8,40,12],[40,13,40,14],[40,16,40,18],[44,20,44,23],[9,1,10,14],[16,20,16,28],[17,20,17,28],[18,20,18,28],[19,20,19,28],[20,20,20,28],[48,1,48,7],[48,8,48,12],[48,13,48,14],[48,16,48,18],[20,1,20,14],[34,1,34,7],[35,1,35,7],[33,28,33,31],[34,28,34,31],[35,28,35,31],[33,13,33,14],[48,24,48,27],[48,28,48,31],[46,1,46,7],[46,8,46,12],[46,20,46,23],[46,24,46,27],[46,28,46,31],[49,1,49,7],[50,1,50,7],[33,8,33,12],[34,8,34,12],[35,8,35,12],[49,8,49,12],[50,8,50,12],[34,24,34,27],[35,24,35,27],[49,24,49,27],[50,24,50,27],[34,16,34,18],[35,16,35,18],[49,16,49,18],[50,16,50,18],[34,13,34,14],[35,13,35,14],[49,13,49,14],[50,13,50,14],[47,1,47,7],[47,8,47,12],[47,13,47,14],[47,16,47,18],[47,20,47,23],[31,47,33,47],[31,33,32,44],[31,8,32,14],[31,15,32,18],[31,28,32,31],[49,28,49,31],[50,28,50,31],[34,20,34,23],[33,20,33,23],[35,20,35,23],[49,20,49,23],[50,20,50,23],[31,19,32,23],[48,20,48,23],[40,20,40,23],[46,13,46,14],[46,16,46,18],[47,24,47,27],[47,28,47,31],[40,28,40,31],[44,28,44,31],[41,28,41,31],[42,24,42,27],[42,28,42,31],[11,1,11,14],[3,1,3,9],[3,10,3,19],[4,1,4,19],[31,32,33,32],[31,45,33,45],[31,46,33,46],[33,16,33,18],[31,24,33,27],[31,1,33,7],[9,20,10,28],[11,20,11,28],[12,20,12,28],[13,20,13,28],[14,20,14,28],[15,20,15,28],[18,1,18,14],[19,1,19,14],[15,1,15,14],[16,1,16,14],[17,1,17,14],[12,1,12,14],[13,1,13,14],[14,1,14,14],[13,72,13,83],[14,51,14,64],[14,72,14,83],[15,51,15,64],[15,72,15,83],[9,51,10,64],[9,72,10,83],[11,51,11,64],[11,72,11,83],[12,51,12,64],[12,72,12,83],[13,51,13,64],[19,72,19,83],[20,51,20,64],[20,72,20,83],[28,51,28,64],[28,65,28,74],[29,51,29,64],[29,65,29,71],[16,51,16,64],[16,72,16,83],[17,51,17,64],[17,72,17,83],[18,51,18,64],[18,72,18,83],[31,51,33,57],[31,58,32,64],[31,65,32,70],[31,71,32,78],[31,79,33,82],[31,83,32,86],[31,87,33,87],[31,88,32,99],[31,100,33,100],[31,101,33,101],[31,102,33,102],[33,58,33,62],[33,63,33,64],[33,65,33,67],[33,68,33,70],[33,71,33,74],[33,75,33,78],[33,83,33,86],[34,51,34,57],[34,58,34,62],[34,63,34,64],[34,65,34,67],[34,68,34,70],[34,71,34,74],[34,75,34,78],[34,79,34,82],[34,83,34,86],[35,51,35,57],[35,58,35,62],[35,63,35,64],[35,65,35,67],[35,68,35,70],[35,71,35,74],[35,75,35,78],[35,79,35,82],[35,83,35,86],[37,58,37,62],[37,63,37,64],[37,65,37,67],[37,68,37,70],[37,71,37,74],[37,75,37,78],[37,79,37,82],[37,83,37,86],[36,51,36,57],[36,58,36,62],[36,63,36,64],[36,65,36,67],[36,68,36,70],[36,71,36,74],[36,75,36,78],[36,79,36,82],[36,83,36,86],[37,51,37,57],[39,79,39,82],[39,83,39,86],[38,51,38,57],[38,58,38,62],[38,63,38,64],[38,65,38,67],[38,68,38,70],[38,71,38,74],[38,75,38,78],[38,79,38,82],[38,83,38,86],[41,79,41,82],[41,83,41,86],[40,51,40,57],[40,58,40,62],[40,63,40,64],[40,65,40,67],[40,68,40,70],[40,71,40,74],[40,75,40,78],[40,79,40,82],[40,83,40,86],[43,79,43,82],[43,83,43,86],[42,51,42,57],[42,58,42,62],[42,63,42,64],[42,65,42,67],[42,68,42,70],[42,71,42,74],[42,75,42,78],[42,79,42,82],[42,83,42,86],[46,79,46,82],[46,83,46,86],[44,51,44,57],[44,58,44,62],[44,63,44,64],[44,65,44,67],[44,68,44,70],[44,71,44,74],[44,75,44,78],[44,79,44,82],[44,83,44,86],[45,79,45,82],[45,83,45,86],[45,63,45,64],[45,65,45,67],[45,68,45,70],[45,71,45,74],[45,75,45,78],[46,51,46,57],[46,58,46,62],[46,63,46,64],[46,65,46,67],[46,68,46,70],[46,71,46,74],[47,65,47,67],[47,68,47,70],[47,71,47,74],[47,75,47,78],[47,79,47,82],[47,83,47,86],[48,51,48,57],[48,58,48,62],[48,63,48,64],[48,65,48,67],[48,68,48,70],[48,71,48,74],[48,75,48,78],[48,79,48,82],[48,83,48,86],[47,51,47,57],[47,58,47,62],[47,63,47,64],[50,79,50,82],[50,83,50,86],[49,51,49,57],[49,58,49,62],[49,63,49,64],[49,65,49,67],[49,68,49,70],[49,71,49,74],[49,75,49,78],[49,79,49,82],[49,83,49,86],[50,51,50,57],[50,58,50,62],[50,63,50,64],[50,65,50,67],[50,68,50,70],[50,71,50,74],[50,75,50,78],[17,15,17,19],[46,75,46,78],[43,51,43,57],[29,28,29,31],[43,58,43,62],[43,63,43,64],[43,65,43,67],[43,68,43,70],[43,71,43,74],[43,75,43,78],[41,51,41,57],[41,58,41,62],[41,63,41,64],[41,65,41,67],[41,68,41,70],[41,71,41,74],[41,75,41,78],[39,51,39,57],[39,58,39,62],[39,63,39,64],[39,65,39,67],[39,68,39,70],[39,71,39,74],[39,75,39,78],[3,75,3,77],[29,23,29,27],[18,15,18,19],[19,15,19,19],[20,15,20,19],[9,65,10,71],[11,65,11,71],[12,65,12,71],[13,65,13,71],[14,65,14,71],[15,65,15,71],[16,65,16,71],[17,65,17,71],[18,65,18,71],[19,65,19,71],[20,65,20,71],[9,15,10,19],[11,15,11,19],[12,15,12,19],[13,15,13,19],[14,15,14,19],[15,15,15,19],[16,15,16,19],[19,51,19,64]]}
[]
[]
[]
[null,"1．支援計画書",null,null,null,null,null,null,null,null,"12．支援対象者",null,null,null,null,null,null,null,null,null,null,null,null,null,null,null,null,null,null,null,null,null,null,null,null,null,null,null,null,null,null,null,null,null,null,null,null,null,null,null,null,"記入例及び注記",null,null,null,null,null,null,null,null,"セル色凡例",null,null,null,null,null,"直接入力",null,null,null,null,"選択",null,null,null,"自動計算",null,null,null,null,"※保護がかかっているシートでも、注記（テキストボックス及びセルのメモ）の移動は可能です",null,null,null,null,null,null,null,null,null,null,null,null,null,null,null,null,null,null,null,null,null,null,null,null,null,null,null,"セル色の表示／非表示"]
[null,"122．CO2排出量",null,null,null,null,null,null,null,null,null,null,null,null,null,null,null,null,null,null,null,null,null,null,null,null,null,null,null,null,null,null,null,null,null,null,null,null,null,null,null,null,null,null,null,null,null,null,null,null,null,null,null,null,null,null,null,null,null,null,null,null,null,null,null,null,null,null,null,null,null,null,null,null,null,null,null,null,null,null,null,null,null,null,null,null,null,null,null,null,null,null,null,null,null,null,null,null,null,null,null,null,null,null,null,null,null,null,false]
[]
[null,"１．主要排出源",null,null,null,null,null,null,null,null,null,null,null,null,null,null,null,null,null,null,null,null,null,null,null,null,null,null,null,null,null,null,null,null,null,null,null,null,null,null,null,null,null,null,null,null,null,null,null,null,null,"１．主要排出源"]
[null,"支援対象工場・事業場における、エネルギー起源CO2の主要排出源と主な活動種別（燃料使用、他人から供給された電気及び熱の使用）です。",null,null,null,null,null,null,null,null,null,null,null,null,null,null,null,null,null,null,null,null,null,null,null,null,null,null,null,null,null,null,null,null,null,null,null,null,null,null,null,null,null,null,null,null,null,null,null,null,null,"貴事業所における、エネルギー起源CO2の主要排出源と主な活動種別（燃料使用、他人から供給された電気及び熱の使用）です。"]
[]
[null,"主要排出源",null,null,null,null,null,null,null,null,null,null,null,null,null,"主な活動種別",null,null,null,null,"備考",null,null,null,null,null,null,null,null,null,null,null,null,null,null,null,null,null,null,null,null,null,null,null,null,null,null,null,null,null,null,"主要排出源",null,null,null,null,null,null,null,null,null,null,null,null,null,"主な活動種別",null,null,null,null,null,null,"備考"]
[]
[null,null,null,null,null,null,null,null,null,null,null,null,null,null,null,null,null,null,null,null,null,null,null,null,null,null,null,null,null,null,null,null,null,null,null,null,null,null,null,null,null,null,null,null,null,null,null,null,null,null,null,"受電設備",null,null,null,null,null,null,null,null,null,null,null,null,null,"系統電力"]
[null,null,null,null,null,null,null,null,null,null,null,null,null,null,null,null,null,null,null,null,null,null,null,null,null,null,null,null,null,null,null,null,null,null,null,null,null,null,null,null,null,null,null,null,null,null,null,null,null,null,null,"蒸気ボイラー",null,null,null,null,null,null,null,null,null,null,null,null,null,"A重油"]
[]
[]
[]
[]
[]
[]
[]
[]
[]
[]
[null,"２．CO2排出量",null,null,null,null,null,null,null,null,null,null,null,null,null,null,null,null,null,null,null,null,null,null,null,null,null,null,null,null,null,null,null,null,null,null,null,null,null,null,null,null,null,null,null,null,null,null,null,null,null,"２．CO2排出量"]
[null,"支援対象工場・事業場の参考年度におけるエネルギー起源CO2排出量を示す。",null,null,null,null,null,null,null,null,null,null,null,null,null,null,null,null,null,null,null,null,null,null,null,null,null,null,null,null,null,null,null,null,null,null,null,null,null,null,null,null,null,null,null,null,null,null,null,null,null,"貴事業所の参考年度におけるエネルギー起源CO2排出量を示す。"]
[null,"※","単位発熱量、CO2排出係数、活動量の算出方法は、SHIFT事業モニタリング報告ガイドラインによる。",null,null,null,null,null,null,null,null,null,null,null,null,null,null,null,null,null,null,null,null,null,null,null,null,null,null,null,null,null,null,null,null,null,null,null,null,null,null,null,null,null,null,null,null,null,null,null,null,"※","単位発熱量、CO2排出係数、活動量の算出方法は、SHIFT事業モニタリング報告ガイドラインによる。"]
[]
[]
[null,"参考年度",null,null,null,null,null,null,"令和4年度",null,null,null,null,null,null,null,null,null,null,null,null,null,null,null,null,null,null,null,null,null,null,null,null,null,null,null,null,null,null,null,null,null,null,null,null,null,null,null,null,null,null,"参考年度",null,null,null,null,null,null,null,null,null,null,null,null,null,"令和4年度"]
[null,"CO2排出量の合計",null,null,null,null,null,null,{"$f":"SUM(Y35:AB51)","v":0},null,null,null,null,"t-CO2/年",null,null,"(参考)エネルギー使用量の合計",null,null,null,null,null,null,{"$f":"IFERROR(DH52,\"---\")","v":0},null,null,null,null,"GJ換算値",null,null,null,null,null,null,null,null,null,null,null,null,null,null,null,null,null,null,null,null,null,null,"CO2排出量（エネルギー起源）の合計",null,null,null,null,null,null,null,null,null,null,null,null,null,1590,null,null,null,null,null,null,"tCO2/年"]
[]
[null,"活動種別",null,null,null,null,null,null,"活動量合計",null,null,null,null,null,null,"単位発熱量",null,null,null,"CO2排出係数",null,null,null,null,"CO2排出量\n[t-CO2]",null,null,null,"活動量",null,null,null,"年度開始\n時点の\n在庫量","月別の活動量（使用量・購買量）　",null,null,null,null,null,null,null,null,null,null,null,"年度終了\n時点の\n在庫量","製品中への注入量","備考",null,null,null,"活動種別",null,null,null,null,null,null,"活動量",null,null,null,null,null,null,"単位発熱量",null,null,null,null,null,"CO2排出係数",null,null,null,null,null,null,null,"CO2排出量\n[t-CO2]",null,null,null,"活動量",null,null,null,"年度開始\n時点の\n在庫量","月別の活動量（使用量・購買量）　※単位に気をつけてください",null,null,null,null,null,null,null,null,null,null,null,"年度終了\n時点の\n在庫量","製品中への注入量","備考"]
[]
[null,null,null,null,null,null,null,null,"量",null,null,null,null,"単位",null,"係数","単位",null,null,"係数","単位",null,null,null,null,null,null,null,"把握対象",null,null,null,null,"４月","５月","６月","７月","８月","９月","１０月","１１月","１２月","１月","２月","３月",null,null,null,null,null,null,null,null,null,null,null,null,null,"量",null,null,null,null,"単位",null,"係数",null,null,"単位",null,null,"係数",null,null,null,"単位",null,null,null,null,null,null,null,"把握対象",null,null,null,null,"４月","５月","６月","７月","８月","９月","１０月","１１月","１２月","１月","２月","３月",null,null,null,null,null,null,null,null,"活動種別","活動量","単位発熱量","GJ換算量"]
[{"$f":"VLOOKUP(B35,非表示_活動量と単位!$D$8:$E$72,2,FALSE)","v":{"$error":"#N/A"}},null,null,null,null,null,null,null,{"$f":"SUM(AH35:AS35)+(AG35-AT35)-AU35","v":0},null,null,null,null,{"$f":"IF($B35=\"\",\"\",VLOOKUP($B35,活動の種別と単位,4,FALSE))","v":""},null,null,{"$f":"IF($B35=\"\",\"\",VLOOKUP($B35,活動の種別と単位,5,FALSE))","v":""},null,null,null,{"$f":"IF($B35=\"\",\"\",VLOOKUP($B35,活動の種別と単位,6,FALSE))","v":""},null,null,null,{"$f":"IF($B35=\"\",\"\",IF($A35=0,I35*P35*T35,I35*T35))","v":""},null,null,null,{"$f":"IF($B35=\"\",\"\",VLOOKUP($B35,活動の種別と単位,3,FALSE))","v":""},null,null,null,null,null,null,null,null,null,null,null,null,null,null,null,null,null,null,null,null,null,null,"系統電力",null,null,null,null,null,null,120000,null,null,null,null,"kWh",null,null,null,null,"---",null,null,4.3600000000000003E-4,null,null,null,"t-CO2/kWh",null,null,null,0.55559999999999998,null,null,null,"使用量",null,null,null,null,10000,10000,10000,10000,10000,10000,10000,10000,10000,10000,10000,10000,null,null,null,null,null,null,null,null,{"$f":"IF(COUNTIF($B35,\"*系統電力*\"),\"*系統電力*\",IF(COUNTIF($B35,\"*産業用蒸気*\"),\"*産業用蒸気*\",IF(COUNTIF($B35,\"*温水*\"),\"*温水*\",IF(COUNTIF($B35,\"*冷水*\"),\"*冷水*\",IF(COUNTIF($B35,\"*蒸気（産業用以外）*\"),\"*蒸気（産業用以外）*\",$B35)))))","v":0},{"$f":"I35","v":0},{"$f":"IFERROR(VLOOKUP($DE35,電力等のGJ換算係数,2,FALSE),IF(VLOOKUP($DE35,排出係数と単価1,15,FALSE)=\"\",\"\",VLOOKUP($DE35,排出係数と単価1,15,FALSE)))","v":{"$error":"#N/A"}},{"$f":"IFERROR(DF35*DG35,\"---\")","v":"---"}]
[{"$f":"VLOOKUP(B36,非表示_活動量と単位!$D$8:$E$72,2,FALSE)","v":{"$error":"#N/A"}},null,null,null,null,null,null,null,0,null,null,null,null,"",null,null,"",null,null,null,"",null,null,null,{"$f":"IF($B36=\"\",\"\",IF($A36=0,I36*P36*T36,I36*T36))","v":""},null,null,null,"",null,null,null,null,null,null,null,null,null,null,null,null,null,null,null,null,null,null,null,null,null,null,"A重油",null,null,null,null,null,null,600,null,null,null,null,"kl",null,39.1,null,null,"GJ/kl",null,null,6.93E-2,null,null,null,"t-CO2/kl",null,null,null,1625.778,null,null,null,"消費量",null,null,null,100,50,50,50,50,50,50,50,50,50,50,50,50,100,null,null,null,null,null,null,null,{"$f":"IF(COUNTIF($B36,\"*系統電力*\"),\"*系統電力*\",IF(COUNTIF($B36,\"*産業用蒸気*\"),\"*産業用蒸気*\",IF(COUNTIF($B36,\"*温水*\"),\"*温水*\",IF(COUNTIF($B36,\"*冷水*\"),\"*冷水*\",IF(COUNTIF($B36,\"*蒸気（産業用以外）*\"),\"*蒸気（産業用以外）*\",$B36)))))","v":0},0,{"$error":"#N/A"},{"$f":"IFERROR(DF36*DG36,\"---\")","v":"---"}]
[{"$f":"VLOOKUP(B37,非表示_活動量と単位!$D$8:$E$72,2,FALSE)","v":{"$error":"#N/A"}},null,null,null,null,null,null,null,0,null,null,null,null,"",null,null,"",null,null,null,"",null,null,null,{"$f":"IF($B37=\"\",\"\",IF($A37=0,I37*P37*T37,I37*T37))","v":""},null,null,null,"",null,null,null,null,null,null,null,null,null,null,null,null,null,null,null,null,null,null,null,null,null,null,null,null,null,null,null,null,null,0,null,null,null,null,null,null,null,null,null,null,null,null,null,null,null,null,null,null,null,null,null,null,null,null,null,null,null,null,null,null,null,null,null,null,null,null,null,null,null,null,null,null,null,null,null,null,null,null,null,0,0,{"$error":"#N/A"},{"$f":"IFERROR(DF37*DG37,\"---\")","v":"---"}]
[{"$f":"VLOOKUP(B38,非表示_活動量と単位!$D$8:$E$72,2,FALSE)","v":{"$error":"#N/A"}},null,null,null,null,null,null,null,0,null,null,null,null,"",null,null,"",null,null,null,"",null,null,null,"",null,null,null,"",null,null,null,null,null,null,null,null,null,null,null,null,null,null,null,null,null,null,null,null,null,null,null,null,null,null,null,null,null,0,null,null,null,null,null,null,null,null,null,null,null,null,null,null,null,null,null,null,null,null,null,null,null,null,null,null,null,null,null,null,null,null,null,null,null,null,null,null,null,null,null,null,null,null,null,null,null,null,null,0,0,{"$error":"#N/A"},"---"]
[{"$f":"VLOOKUP(B39,非表示_活動量と単位!$D$8:$E$72,2,FALSE)","v":{"$error":"#N/A"}},null,null,null,null,null,null,null,0,null,null,null,null,"",null,null,"",null,null,null,"",null,null,null,"",null,null,null,"",null,null,null,null,null,null,null,null,null,null,null,null,null,null,null,null,null,null,null,null,null,null,null,null,null,null,null,null,null,0,null,null,null,null,"",null,null,null,null,"",null,null,null,null,null,null,null,null,null,null,null,null,null,null,null,null,null,null,null,null,null,null,null,null,null,null,null,null,null,null,null,null,null,null,null,null,null,null,null,0,0,{"$error":"#N/A"},"---"]
[{"$f":"VLOOKUP(B40,非表示_活動量と単位!$D$8:$E$72,2,FALSE)","v":{"$error":"#N/A"}},null,null,null,null,null,null,null,0,null,null,null,null,"",null,null,"",null,null,null,"",null,null,null,"",null,null,null,"",null,null,null,null,null,null,null,null,null,null,null,null,null,null,null,null,null,null,null,null,null,null,null,null,null,null,null,null,null,0,null,null,null,null,"",null,null,null,null,"",null,null,null,null,null,null,null,null,null,null,null,null,null,null,null,null,null,null,null,null,null,null,null,null,null,null,null,null,null,null,null,null,null,null,null,null,null,null,null,0,0,{"$error":"#N/A"},"---"]
[{"$f":"VLOOKUP(B41,非表示_活動量と単位!$D$8:$E$72,2,FALSE)","v":{"$error":"#N/A"}},null,null,null,null,null,null,null,0,null,null,null,null,"",null,null,"",null,null,null,"",null,null,null,"",null,null,null,"",null,null,null,null,null,null,null,null,null,null,null,null,null,null,null,null,null,null,null,null,null,null,null,null,null,null,null,null,null,0,null,null,null,null,"",null,null,null,null,"",null,null,null,null,null,null,null,null,null,null,null,null,null,null,null,null,null,null,null,null,null,null,null,null,null,null,null,null,null,null,null,null,null,null,null,null,null,null,null,0,0,{"$error":"#N/A"},"---"]
[{"$f":"VLOOKUP(B42,非表示_活動量と単位!$D$8:$E$72,2,FALSE)","v":{"$error":"#N/A"}},null,null,null,null,null,null,null,0,null,null,null,null,"",null,null,"",null,null,null,"",null,null,null,"",null,null,null,"",null,null,null,null,null,null,null,null,null,null,null,null,null,null,null,null,null,null,null,null,null,null,null,null,null,null,null,null,null,0,null,null,null,null,"",null,null,null,null,"",null,null,null,null,null,null,null,null,null,null,null,null,null,null,null,null,null,null,null,null,null,null,null,null,null,null,null,null,null,null,null,null,null,null,null,null,null,null,null,0,0,{"$error":"#N/A"},"---"]
[{"$f":"VLOOKUP(B43,非表示_活動量と単位!$D$8:$E$72,2,FALSE)","v":{"$error":"#N/A"}},null,null,null,null,null,null,null,0,null,null,null,null,"",null,null,"",null,null,null,"",null,null,null,"",null,null,null,"",null,null,null,null,null,null,null,null,null,null,null,null,null,null,null,null,null,null,null,null,null,null,null,null,null,null,null,null,null,0,null,null,null,null,"",null,null,null,null,"",null,null,null,null,null,null,null,null,null,null,null,null,null,null,null,null,null,null,null,null,null,null,null,null,null,null,null,null,null,null,null,null,null,null,null,null,null,null,null,0,0,{"$error":"#N/A"},"---"]
[{"$f":"VLOOKUP(B44,非表示_活動量と単位!$D$8:$E$72,2,FALSE)","v":{"$error":"#N/A"}},null,null,null,null,null,null,null,0,null,null,null,null,"",null,null,"",null,null,null,"",null,null,null,"",null,null,null,"",null,null,null,null,null,null,null,null,null,null,null,null,null,null,null,null,null,null,null,null,null,null,null,null,null,null,null,null,null,0,null,null,null,null,"",null,null,null,null,"",null,null,null,null,null,null,null,null,null,null,null,null,null,null,null,null,null,null,null,null,null,null,null,null,null,null,null,null,null,null,null,null,null,null,null,null,null,null,null,0,0,{"$error":"#N/A"},"---"]
[{"$f":"VLOOKUP(B45,非表示_活動量と単位!$D$8:$E$72,2,FALSE)","v":{"$error":"#N/A"}},null,null,null,null,null,null,null,0,null,null,null,null,"",null,null,"",null,null,null,"",null,null,null,"",null,null,null,"",null,null,null,null,null,null,null,null,null,null,null,null,null,null,null,null,null,null,null,null,null,null,null,null,null,null,null,null,null,0,null,null,null,null,"",null,null,null,null,"",null,null,null,null,null,null,null,null,null,null,null,null,null,null,null,null,null,null,null,null,null,null,null,null,null,null,null,null,null,null,null,null,null,null,null,null,null,null,null,0,0,{"$error":"#N/A"},"---"]
[{"$f":"VLOOKUP(B46,非表示_活動量と単位!$D$8:$E$72,2,FALSE)","v":{"$error":"#N/A"}},null,null,null,null,null,null,null,0,null,null,null,null,"",null,null,"",null,null,null,"",null,null,null,"",null,null,null,"",null,null,null,null,null,null,null,null,null,null,null,null,null,null,null,null,null,null,null,null,null,null,null,null,null,null,null,null,null,0,null,null,null,null,"",null,null,null,null,"",null,null,null,null,null,null,null,null,null,null,null,null,null,null,null,null,null,null,null,null,null,null,null,null,null,null,null,null,null,null,null,null,null,null,null,null,null,null,null,0,0,{"$error":"#N/A"},{"$f":"IFERROR(DF46*DG46,\"---\")","v":"---"}]
[{"$f":"VLOOKUP(B47,非表示_活動量と単位!$D$8:$E$72,2,FALSE)","v":{"$error":"#N/A"}},null,null,null,null,null,null,null,0,null,null,null,null,"",null,null,"",null,null,null,"",null,null,null,"",null,null,null,"",null,null,null,null,null,null,null,null,null,null,null,null,null,null,null,null,null,null,null,null,null,null,null,null,null,null,null,null,null,0,null,null,null,null,"",null,null,null,null,"",null,null,null,null,null,null,null,null,null,null,null,null,null,null,null,null,null,null,null,null,null,null,null,null,null,null,null,null,null,null,null,null,null,null,null,null,null,null,null,0,0,{"$error":"#N/A"},"---"]
[{"$f":"VLOOKUP(B48,非表示_活動量と単位!$D$8:$E$72,2,FALSE)","v":{"$error":"#N/A"}},null,null,null,null,null,null,null,0,null,null,null,null,"",null,null,"",null,null,null,"",null,null,null,"",null,null,null,"",null,null,null,null,null,null,null,null,null,null,null,null,null,null,null,null,null,null,null,null,null,null,null,null,null,null,null,null,null,0,null,null,null,null,"",null,null,null,null,"",null,null,null,null,null,null,null,null,null,null,null,null,null,null,null,null,null,null,null,null,null,null,null,null,null,null,null,null,null,null,null,null,null,null,null,null,null,null,null,0,0,{"$error":"#N/A"},"---"]
[{"$f":"IF($P49=\"\",1,0)","v":1},null,null,null,null,null,null,null,0,null,null,null,null,null,null,null,null,null,null,null,null,null,null,null,"",null,null,null,null,null,null,null,null,null,null,null,null,null,null,null,null,null,null,null,null,null,null,null,null,null,null,"ｘｘｘｘ",null,null,null,null,null,null,0,null,null,null,null,null,null,null,null,null,null,null,null,null,null,null,null,null,null,null,null,0,null,null,null,null,null,null,null,null,null,null,null,null,null,null,null,null,null,null,null,null,null,null,null,null,null,null,null,null,0,0,{"$error":"#N/A"},"---"]
[{"$f":"IF($P50=\"\",1,0)","v":1},null,null,null,null,null,null,null,0,null,null,null,null,null,null,null,null,null,null,null,null,null,null,null,"",null,null,null,null,null,null,null,null,null,null,null,null,null,null,null,null,null,null,null,null,null,null,null,null,null,null,null,null,null,null,null,null,null,0,null,null,null,null,null,null,null,null,null,null,null,null,null,null,null,null,null,null,null,null,0,null,null,null,null,null,null,null,null,null,null,null,null,null,null,null,null,null,null,null,null,null,null,null,null,null,null,null,null,0,0,{"$error":"#N/A"},"---"]
[{"$f":"IF($P51=\"\",1,0)","v":1},null,null,null,null,null,null,null,0,null,null,null,null,null,null,null,null,null,null,null,null,null,null,null,"",null,null,null,null,null,null,null,null,null,null,null,null,null,null,null,null,null,null,null,null,null,null,null,null,null,null,null,null,null,null,null,null,null,0,null,null,null,null,null,null,null,null,null,null,null,null,null,null,null,null,null,null,null,null,0,null,null,null,null,null,null,null,null,null,null,null,null,null,null,null,null,null,null,null,null,null,null,null,null,null,null,null,null,0,0,{"$error":"#N/A"},"---"]
[null,null,null,null,null,null,null,null,null,null,null,null,null,null,null,null,null,null,null,null,null,null,null,null,null,null,null,null,null,null,null,null,null,null,null,null,null,null,null,null,null,null,null,null,null,null,null,null,null,null,null,null,null,null,null,null,null,null,null,null,null,null,null,null,null,null,null,null,null,null,null,null,null,null,null,null,null,null,null,null,null,null,null,null,null,null,null,null,null,null,null,null,null,null,null,null,null,null,null,null,null,null,null,null,null,null,null,null,null,null,"合計",{"$f":"SUM(DH35:DH51)","v":0}]

{"sheet":"131支援機関","index":4,"n_rows":39,"n_cols":80,"rows_kept":39,"cut":false,"hidden":false,"merged":[[16,6,16,9],[16,10,16,36],[9,2,9,9],[9,10,9,36],[10,2,11,9],[10,11,10,17],[11,10,11,36],[3,1,3,9],[3,10,3,21],[4,1,4,21],[7,1,7,36],[8,2,8,9],[8,10,8,36],[22,6,22,9],[22,10,22,36],[24,2,24,9],[24,10,24,36],[17,6,17,9],[17,10,17,36],[18,2,22,5],[18,6,18,9],[18,10,18,36],[19,6,19,9],[19,10,19,36],[20,6,20,9],[20,10,20,36],[21,6,21,9],[12,2,17,5],[12,6,12,9],[12,10,12,36],[13,6,13,9],[13,10,13,36],[21,10,21,36],[14,6,14,9],[14,10,14,36],[15,6,15,9],[15,10,15,36],[29,6,29,9],[29,10,29,36],[30,6,30,9],[30,10,30,36],[31,6,31,9],[31,10,31,36],[32,6,32,9],[32,10,32,36],[33,6,33,9],[33,10,33,36],[7,40,7,75],[8,41,8,48],[8,49,8,75],[9,41,9,48],[9,49,9,75],[34,2,38,5],[34,6,34,9],[34,10,34,36],[35,6,35,9],[35,10,35,36],[36,6,36,9],[36,10,36,36],[37,6,37,9],[37,10,37,36],[38,6,38,9],[38,10,38,36],[25,2,25,9],[25,10,25,36],[26,2,27,9],[26,11,26,17],[27,10,27,36],[28,2,33,5],[28,6,28,9],[28,10,28,36],[10,41,11,48],[10,50,10,56],[11,49,11,75],[12,41,17,44],[12,45,12,48],[12,49,12,75],[13,45,13,48],[13,49,13,75],[14,45,14,48],[14,49,14,75],[15,45,15,48],[15,49,15,75],[16,45,16,48],[16,49,16,75],[17,45,17,48],[17,49,17,75],[18,41,22,44],[18,45,18,48],[18,49,18,75],[19,45,19,48],[19,49,19,75],[20,45,20,48],[20,49,20,75],[21,45,21,48],[21,49,21,75],[22,45,22,48],[22,49,22,75],[31,45,31,48],[31,49,31,75],[32,45,32,48],[32,49,32,75],[33,45,33,48],[33,49,33,75],[24,41,24,48],[24,49,24,75],[25,41,25,48],[25,49,25,75],[3,64,3,66],[23,1,23,10],[23,40,23,49],[34,41,38,44],[34,45,34,48],[34,49,34,75],[35,45,35,48],[35,49,35,75],[36,45,36,48],[36,49,36,75],[37,45,37,48],[37,49,37,75],[38,45,38,48],[38,49,38,75],[26,41,27,48],[26,50,26,56],[27,49,27,75],[28,41,33,44],[28,45,28,48],[28,49,28,75],[29,45,29,48],[29,49,29,75],[30,45,30,48],[30,49,30,75]]}
[]
[]
[]
[null,"1．支援計画書",null,null,null,null,null,null,null,null,"13．支援体制",null,null,null,null,null,null,null,null,null,null,null,null,null,null,null,null,null,null,null,null,null,null,null,null,null,null,null,null,null,"記入例及び注記",null,null,null,null,null,null,null,null,"セル色凡例",null,null,null,null,null,"直接入力",null,null,null,null,"選択",null,null,null,"自動計算",null,null,null,null,null,null,null,null,null,null,null,null,null,null,"セル色の表示／非表示"]
[null,"131．支援機関",null,null,null,null,null,null,null,null,null,null,null,null,null,null,null,null,null,null,null,null,null,null,null,null,null,null,null,null,null,null,null,null,null,null,null,null,null,null,"※","保護がかけられていないシートであっても、",null,null,null,null,null,null,null,null,null,null,null,null,null,null,null,null,null,null,null,null,null,null,null,null,null,null,null,null,null,null,null,null,null,null,null,null,null,false]
[null,null,null,null,null,null,null,null,null,null,null,null,null,null,null,null,null,null,null,null,null,null,null,null,null,null,null,null,null,null,null,null,null,null,null,null,null,null,null,null,null,"セルの結合や分割、行列の挿入や削除等は行わないようにしてください。"]
[]
[null,"主支援機関",null,null,null,null,null,null,null,null,null,null,null,null,null,null,null,null,null,null,null,null,null,null,null,null,null,null,null,null,null,null,null,null,null,null,null,null,null,null,"主支援機関"]
[null,null,"法人番号",null,null,null,null,null,null,null,null,null,null,null,null,null,null,null,null,null,null,null,null,null,null,null,null,null,null,null,null,null,null,null,null,null,null,null,null,null,null,"法人番号"]
[null,null,"法人名",null,null,null,null,null,null,null,{"$f":"IF(表紙!L55=\"\",\"\",表紙!L55)","v":""},null,null,null,null,null,null,null,null,null,null,null,null,null,null,null,null,null,null,null,null,null,null,null,null,null,null,null,null,null,null,"法人名",null,null,null,null,null,null,null,"株式会社●●"]
[null,null,"所在地",null,null,null,null,null,null,null,"〒",null,null,null,null,null,null,null,null,null,null,null,null,null,null,null,null,null,null,null,null,null,null,null,null,null,null,null,null,null,null,"所在地",null,null,null,null,null,null,null,"〒"]
[]
[null,null,"支援\n責任者",null,null,null,"氏名",null,null,null,null,null,null,null,null,null,null,null,null,null,null,null,null,null,null,null,null,null,null,null,null,null,null,null,null,null,null,null,null,null,null,"支援\n責任者",null,null,null,"氏名"]
[null,null,null,null,null,null,"資格",null,null,null,null,null,null,null,null,null,null,null,null,null,null,null,null,null,null,null,null,null,null,null,null,null,null,null,null,null,null,null,null,null,null,null,null,null,null,"資格"]
[null,null,null,null,null,null,"所属",null,null,null,null,null,null,null,null,null,null,null,null,null,null,null,null,null,null,null,null,null,null,null,null,null,null,null,null,null,null,null,null,null,null,null,null,null,null,"所属"]
[null,null,null,null,null,null,"E-mail",null,null,null,null,null,null,null,null,null,null,null,null,null,null,null,null,null,null,null,null,null,null,null,null,null,null,null,null,null,null,null,null,null,null,null,null,null,null,"E-mail"]
[null,null,null,null,null,null,"電話番号",null,null,null,null,null,null,null,null,null,null,null,null,null,null,null,null,null,null,null,null,null,null,null,null,null,null,null,null,null,null,null,null,null,null,null,null,null,null,"電話番号"]
[null,null,null,null,null,null,"FAX番号",null,null,null,null,null,null,null,null,null,null,null,null,null,null,null,null,null,null,null,null,null,null,null,null,null,null,null,null,null,null,null,null,null,null,null,null,null,null,"FAX番号"]
[null,null,"事務連絡",null,null,null,"氏名",null,null,null,null,null,null,null,null,null,null,null,null,null,null,null,null,null,null,null,null,null,null,null,null,null,null,null,null,null,null,null,null,null,null,"事務連絡",null,null,null,"氏名"]
[null,null,null,null,null,null,"所属",null,null,null,null,null,null,null,null,null,null,null,null,null,null,null,null,null,null,null,null,null,null,null,null,null,null,null,null,null,null,null,null,null,null,null,null,null,null,"所属"]
[null,null,null,null,null,null,"E-mail",null,null,null,null,null,null,null,null,null,null,null,null,null,null,null,null,null,null,null,null,null,null,null,null,null,null,null,null,null,null,null,null,null,null,null,null,null,null,"E-mail"]
[null,null,null,null,null,null,"電話番号",null,null,null,null,null,null,null,null,null,null,null,null,null,null,null,null,null,null,null,null,null,null,null,null,null,null,null,null,null,null,null,null,null,null,null,null,null,null,"電話番号"]
[null,null,null,null,null,null,"FAX番号",null,null,null,null,null,null,null,null,null,null,null,null,null,null,null,null,null,null,null,null,null,null,null,null,null,null,null,null,null,null,null,null,null,null,null,null,null,null,"FAX番号"]
[null,{"$f":"IF(表紙!D58=\"\",\"\",表紙!D58)","v":"副支援機関／共同支援機関"},null,null,null,null,null,null,null,null,null,null,null,null,null,null,null,null,null,null,null,null,null,null,null,null,null,null,null,null,null,null,null,null,null,null,null,null,null,null,"副支援機関／共同支援機関"]
[null,null,"法人番号",null,null,null,null,null,null,null,null,null,null,null,null,null,null,null,null,null,null,null,null,null,null,null,null,null,null,null,null,null,null,null,null,null,null,null,null,null,null,"法人番号"]
[null,null,"法人名",null,null,null,null,null,null,null,{"$f":"IF(表紙!L58=\"\",\"\",表紙!L58)","v":""},null,null,null,null,null,null,null,null,null,null,null,null,null,null,null,null,null,null,null,null,null,null,null,null,null,null,null,null,null,null,"法人名"]
[null,null,"所在地",null,null,null,null,null,null,null,"〒",null,null,null,null,null,null,null,null,null,null,null,null,null,null,null,null,null,null,null,null,null,null,null,null,null,null,null,null,null,null,"所在地",null,null,null,null,null,null,null,"〒"]
[]
[null,null,"支援\n責任者",null,null,null,"氏名",null,null,null,null,null,null,null,null,null,null,null,null,null,null,null,null,null,null,null,null,null,null,null,null,null,null,null,null,null,null,null,null,null,null,"支援\n責任者",null,null,null,"氏名"]
[null,null,null,null,null,null,"資格",null,null,null,null,null,null,null,null,null,null,null,null,null,null,null,null,null,null,null,null,null,null,null,null,null,null,null,null,null,null,null,null,null,null,null,null,null,null,"資格"]
[null,null,null,null,null,null,"所属",null,null,null,null,null,null,null,null,null,null,null,null,null,null,null,null,null,null,null,null,null,null,null,null,null,null,null,null,null,null,null,null,null,null,null,null,null,null,"所属"]
[null,null,null,null,null,null,"E-mail",null,null,null,null,null,null,null,null,null,null,null,null,null,null,null,null,null,null,null,null,null,null,null,null,null,null,null,null,null,null,null,null,null,null,null,null,null,null,"E-mail"]
[null,null,null,null,null,null,"電話番号",null,null,null,null,null,null,null,null,null,null,null,null,null,null,null,null,null,null,null,null,null,null,null,null,null,null,null,null,null,null,null,null,null,null,null,null,null,null,"電話番号"]
[null,null,null,null,null,null,"FAX番号",null,null,null,null,null,null,null,null,null,null,null,null,null,null,null,null,null,null,null,null,null,null,null,null,null,null,null,null,null,null,null,null,null,null,null,null,null,null,"FAX番号"]
[null,null,"事務連絡",null,null,null,"氏名",null,null,null,null,null,null,null,null,null,null,null,null,null,null,null,null,null,null,null,null,null,null,null,null,null,null,null,null,null,null,null,null,null,null,"事務連絡",null,null,null,"氏名"]
[null,null,null,null,null,null,"所属",null,null,null,null,null,null,null,null,null,null,null,null,null,null,null,null,null,null,null,null,null,null,null,null,null,null,null,null,null,null,null,null,null,null,null,null,null,null,"所属"]
[null,null,null,null,null,null,"E-mail",null,null,null,null,null,null,null,null,null,null,null,null,null,null,null,null,null,null,null,null,null,null,null,null,null,null,null,null,null,null,null,null,null,null,null,null,null,null,"E-mail"]
[null,null,null,null,null,null,"電話番号",null,null,null,null,null,null,null,null,null,null,null,null,null,null,null,null,null,null,null,null,null,null,null,null,null,null,null,null,null,null,null,null,null,null,null,null,null,null,"電話番号"]
[null,null,null,null,null,null,"FAX番号",null,null,null,null,null,null,null,null,null,null,null,null,null,null,null,null,null,null,null,null,null,null,null,null,null,null,null,null,null,null,null,null,null,null,null,null,null,null,"FAX番号"]

{"sheet":"132支援スケジュール","index":5,"n_rows":16,"n_cols":80,"rows_kept":16,"cut":false,"hidden":false,"merged":[[8,1,8,16],[8,17,8,21],[8,22,8,26],[8,27,8,36],[3,1,3,9],[3,10,3,21],[4,1,4,21],[9,1,9,16],[9,17,9,21],[9,22,9,26],[9,27,9,36],[10,1,10,16],[10,17,10,21],[10,22,10,26],[10,27,10,36],[11,1,11,16],[11,17,11,21],[11,22,11,26],[11,27,11,36],[12,1,12,16],[12,17,12,21],[12,22,12,26],[12,27,12,36],[15,1,15,16],[15,17,15,21],[15,22,15,26],[15,27,15,36],[13,1,13,16],[13,17,13,21],[13,22,13,26],[13,27,13,36],[14,1,14,16],[14,17,14,21],[14,22,14,26],[14,27,14,36],[8,66,8,75],[9,40,9,55],[9,56,9,60],[9,61,9,65],[9,66,9,75],[15,40,15,55],[15,56,15,60],[15,61,15,65],[15,66,15,75],[12,40,12,55],[12,56,12,60],[12,61,12,65],[12,66,12,75],[13,40,13,55],[13,56,13,60],[13,61,13,65],[13,66,13,75],[3,64,3,66],[14,40,14,55],[14,56,14,60],[14,61,14,65],[14,66,14,75],[10,40,10,55],[10,56,10,60],[10,61,10,65],[10,66,10,75],[11,40,11,55],[11,56,11,60],[11,61,11,65],[11,66,11,75],[8,40,8,55],[8,56,8,60],[8,61,8,65]]}
[]
[]
[]
[null,"1．支援計画書",null,null,null,null,null,null,null,null,"13．支援体制",null,null,null,null,null,null,null,null,null,null,null,null,null,null,null,null,null,null,null,null,null,null,null,null,null,null,null,null,null,"記入例及び注記",null,null,null,null,null,null,null,null,"セル色凡例",null,null,null,null,null,"直接入力",null,null,null,null,"選択",null,null,null,"自動計算",null,null,null,null,null,null,null,null,null,null,null,null,null,null,"セル色の表示／非表示"]
[null,"132．支援スケジュール",null,null,null,null,null,null,null,null,null,null,null,null,null,null,null,null,null,null,null,null,null,null,null,null,null,null,null,null,null,null,null,null,null,null,null,null,null,null,"※","保護がかけられていないシートであっても、",null,null,null,null,null,null,null,null,null,null,null,null,null,null,null,null,null,null,null,null,null,null,null,null,null,null,null,null,null,null,null,null,null,null,null,null,null,false]
[null,null,null,null,null,null,null,null,null,null,null,null,null,null,null,null,null,null,null,null,null,null,null,null,null,null,null,null,null,null,null,null,null,null,null,null,null,null,null,null,null,"セルの結合や分割、行列の挿入や削除等は行わないようにしてください。"]
[]
[null,"１．支援スケジュール",null,null,null,null,null,null,null,null,null,null,null,null,null,null,null,null,null,null,null,null,null,null,null,null,null,null,null,null,null,null,null,null,null,null,null,null,null,null,"１．支援スケジュール"]
[null,"支援段階",null,null,null,null,null,null,null,null,null,null,null,null,null,null,null,"計画",null,null,null,null,"実績",null,null,null,null,"備考",null,null,null,null,null,null,null,null,null,null,null,null,"支援段階",null,null,null,null,null,null,null,null,null,null,null,null,null,null,null,"計画",null,null,null,null,"実績",null,null,null,null,"備考"]
[null,"0.支援計画書の作成",null,null,null,null,null,null,null,null,null,null,null,null,null,null,null,null,null,null,null,null,"---",null,null,null,null,null,null,null,null,null,null,null,null,null,null,null,null,null,"0.支援計画書の作成",null,null,null,null,null,null,null,null,null,null,null,null,null,null,null,"2022-07-01",null,null,null,null,"---"]
[null,"1.支援機関・事業者の打ち合わせ",null,null,null,null,null,null,null,null,null,null,null,null,null,null,null,null,null,null,null,null,"---",null,null,null,null,null,null,null,null,null,null,null,null,null,null,null,null,null,"1.支援機関・事業者の打ち合わせ",null,null,null,null,null,null,null,null,null,null,null,null,null,null,null,"2022-07-15",null,null,null,null,"---"]
[null,"2.現地調査",null,null,null,null,null,null,null,null,null,null,null,null,null,null,null,null,null,null,null,null,"---",null,null,null,null,null,null,null,null,null,null,null,null,null,null,null,null,null,"2.現地調査",null,null,null,null,null,null,null,null,null,null,null,null,null,null,null,"2022-07-30",null,null,null,null,"---"]
[null,"3.計測機器設置",null,null,null,null,null,null,null,null,null,null,null,null,null,null,null,null,null,null,null,null,"---",null,null,null,null,null,null,null,null,null,null,null,null,null,null,null,null,null,"3.計測機器設置",null,null,null,null,null,null,null,null,null,null,null,null,null,null,null,"2022-07-30",null,null,null,null,"---"]
[null,"4.診断結果報告会（対策提案と実施対策の合意）",null,null,null,null,null,null,null,null,null,null,null,null,null,null,null,null,null,null,null,null,"---",null,null,null,null,null,null,null,null,null,null,null,null,null,null,null,null,null,"4.診断結果報告会（対策提案と実施対策の合意）",null,null,null,null,null,null,null,null,null,null,null,null,null,null,null,"2022-08-31",null,null,null,null,"---"]
[null,"5.実施計画報告会（実施計画への合意）",null,null,null,null,null,null,null,null,null,null,null,null,null,null,null,null,null,null,null,null,"---",null,null,null,null,null,null,null,null,null,null,null,null,null,null,null,null,null,"5.実施計画報告会（実施計画への合意）",null,null,null,null,null,null,null,null,null,null,null,null,null,null,null,"2022-09-20",null,null,null,null,"---"]
[null,"6.請求書提出",null,null,null,null,null,null,null,null,null,null,null,null,null,null,null,null,null,null,null,null,"---",null,null,null,null,null,null,null,null,null,null,null,null,null,null,null,null,null,"6.請求書提出",null,null,null,null,null,null,null,null,null,null,null,null,null,null,null,"2022-10-20",null,null,null,null,"---"]

{"sheet":"非表示_活動量と単位","index":6,"n_rows":89,"n_cols":11,"rows_kept":89,"cut":false,"hidden":true,"merged":[]}
[]
[]
[]
[null,null,null,"※活動種別は細分化済みの状態"]
[]
[null,"ガイドライン"]
[null,"項目","ページ","活動種別","計算式振り分け用","活動量の種別","活動単位","単位発熱量の単位","CO2排出係数の単位","GJ換算対象（エネ起＝対象／非エネ起＝非対象）"]
[null,1.2,"II-15","系統電力",1,"使用量","kWh","---","t-CO2/kWh","対象","←単価は出てこないので、選択肢は一つでＯＫ"]
[null,1.1000000000000001,"II-21","輸入原料炭",0,"消費量","t","GJ/t","t-CO2/GJ","対象"]
[null,1.1000000000000001,"II-21","国産一般炭",0,"消費量","t","GJ/t","t-CO2/GJ","対象"]
[null,1.1000000000000001,"II-21","輸入一般炭",0,"消費量","t","GJ/t","t-CO2/GJ","対象"]
[null,1.1000000000000001,"II-21","輸入無煙炭",0,"消費量","t","GJ/t","t-CO2/GJ","対象"]
[null,1.1000000000000001,"II-21","コークス",0,"消費量","t","GJ/t","t-CO2/GJ","対象"]
[null,1.1000000000000001,"II-21","原油",0,"消費量","kl","GJ/kl","t-CO2/GJ","対象"]
[null,1.1000000000000001,"II-21","ガソリン",0,"消費量","kl","GJ/kl","t-CO2/GJ","対象"]
[null,1.1000000000000001,"II-21","ナフサ",0,"消費量","kl","GJ/kl","t-CO2/GJ","対象"]
[null,1.1000000000000001,"II-21","ジェット燃料",0,"消費量","kl","GJ/kl","t-CO2/GJ","対象"]
[null,1.1000000000000001,"II-21","灯油",0,"消費量","kl","GJ/kl","t-CO2/GJ","対象"]
[null,1.1000000000000001,"II-21","軽油",0,"消費量","kl","GJ/kl","t-CO2/GJ","対象"]
[null,1.1000000000000001,"II-21","A重油",0,"消費量","kl","GJ/kl","t-CO2/GJ","対象"]
[null,1.1000000000000001,"II-21","B重油",0,"消費量","kl","GJ/kl","t-CO2/GJ","対象"]
[null,1.1000000000000001,"II-21","C重油",0,"消費量","kl","GJ/kl","t-CO2/GJ","対象"]
[null,1.1000000000000001,"II-21","潤滑油",0,"消費量","kl","GJ/kl","t-CO2/GJ","対象"]
[null,1.1000000000000001,"II-21","オイルコークス",0,"消費量","t","GJ/t","t-CO2/GJ","対象"]
[null,1.1000000000000001,"II-21","LPG",0,"消費量","t","GJ/t","t-CO2/GJ","対象"]
[null,1.1000000000000001,"II-21","天然ガス",0,"消費量","千Nm3","GJ/千Nm3","t-CO2/GJ","対象"]
[null,1.1000000000000001,"II-21","LNG",0,"消費量","t","GJ/t","t-CO2/GJ","対象"]
[null,1.1000000000000001,"II-21","都市ガス",0,"消費量","千Nm3","GJ/千Nm3","t-CO2/GJ","対象"]
[null,1.1000000000000001,"II-21","コールタール",0,"消費量","t","GJ/t","t-CO2/GJ","対象"]
[null,1.1000000000000001,"II-21","アスファルト",0,"消費量","t","GJ/t","t-CO2/GJ","対象"]
[null,1.1000000000000001,"II-21","NGL・コンデンセート",0,"消費量","kl","GJ/kl","t-CO2/GJ","対象"]
[null,1.1000000000000001,"II-21","製油所ガス",0,"消費量","千Nm3","GJ/千Nm3","t-CO2/GJ","対象"]
[null,1.1000000000000001,"II-21","コークス炉ガス",0,"消費量","千Nm3","GJ/千Nm3","t-CO2/GJ","対象"]
[null,1.1000000000000001,"II-21","高炉ガス",0,"消費量","千Nm3","GJ/千Nm3","t-CO2/GJ","対象"]
[null,1.1000000000000001,"II-21","転炉ガス",0,"消費量","千Nm3","GJ/千Nm3","t-CO2/GJ","対象"]
[null,1.3,"II-17","産業用蒸気",1,"使用量","GJ","---","t-CO2/GJ","対象"]
[null,1.3,"II-17","温水",1,"使用量","GJ","---","t-CO2/GJ","対象"]
[null,1.3,"II-17","冷水",1,"使用量","GJ","---","t-CO2/GJ","対象"]
[null,1.3,"II-17","蒸気（産業用以外）",1,"使用量","GJ","---","t-CO2/GJ","対象"]
[null,1.4,"II-18","所内消費電力",1,"消費量","kWh","---","t-CO2/kWh","---","←6-1.～6-3.、7-1.～7-3.で使用しない場合は、把握対象、単位は不要。"]
[null,1.4,"II-18","外部供給電力",1,"供給量","kWh","---","t-CO2/kWh","---","←6-1.～6-3.、7-1.～7-4.で使用しない場合は、把握対象、単位は不要。"]
[null,1.4,"II-18","所内消費熱",1,"消費量","GJ","---","t-CO2/GJ","---","←6-1.～6-3.、7-1.～7-5.で使用しない場合は、把握対象、単位は不要。"]
[null,1.4,"II-18","外部供給熱",1,"供給量","GJ","---","t-CO2/GJ","---","←6-1.～6-3.、7-1.～7-6.で使用しない場合は、把握対象、単位は不要。"]
[null,2,"II-27","①廃油",1,"焼却・使用量","t","---","t-CO2/t","---"]
[null,2,"II-27","②廃合成繊維",1,"焼却・使用量","t","---","t-CO2/t","---"]
[null,2,"II-27","③廃ゴムタイヤ",1,"焼却・使用量","t","---","t-CO2/t","---"]
[null,2,"II-27","④　②③以外の廃プラスチック類（産業廃棄物）",1,"焼却・使用量","t","---","t-CO2/t","---"]
[null,2,"II-27","⑤　②③④以外の廃プラスチック類（一般廃棄物）",1,"焼却・使用量","t","---","t-CO2/t","---"]
[null,2,"II-27","廃油から製造される燃料油",1,"焼却・使用量","kl","---","t-CO2/kl","---"]
[null,2,"II-27","廃プラスチック類から製造される燃料油",1,"焼却・使用量","kl","---","t-CO2/kl","---"]
[null,2,"II-27","ごみ固形燃料（RPF）",1,"焼却・使用量","t","---","t-CO2/t","---"]
[null,2,"II-27","ごみ固形燃料（RDF）",1,"焼却・使用量","t","---","t-CO2/t","---"]
[null,3.1,"II-28","セメントの製造",1,"クリンカー製造量","t","---","t-CO2/t","---"]
[null,3.2,"II-30","生石灰の製造（原料：石灰石）",1,"原料使用量","t","---","t-CO2/t","---"]
[null,3.2,"II-30","生石灰の製造（原料：ドロマイト）",1,"原料使用量","t","---","t-CO2/t","---"]
[null,3.3,"II-32","石灰石（タンカル）の使用",1,"使用量","t","---","t-CO2/t","---"]
[null,3.3,"II-32","ドロマイトの使用",1,"使用量","t","---","t-CO2/t","---"]
[null,3.4,"II-35","ソーダ灰の製造",1,"追加投入量","t","---","t-CO2/t","---"]
[null,3.5,"II-37","ソーダ灰の使用",1,"使用量","t","---","t-CO2/t","---"]
[null,3.6,"II-39","アンモニアの製造（原料：石炭）",1,"原料使用量","t","---","t-CO2/t","---"]
[null,3.6,"II-39","アンモニアの製造（原料：ナフサ）",1,"原料使用量","kl","---","t-CO2/kl","---"]
[null,3.6,"II-39","アンモニアの製造（原料：オイルコークス）",1,"原料使用量","t","---","t-CO2/t","---"]
[null,3.6,"II-39","アンモニアの製造（原料：LPG）",1,"原料使用量","t","---","t-CO2/t","---"]
[null,3.6,"II-39","アンモニアの製造（原料：LNG）",1,"原料使用量","t","---","t-CO2/t","---"]
[null,3.6,"II-39","アンモニアの製造（原料：天然ガス(LNG除く)）",1,"原料使用量","千Nm3","---","t-CO2/千Nm3","---"]
[null,3.6,"II-39","アンモニアの製造（原料：コークス炉ガス）",1,"原料使用量","千Nm3","---","t-CO2/千Nm3","---"]
[null,3.6,"II-39","アンモニアの製造（原料：石油系炭化水素ガス）",1,"原料使用量","千Nm3","---","t-CO2/千Nm3","---"]
[null,3.7,"II-42","シリコンカーバイドの製造",1,"石油コークス使用量","t","---","t-CO2/t","---"]
[null,3.8,"II-44","カルシウムカーバイドの製造（石灰石起源）",1,"製造量","t","---","t-CO2/t","---"]
[null,3.8,"II-44","カルシウムカーバイドの製造（還元剤起源）",1,"製造量","t","---","t-CO2/t","---"]
[null,3.9,"II-46","エチレンの製造",1,"製造量","t","---","t-CO2/t","---"]
[null,"3.10","II-47","カルシウムカーバイドを原料としたアセチレンの使用（燃焼）",1,"使用量","t","---","t-CO2/t","---"]
[null,"3.11","II-49","電気炉を使用した粗鋼の製造",1,"製造量","t","---","t-CO2/t","---"]
[null,"3.12","II-50","ドライアイス／液化炭酸ガス／噴霧器の使用",1,"使用量","t","---","t-CO2/t","---"]
[null,null,null,"その他（要：備考欄への詳細記載）",null,null,null,null,null,"---","←「計算式の振り分け」は、6-1.～6-3.、7-1.～7-3.の各シートにおける係数の入力状況に基づき、各シートのA列にて判断。"]
[]
[]
[]
[]
[]
[null,null,null,"電力等のGJ換算係数"]
[null,null,null,"系統電力①",9.7599999999999996E-3,"GJ/kWh"]
[null,null,null,"系統電力②",9.7599999999999996E-3,"GJ/kWh"]
[null,null,null,"系統電力切替先①",9.7599999999999996E-3,"GJ/kWh"]
[null,null,null,"系統電力切替先②",9.7599999999999996E-3,"GJ/kWh"]
[null,null,null,"産業用蒸気",1.02,"GJ"]
[null,null,null,"温水",1.36,"GJ"]
[null,null,null,"冷水",1.36,"GJ"]
[null,null,null,"蒸気（産業用以外）",1.36,"GJ"]

{"sheet":"非表示_産業分類","index":7,"n_rows":536,"n_cols":17,"rows_kept":536,"cut":false,"hidden":true,"merged":[]}
[]
[]
[]
[null,null,"日本産業分類（平成25年10月改定）"]
[]
[null,null,"大分類",null,"中分類",null,"小分類",null,null,null,null,null,"中分類",null,null,"中分類","小分類"]
[null,null," A","農業、林業",1,"農業",10,"管理，補助的経済活動を行う事業所（01農業）",null,null,null,null,"01 農業","中分類1",null,{"$f":"\"0\"&E7&\" \"&F7","v":"01 農業"},{"$f":"\"0\"&G7&\" \"&H7","v":"010 管理，補助的経済活動を行う事業所（01農業）"}]
[null,null,null,null,null,null,11,"耕種農業",null,null,null,null,"02 林業","中分類2",null,null,{"$f":"\"0\"&G8&\" \"&H8","v":"011 耕種農業"}]
[null,null,null,null,null,null,12,"畜産農業",null,null,null,null,"03 漁業（水産養殖業を除く）","中分類3",null,null,"012 畜産農業"]
[null,null,null,null,null,null,13,"農業サービス業（園芸サービス業を除く）",null,null,null,null,"04 水産養殖業","中分類4",null,null,"013 農業サービス業（園芸サービス業を除く）"]
[null,null,null,null,null,null,14,"園芸サービス業",null,null,null,null,"05 鉱業，採石業，砂利採取業","中分類5",null,null,"014 園芸サービス業"]
[null,null,null,null,2,"林業",20,"管理，補助的経済活動を行う事業所（02林業）",null,null,null,null,"06 総合工事業","中分類6",null,{"$f":"\"0\"&E12&\" \"&F12","v":"02 林業"},"020 管理，補助的経済活動を行う事業所（02林業）"]
[null,null,null,null,null,null,21,"育林業",null,null,null,null,"07 職別工事業(設備工事業を除く)","中分類7",null,null,"021 育林業"]
[null,null,null,null,null,null,22,"素材生産業",null,null,null,null,"08 設備工事業","中分類8",null,null,"022 素材生産業"]
[null,null,null,null,null,null,23,"特用林産物生産業（きのこ類の栽培を除く）",null,null,null,null,"09 食料品製造業","中分類9",null,null,"023 特用林産物生産業（きのこ類の栽培を除く）"]
[null,null,null,null,null,null,24,"林業サービス業",null,null,null,null,"10 飲料・たばこ・飼料製造業","中分類10",null,null,"024 林業サービス業"]
[null,null,null,null,null,null,29,"その他の林業",null,null,null,null,"11 繊維工業","中分類11",null,null,"029 その他の林業"]
[null,null,"B","漁業",3,"漁業（水産養殖業を除く）",30,"管理，補助的経済活動を行う事業所（03漁業）",null,null,null,null,"12 木材・木製品製造業（家具を除く）","中分類12",null,{"$f":"\"0\"&E18&\" \"&F18","v":"03 漁業（水産養殖業を除く）"},"030 管理，補助的経済活動を行う事業所（03漁業）"]
[null,null,null,null,null,null,31,"海面漁業",null,null,null,null,"13 家具・装備品製造業","中分類13",null,null,"031 海面漁業"]
[null,null,null,null,null,null,32,"内水面漁業",null,null,null,null,"14 パルプ・紙・紙加工品製造業","中分類14",null,null,"032 内水面漁業"]
[null,null,null,null,4,"水産養殖業",40,"管理，補助的経済活動を行う事業所（04水産養殖業）",null,null,null,null,"15 印刷・同関連業","中分類15",null,{"$f":"\"0\"&E21&\" \"&F21","v":"04 水産養殖業"},"040 管理，補助的経済活動を行う事業所（04水産養殖業）"]
[null,null,null,null,null,null,41,"海面養殖業",null,null,null,null,"16 化学工業","中分類16",null,null,"041 海面養殖業"]
[null,null,null,null,null,null,42,"内水面養殖業",null,null,null,null,"17 石油製品・石炭製品製造業","中分類17",null,null,"042 内水面養殖業"]
[null,null,"C","鉱業，採石業，砂利採取業",5,"鉱業，採石業，砂利採取業",50,"管理，補助的経済活動を行う事業所（05鉱業，採石業，砂利採取業）",null,null,null,null,"18 プラスチック製品製造業（別掲を除く）","中分類18",null,{"$f":"\"0\"&E24&\" \"&F24","v":"05 鉱業，採石業，砂利採取業"},"050 管理，補助的経済活動を行う事業所（05鉱業，採石業，砂利採取業）"]
[null,null,null,null,null,null,51,"金属鉱業",null,null,null,null,"19 ゴム製品製造業","中分類19",null,null,"051 金属鉱業"]
[null,null,null,null,null,null,52,"石炭・亜炭鉱業",null,null,null,null,"20 なめし革・同製品・毛皮製造業","中分類20",null,null,"052 石炭・亜炭鉱業"]
[null,null,null,null,null,null,53,"原油・天然ガス鉱業",null,null,null,null,"21 窯業・土石製品製造業","中分類21",null,null,"053 原油・天然ガス鉱業"]
[null,null,null,null,null,null,54,"採石業，砂・砂利・玉石採取業",null,null,null,null,"22 鉄鋼業","中分類22",null,null,"054 採石業，砂・砂利・玉石採取業"]
[null,null,null,null,null,null,55,"窯業原料用鉱物鉱業（耐火物・陶磁器・ガラス・セメント原料用に限る）",null,null,null,null,"23 非鉄金属製造業","中分類23",null,null,"055 窯業原料用鉱物鉱業（耐火物・陶磁器・ガラス・セメント原料用に限る）"]
[null,null,null,null,null,null,59,"その他の鉱業",null,null,null,null,"24 金属製品製造業","中分類24",null,null,"059 その他の鉱業"]
[null,null,"D","建設業",6,"総合工事業",60,"管理，補助的経済活動を行う事業所（06総合工事業）",null,null,null,null,"25 はん用機械器具製造業","中分類25",null,{"$f":"\"0\"&E31&\" \"&F31","v":"06 総合工事業"},"060 管理，補助的経済活動を行う事業所（06総合工事業）"]
[null,null,null,null,null,null,61,"一般土木建築工事業",null,null,null,null,"26 生産用機械器具製造業","中分類26",null,null,"061 一般土木建築工事業"]
[null,null,null,null,null,null,62,"土木工事業（舗装工事業を除く）",null,null,null,null,"27 業務用機械器具製造業","中分類27",null,null,"062 土木工事業（舗装工事業を除く）"]
[null,null,null,null,null,null,63,"舗装工事業",null,null,null,null,"28 電子部品・デバイス・電子回路製造業","中分類28",null,null,"063 舗装工事業"]
[null,null,null,null,null,null,64,"建築工事業(木造建築工事業を除く)",null,null,null,null,"29 電気機械器具製造業","中分類29",null,null,"064 建築工事業(木造建築工事業を除く)"]
[null,null,null,null,null,null,65,"木造建築工事業",null,null,null,null,"30 情報通信機械器具製造業","中分類30",null,null,"065 木造建築工事業"]
[null,null,null,null,null,null,66,"建築リフォーム工事業",null,null,null,null,"31 輸送用機械器具製造業","中分類31",null,null,"066 建築リフォーム工事業"]
[null,null,null,null,7,"職別工事業(設備工事業を除く)",70,"管理，補助的経済活動を行う事業所（07職別工事業）",null,null,null,null,"32 その他の製造業","中分類32",null,{"$f":"\"0\"&E38&\" \"&F38","v":"07 職別工事業(設備工事業を除く)"},"070 管理，補助的経済活動を行う事業所（07職別工事業）"]
[null,null,null,null,null,null,71,"大工工事業",null,null,null,null,"33 電気業","中分類33",null,null,"071 大工工事業"]
[null,null,null,null,null,null,72,"とび・土工・コンクリート工事業",null,null,null,null,"34 ガス業","中分類34",null,null,"072 とび・土工・コンクリート工事業"]
[null,null,null,null,null,null,73,"鉄骨・鉄筋工事業",null,null,null,null,"35 熱供給業","中分類35",null,null,"073 鉄骨・鉄筋工事業"]
[null,null,null,null,null,null,74,"石工・れんが・タイル・ブロック工事業",null,null,null,null,"36 水道業","中分類36",null,null,"074 石工・れんが・タイル・ブロック工事業"]
[null,null,null,null,null,null,75,"左官工事業",null,null,null,null,"37 通信業","中分類37",null,null,"075 左官工事業"]
[null,null,null,null,null,null,76,"板金・金物工事業",null,null,null,null,"38 放送業","中分類38",null,null,"076 板金・金物工事業"]
[null,null,null,null,null,null,77,"塗装工事業",null,null,null,null,"39 情報サービス業","中分類39",null,null,"077 塗装工事業"]
[null,null,null,null,null,null,78,"床・内装工事業",null,null,null,null,"40 インターネット附随サービス業","中分類40",null,null,"078 床・内装工事業"]
[null,null,null,null,null,null,79,"その他の職別工事業",null,null,null,null,"41 映像・音声・文字情報制作業","中分類41",null,null,"079 その他の職別工事業"]
[null,null,null,null,8,"設備工事業",80,"管理，補助的経済活動を行う事業所（08設備工事業）",null,null,null,null,"42 鉄道業","中分類42",null,{"$f":"\"0\"&E48&\" \"&F48","v":"08 設備工事業"},"080 管理，補助的経済活動を行う事業所（08設備工事業）"]
[null,null,null,null,null,null,81,"電気工事業",null,null,null,null,"43 道路旅客運送業","中分類43",null,null,"081 電気工事業"]
[null,null,null,null,null,null,82,"電気通信・信号装置工事業",null,null,null,null,"44 道路貨物運送業","中分類44",null,null,"082 電気通信・信号装置工事業"]
[null,null,null,null,null,null,83,"管工事業（さく井工事業を除く）",null,null,null,null,"45 水運業","中分類45",null,null,"083 管工事業（さく井工事業を除く）"]
[null,null,null,null,null,null,84,"機械器具設置工事業",null,null,null,null,"46 航空運輸業","中分類46",null,null,"084 機械器具設置工事業"]
[null,null,null,null,null,null,89,"その他の設備工事業",null,null,null,null,"47 倉庫業","中分類47",null,null,"089 その他の設備工事業"]
[null,null,"E","製造業",9,"食料品製造業",90,"管理，補助的経済活動を行う事業所（09食料品製造業）",null,null,null,null,"48 運輸に附帯するサービス業","中分類48",null,{"$f":"\"0\"&E54&\" \"&F54","v":"09 食料品製造業"},"090 管理，補助的経済活動を行う事業所（09食料品製造業）"]
[null,null,null,null,null,null,91,"畜産食料品製造業",null,null,null,null,"49 郵便業（信書便事業を含む）","中分類49",null,null,"091 畜産食料品製造業"]
[null,null,null,null,null,null,92,"水産食料品製造業",null,null,null,null,"50 各種商品卸売業","中分類50",null,null,"092 水産食料品製造業"]
[null,null,null,null,null,null,93,"野菜缶詰・果実缶詰・農産保存食料品製造業",null,null,null,null,"51 繊維・衣服等卸売業","中分類51",null,null,"093 野菜缶詰・果実缶詰・農産保存食料品製造業"]
[null,null,null,null,null,null,94,"調味料製造業",null,null,null,null,"52 飲食料品卸売業","中分類52",null,null,"094 調味料製造業"]
[null,null,null,null,null,null,95,"糖類製造業",null,null,null,null,"53 建築材料，鉱物・金属材料等卸売業","中分類53",null,null,"095 糖類製造業"]
[null,null,null,null,null,null,96,"精穀・製粉業",null,null,null,null,"54 機械器具卸売業","中分類54",null,null,"096 精穀・製粉業"]
[null,null,null,null,null,null,97,"パン・菓子製造業",null,null,null,null,"55 その他の卸売業","中分類55",null,null,"097 パン・菓子製造業"]
[null,null,null,null,null,null,98,"動植物油脂製造業",null,null,null,null,"56 各種商品小売業","中分類56",null,null,"098 動植物油脂製造業"]
[null,null,null,null,null,null,99,"その他の食料品製造業",null,null,null,null,"57 織物・衣服・身の回り品小売業","中分類57",null,null,"099 その他の食料品製造業"]
[null,null,null,null,10,"飲料・たばこ・飼料製造業",100,"管理，補助的経済活動を行う事業所（10飲料・たばこ・飼料製造業）",null,null,null,null,"58 飲食料品小売業","中分類58",null,{"$f":"E64&\" \"&F64","v":"10 飲料・たばこ・飼料製造業"},{"$f":"G64&\" \"&H64","v":"100 管理，補助的経済活動を行う事業所（10飲料・たばこ・飼料製造業）"}]
[null,null,null,null,null,null,101,"清涼飲料製造業",null,null,null,null,"59 機械器具小売業","中分類59",null,null,{"$f":"G65&\" \"&H65","v":"101 清涼飲料製造業"}]
[null,null,null,null,null,null,102,"酒類製造業",null,null,null,null,"60 その他の小売業","中分類60",null,null,"102 酒類製造業"]
[null,null,null,null,null,null,103,"茶・コーヒー製造業（清涼飲料を除く）",null,null,null,null,"61 無店舗小売業","中分類61",null,null,"103 茶・コーヒー製造業（清涼飲料を除く）"]
[null,null,null,null,null,null,104,"製氷業",null,null,null,null,"62 銀行業","中分類62",null,null,"104 製氷業"]
[null,null,null,null,null,null,105,"たばこ製造業",null,null,null,null,"63 協同組織金融業","中分類63",null,null,"105 たばこ製造業"]
[null,null,null,null,null,null,106,"飼料・有機質肥料製造業",null,null,null,null,"64 貸金業，クレジットカード業等非預金信用機関","中分類64",null,null,"106 飼料・有機質肥料製造業"]
[null,null,null,null,11,"繊維工業",110,"管理，補助的経済活動を行う事業所（11繊維工業）",null,null,null,null,"65 金融商品取引業，商品先物取引業","中分類65",null,{"$f":"E71&\" \"&F71","v":"11 繊維工業"},"110 管理，補助的経済活動を行う事業所（11繊維工業）"]
[null,null,null,null,null,null,111,"製糸業，紡績業，化学繊維・ねん糸等製造業",null,null,null,null,"66 補助的金融業等","中分類66",null,null,"111 製糸業，紡績業，化学繊維・ねん糸等製造業"]
[null,null,null,null,null,null,112,"織物業",null,null,null,null,"67 保険業（保険媒介代理業，保険サービス業を含む）","中分類67",null,null,"112 織物業"]
[null,null,null,null,null,null,113,"ニット生地製造業",null,null,null,null,"68 不動産取引業","中分類68",null,null,"113 ニット生地製造業"]
[null,null,null,null,null,null,114,"染色整理業",null,null,null,null,"69 不動産賃貸業・管理業","中分類69",null,null,"114 染色整理業"]
[null,null,null,null,null,null,115,"綱・網・レース・繊維粗製品製造業",null,null,null,null,"70 物品賃貸業","中分類70",null,null,"115 綱・網・レース・繊維粗製品製造業"]
[null,null,null,null,null,null,116,"外衣・シャツ製造業（和式を除く）",null,null,null,null,"71 学術・開発研究機関","中分類71",null,null,"116 外衣・シャツ製造業（和式を除く）"]
[null,null,null,null,null,null,117,"下着類製造業",null,null,null,null,"72 専門サービス業（他に分類されないもの）","中分類72",null,null,"117 下着類製造業"]
[null,null,null,null,null,null,118,"和装製品・その他の衣服・繊維製身の回り品製造業",null,null,null,null,"73 広告業","中分類73",null,null,"118 和装製品・その他の衣服・繊維製身の回り品製造業"]
[null,null,null,null,null,null,119,"その他の繊維製品製造業",null,null,null,null,"74 技術サービス業（他に分類されないもの）","中分類74",null,null,"119 その他の繊維製品製造業"]
[null,null,null,null,12,"木材・木製品製造業（家具を除く）",120,"管理，補助的経済活動を行う事業所（12木材・木製品製造業）",null,null,null,null,"75 宿泊業","中分類75",null,{"$f":"E81&\" \"&F81","v":"12 木材・木製品製造業（家具を除く）"},"120 管理，補助的経済活動を行う事業所（12木材・木製品製造業）"]
[null,null,null,null,null,null,121,"製材業，木製品製造業",null,null,null,null,"76 飲食店","中分類76",null,null,"121 製材業，木製品製造業"]
[null,null,null,null,null,null,122,"造作材・合板・建築用組立材料製造業",null,null,null,null,"77 持ち帰り・配達飲食サービス業","中分類77",null,null,"122 造作材・合板・建築用組立材料製造業"]
[null,null,null,null,null,null,123,"木製容器製造業（竹，とうを含む）",null,null,null,null,"78 洗濯・理容・美容・浴場業","中分類78",null,null,"123 木製容器製造業（竹，とうを含む）"]
[null,null,null,null,null,null,129,"その他の木製品製造業(竹，とうを含む)",null,null,null,null,"79 その他の生活関連サービス業","中分類79",null,null,"129 その他の木製品製造業(竹，とうを含む)"]
[null,null,null,null,13,"家具・装備品製造業",130,"管理，補助的経済活動を行う事業所（13家具・装備品製造業）",null,null,null,null,"80 娯楽業","中分類80",null,{"$f":"E86&\" \"&F86","v":"13 家具・装備品製造業"},"130 管理，補助的経済活動を行う事業所（13家具・装備品製造業）"]
[null,null,null,null,null,null,131,"家具製造業",null,null,null,null,"81 学校教育","中分類81",null,null,"131 家具製造業"]
[null,null,null,null,null,null,132,"宗教用具製造業",null,null,null,null,"82 その他の教育，学習支援業","中分類82",null,null,"132 宗教用具製造業"]
[null,null,null,null,null,null,133,"建具製造業",null,null,null,null,"83 医療業","中分類83",null,null,"133 建具製造業"]
[null,null,null,null,null,null,139,"その他の家具・装備品製造業",null,null,null,null,"84 保健衛生","中分類84",null,null,"139 その他の家具・装備品製造業"]
[null,null,null,null,14,"パルプ・紙・紙加工品製造業",140,"管理，補助的経済活動を行う事業所（14パルプ・紙・紙加工品製造業）",null,null,null,null,"85 社会保険・社会福祉・介護事業","中分類85",null,{"$f":"E91&\" \"&F91","v":"14 パルプ・紙・紙加工品製造業"},"140 管理，補助的経済活動を行う事業所（14パルプ・紙・紙加工品製造業）"]
[null,null,null,null,null,null,141,"パルプ製造業",null,null,null,null,"86 郵便局","中分類86",null,null,"141 パルプ製造業"]
[null,null,null,null,null,null,142,"紙製造業",null,null,null,null,"87 協同組合（他に分類されないもの）","中分類87",null,null,"142 紙製造業"]
[null,null,null,null,null,null,143,"加工紙製造業",null,null,null,null,"88 廃棄物処理業","中分類88",null,null,"143 加工紙製造業"]
[null,null,null,null,null,null,144,"紙製品製造業",null,null,null,null,"89 自動車整備業","中分類89",null,null,"144 紙製品製造業"]
[null,null,null,null,null,null,145,"紙製容器製造業",null,null,null,null,"90 機械等修理業（別掲を除く）","中分類90",null,null,"145 紙製容器製造業"]
[null,null,null,null,null,null,149,"その他のパルプ・紙・紙加工品製造業",null,null,null,null,"91 職業紹介・労働者派遣業","中分類91",null,null,"149 その他のパルプ・紙・紙加工品製造業"]
[null,null,null,null,15,"印刷・同関連業",150,"管理，補助的経済活動を行う事業所（15印刷・同関連業）",null,null,null,null,"92 その他の事業サービス業","中分類92",null,{"$f":"E98&\" \"&F98","v":"15 印刷・同関連業"},"150 管理，補助的経済活動を行う事業所（15印刷・同関連業）"]
[null,null,null,null,null,null,151,"印刷業",null,null,null,null,"93 政治・経済・文化団体","中分類93",null,null,"151 印刷業"]
[null,null,null,null,null,null,152,"製版業",null,null,null,null,"94 宗教","中分類94",null,null,"152 製版業"]
[null,null,null,null,null,null,153,"製本業，印刷物加工業",null,null,null,null,"95 その他のサービス業","中分類95",null,null,"153 製本業，印刷物加工業"]
[null,null,null,null,null,null,159,"印刷関連サービス業",null,null,null,null,"96 外国公務","中分類96",null,null,"159 印刷関連サービス業"]
[null,null,null,null,16,"化学工業",160,"管理，補助的経済活動を行う事業所（16化学工業）",null,null,null,null,"97 国家公務","中分類97",null,{"$f":"E103&\" \"&F103","v":"16 化学工業"},"160 管理，補助的経済活動を行う事業所（16化学工業）"]
[null,null,null,null,null,null,161,"化学肥料製造業",null,null,null,null,"98 地方公務","中分類98",null,null,"161 化学肥料製造業"]
[null,null,null,null,null,null,162,"無機化学工業製品製造業",null,null,null,null,"99 分類不能の産業","中分類99",null,null,"162 無機化学工業製品製造業"]
[null,null,null,null,null,null,163,"有機化学工業製品製造業",null,null,null,null,null,null,null,null,"163 有機化学工業製品製造業"]
[null,null,null,null,null,null,164,"油脂加工製品・石けん・合成洗剤・界面活性剤・塗料製造業",null,null,null,null,null,null,null,null,"164 油脂加工製品・石けん・合成洗剤・界面活性剤・塗料製造業"]
[null,null,null,null,null,null,165,"医薬品製造業",null,null,null,null,null,null,null,null,"165 医薬品製造業"]
[null,null,null,null,null,null,166,"化粧品・歯磨・その他の化粧用調整品製造業",null,null,null,null,null,null,null,null,"166 化粧品・歯磨・その他の化粧用調整品製造業"]
[null,null,null,null,null,null,169,"その他の化学工業",null,null,null,null,null,null,null,null,"169 その他の化学工業"]
[null,null,null,null,17,"石油製品・石炭製品製造業",170,"管理，補助的経済活動を行う事業所（17石油製品・石炭製品製造業）",null,null,null,null,null,null,null,{"$f":"E111&\" \"&F111","v":"17 石油製品・石炭製品製造業"},"170 管理，補助的経済活動を行う事業所（17石油製品・石炭製品製造業）"]
[null,null,null,null,null,null,171,"石油精製業",null,null,null,null,null,null,null,null,"171 石油精製業"]
[null,null,null,null,null,null,172,"潤滑油・グリース製造業（石油精製業によらないもの）",null,null,null,null,null,null,null,null,"172 潤滑油・グリース製造業（石油精製業によらないもの）"]
[null,null,null,null,null,null,173,"コークス製造業",null,null,null,null,null,null,null,null,"173 コークス製造業"]
[null,null,null,null,null,null,174,"舗装材料製造業",null,null,null,null,null,null,null,null,"174 舗装材料製造業"]
[null,null,null,null,null,null,179,"その他の石油製品・石炭製品製造業",null,null,null,null,null,null,null,null,"179 その他の石油製品・石炭製品製造業"]
[null,null,null,null,18,"プラスチック製品製造業（別掲を除く）",180,"管理，補助的経済活動を行う事業所（18プラスチック製品製造業）",null,null,null,null,null,null,null,{"$f":"E117&\" \"&F117","v":"18 プラスチック製品製造業（別掲を除く）"},"180 管理，補助的経済活動を行う事業所（18プラスチック製品製造業）"]
[null,null,null,null,null,null,181,"プラスチック板・棒・管・継手・異形押出製品製造業",null,null,null,null,null,null,null,null,"181 プラスチック板・棒・管・継手・異形押出製品製造業"]
[null,null,null,null,null,null,182,"プラスチックフィルム・シート・床材・合成皮革製造業",null,null,null,null,null,null,null,null,"182 プラスチックフィルム・シート・床材・合成皮革製造業"]
[null,null,null,null,null,null,183,"工業用プラスチック製品製造業",null,null,null,null,null,null,null,null,"183 工業用プラスチック製品製造業"]
[null,null,null,null,null,null,184,"発泡・強化プラスチック製品製造業",null,null,null,null,null,null,null,null,"184 発泡・強化プラスチック製品製造業"]
[null,null,null,null,null,null,185,"プラスチック成形材料製造業（廃プラスチックを含む）",null,null,null,null,null,null,null,null,"185 プラスチック成形材料製造業（廃プラスチックを含む）"]
[null,null,null,null,null,null,189,"その他のプラスチック製品製造業",null,null,null,null,null,null,null,null,"189 その他のプラスチック製品製造業"]
[null,null,null,null,19,"ゴム製品製造業",190,"管理，補助的経済活動を行う事業所（19ゴム製品製造業）",null,null,null,null,null,null,null,{"$f":"E124&\" \"&F124","v":"19 ゴム製品製造業"},"190 管理，補助的経済活動を行う事業所（19ゴム製品製造業）"]
[null,null,null,null,null,null,191,"タイヤ・チューブ製造業",null,null,null,null,null,null,null,null,"191 タイヤ・チューブ製造業"]
[null,null,null,null,null,null,192,"ゴム製・プラスチック製履物・同附属品製造業",null,null,null,null,null,null,null,null,"192 ゴム製・プラスチック製履物・同附属品製造業"]
[null,null,null,null,null,null,193,"ゴムベルト・ゴムホース・工業用ゴム製品製造業",null,null,null,null,null,null,null,null,"193 ゴムベルト・ゴムホース・工業用ゴム製品製造業"]
[null,null,null,null,null,null,199,"その他のゴム製品製造業",null,null,null,null,null,null,null,null,"199 その他のゴム製品製造業"]
[null,null,null,null,20,"なめし革・同製品・毛皮製造業","200　","管理，補助的経済活動を行う事業所（20なめし革・同製品・毛皮製造業）",null,null,null,null,null,null,null,{"$f":"E129&\" \"&F129","v":"20 なめし革・同製品・毛皮製造業"},{"$f":"G129&\" \"&H129","v":"200　 管理，補助的経済活動を行う事業所（20なめし革・同製品・毛皮製造業）"}]
[null,null,null,null,null,null,"201　","なめし革製造業",null,null,null,null,null,null,null,null,"201　 なめし革製造業"]
[null,null,null,null,null,null,"202　","工業用革製品製造業（手袋を除く）",null,null,null,null,null,null,null,null,"202　 工業用革製品製造業（手袋を除く）"]
[null,null,null,null,null,null,"203　","革製履物用材料・同附属品製造業",null,null,null,null,null,null,null,null,"203　 革製履物用材料・同附属品製造業"]
[null,null,null,null,null,null,"204　","革製履物製造業",null,null,null,null,null,null,null,null,"204　 革製履物製造業"]
[null,null,null,null,null,null,"205　","革製手袋製造業",null,null,null,null,null,null,null,null,"205　 革製手袋製造業"]
[null,null,null,null,null,null,"206　","かばん製造業",null,null,null,null,null,null,null,null,"206　 かばん製造業"]
[null,null,null,null,null,null,"207　","袋物製造業",null,null,null,null,null,null,null,null,"207　 袋物製造業"]
[null,null,null,null,null,null,"208　","毛皮製造業",null,null,null,null,null,null,null,null,"208　 毛皮製造業"]
[null,null,null,null,null,null,"209　","その他のなめし革製品製造業",null,null,null,null,null,null,null,null,"209　 その他のなめし革製品製造業"]
[null,null,null,null,21,"窯業・土石製品製造業","210　","管理，補助的経済活動を行う事業所（21窯業・土石製品製造業）",null,null,null,null,null,null,null,{"$f":"E139&\" \"&F139","v":"21 窯業・土石製品製造業"},"210　 管理，補助的経済活動を行う事業所（21窯業・土石製品製造業）"]
[null,null,null,null,null,null,"211　","ガラス・同製品製造業",null,null,null,null,null,null,null,null,"211　 ガラス・同製品製造業"]
[null,null,null,null,null,null,"212　","セメント・同製品製造業",null,null,null,null,null,null,null,null,"212　 セメント・同製品製造業"]
[null,null,null,null,null,null,"213　","建設用粘土製品製造業（陶磁器製を除く)",null,null,null,null,null,null,null,null,"213　 建設用粘土製品製造業（陶磁器製を除く)"]
[null,null,null,null,null,null,"214　","陶磁器・同関連製品製造業",null,null,null,null,null,null,null,null,"214　 陶磁器・同関連製品製造業"]
[null,null,null,null,null,null,"215　","耐火物製造業",null,null,null,null,null,null,null,null,"215　 耐火物製造業"]
[null,null,null,null,null,null,"216　","炭素・黒鉛製品製造業",null,null,null,null,null,null,null,null,"216　 炭素・黒鉛製品製造業"]
[null,null,null,null,null,null,"217　","研磨材・同製品製造業",null,null,null,null,null,null,null,null,"217　 研磨材・同製品製造業"]
[null,null,null,null,null,null,"218　","骨材・石工品等製造業",null,null,null,null,null,null,null,null,"218　 骨材・石工品等製造業"]
[null,null,null,null,null,null,"219　","その他の窯業・土石製品製造業",null,null,null,null,null,null,null,null,"219　 その他の窯業・土石製品製造業"]
[null,null,null,null,22,"鉄鋼業","220　","管理，補助的経済活動を行う事業所（22鉄鋼業）",null,null,null,null,null,null,null,{"$f":"E149&\" \"&F149","v":"22 鉄鋼業"},"220　 管理，補助的経済活動を行う事業所（22鉄鋼業）"]
[null,null,null,null,null,null,"221　","製鉄業",null,null,null,null,null,null,null,null,"221　 製鉄業"]
[null,null,null,null,null,null,"222　","製鋼・製鋼圧延業",null,null,null,null,null,null,null,null,"222　 製鋼・製鋼圧延業"]
[null,null,null,null,null,null,"223　","製鋼を行わない鋼材製造業（表面処理鋼材を除く）",null,null,null,null,null,null,null,null,"223　 製鋼を行わない鋼材製造業（表面処理鋼材を除く）"]
[null,null,null,null,null,null,"224　","表面処理鋼材製造業",null,null,null,null,null,null,null,null,"224　 表面処理鋼材製造業"]
[null,null,null,null,null,null,"225　","鉄素形材製造業",null,null,null,null,null,null,null,null,"225　 鉄素形材製造業"]
[null,null,null,null,null,null,"229　","その他の鉄鋼業",null,null,null,null,null,null,null,null,"229　 その他の鉄鋼業"]
[null,null,null,null,23,"非鉄金属製造業","230　","管理，補助的経済活動を行う事業所（23非鉄金属製造業）",null,null,null,null,null,null,null,{"$f":"E156&\" \"&F156","v":"23 非鉄金属製造業"},"230　 管理，補助的経済活動を行う事業所（23非鉄金属製造業）"]
[null,null,null,null,null,null,"231　","非鉄金属第1次製錬・精製業",null,null,null,null,null,null,null,null,"231　 非鉄金属第1次製錬・精製業"]
[null,null,null,null,null,null,"232　","非鉄金属第2次製錬・精製業（非鉄金属合金製造業を含む）",null,null,null,null,null,null,null,null,"232　 非鉄金属第2次製錬・精製業（非鉄金属合金製造業を含む）"]
[null,null,null,null,null,null,"233　","非鉄金属・同合金圧延業（抽伸，押出しを含む）",null,null,null,null,null,null,null,null,"233　 非鉄金属・同合金圧延業（抽伸，押出しを含む）"]
[null,null,null,null,null,null,"234　","電線・ケーブル製造業",null,null,null,null,null,null,null,null,"234　 電線・ケーブル製造業"]
[null,null,null,null,null,null,"235　","非鉄金属素形材製造業",null,null,null,null,null,null,null,null,"235　 非鉄金属素形材製造業"]
[null,null,null,null,null,null,"239　","その他の非鉄金属製造業",null,null,null,null,null,null,null,null,"239　 その他の非鉄金属製造業"]
[null,null,null,null,24,"金属製品製造業","240　","管理，補助的経済活動を行う事業所（24金属製品製造業）",null,null,null,null,null,null,null,{"$f":"E163&\" \"&F163","v":"24 金属製品製造業"},"240　 管理，補助的経済活動を行う事業所（24金属製品製造業）"]
[null,null,null,null,null,null,"241　","ブリキ缶・その他のめっき板等製品製造業",null,null,null,null,null,null,null,null,"241　 ブリキ缶・その他のめっき板等製品製造業"]
[null,null,null,null,null,null,"242　","洋食器・刃物・手道具・金物類製造業",null,null,null,null,null,null,null,null,"242　 洋食器・刃物・手道具・金物類製造業"]
[null,null,null,null,null,null,"243　","暖房・調理等装置,配管工事用附属品製造業",null,null,null,null,null,null,null,null,"243　 暖房・調理等装置,配管工事用附属品製造業"]
[null,null,null,null,null,null,"244　","建設用・建築用金属製品製造業（製缶板金業を含む)",null,null,null,null,null,null,null,null,"244　 建設用・建築用金属製品製造業（製缶板金業を含む)"]
[null,null,null,null,null,null,"245　","金属素形材製品製造業",null,null,null,null,null,null,null,null,"245　 金属素形材製品製造業"]
[null,null,null,null,null,null,"246　","金属被覆・彫刻業，熱処理業（ほうろう鉄器を除く）",null,null,null,null,null,null,null,null,"246　 金属被覆・彫刻業，熱処理業（ほうろう鉄器を除く）"]
[null,null,null,null,null,null,"247　","金属線製品製造業（ねじ類を除く)",null,null,null,null,null,null,null,null,"247　 金属線製品製造業（ねじ類を除く)"]
[null,null,null,null,null,null,"248　","ボルト・ナット・リベット・小ねじ・木ねじ等製造業",null,null,null,null,null,null,null,null,"248　 ボルト・ナット・リベット・小ねじ・木ねじ等製造業"]
[null,null,null,null,null,null,"249　","その他の金属製品製造業",null,null,null,null,null,null,null,null,"249　 その他の金属製品製造業"]
[null,null,null,null,25,"はん用機械器具製造業","250　","管理，補助的経済活動を行う事業所（25はん用機械器具製造業）",null,null,null,null,null,null,null,{"$f":"E173&\" \"&F173","v":"25 はん用機械器具製造業"},"250　 管理，補助的経済活動を行う事業所（25はん用機械器具製造業）"]
[null,null,null,null,null,null,"251　","ボイラ・原動機製造業",null,null,null,null,null,null,null,null,"251　 ボイラ・原動機製造業"]
[null,null,null,null,null,null,"252　","ポンプ・圧縮機器製造業",null,null,null,null,null,null,null,null,"252　 ポンプ・圧縮機器製造業"]
[null,null,null,null,null,null,"253　","一般産業用機械・装置製造業",null,null,null,null,null,null,null,null,"253　 一般産業用機械・装置製造業"]
[null,null,null,null,null,null,"259　","その他のはん用機械・同部分品製造業",null,null,null,null,null,null,null,null,"259　 その他のはん用機械・同部分品製造業"]
[null,null,null,null,26,"生産用機械器具製造業","260　","管理，補助的経済活動を行う事業所（26生産用機械器具製造業）",null,null,null,null,null,null,null,{"$f":"E178&\" \"&F178","v":"26 生産用機械器具製造業"},"260　 管理，補助的経済活動を行う事業所（26生産用機械器具製造業）"]
[null,null,null,null,null,null,"261　","農業用機械製造業（農業用器具を除く）",null,null,null,null,null,null,null,null,"261　 農業用機械製造業（農業用器具を除く）"]
[null,null,null,null,null,null,"262　","建設機械・鉱山機械製造業",null,null,null,null,null,null,null,null,"262　 建設機械・鉱山機械製造業"]
[null,null,null,null,null,null,"263　","繊維機械製造業",null,null,null,null,null,null,null,null,"263　 繊維機械製造業"]
[null,null,null,null,null,null,"264　","生活関連産業用機械製造業",null,null,null,null,null,null,null,null,"264　 生活関連産業用機械製造業"]
[null,null,null,null,null,null,"265　","基礎素材産業用機械製造業",null,null,null,null,null,null,null,null,"265　 基礎素材産業用機械製造業"]
[null,null,null,null,null,null,"266　","金属加工機械製造業",null,null,null,null,null,null,null,null,"266　 金属加工機械製造業"]
[null,null,null,null,null,null,"267　","半導体・フラットパネルディスプレイ製造装置製造業",null,null,null,null,null,null,null,null,"267　 半導体・フラットパネルディスプレイ製造装置製造業"]
[null,null,null,null,null,null,"269　","その他の生産用機械・同部分品製造業",null,null,null,null,null,null,null,null,"269　 その他の生産用機械・同部分品製造業"]
[null,null,null,null,27,"業務用機械器具製造業","270　","管理，補助的経済活動を行う事業所（27業務用機械器具製造業）",null,null,null,null,null,null,null,{"$f":"E187&\" \"&F187","v":"27 業務用機械器具製造業"},"270　 管理，補助的経済活動を行う事業所（27業務用機械器具製造業）"]
[null,null,null,null,null,null,"271　","事務用機械器具製造業",null,null,null,null,null,null,null,null,"271　 事務用機械器具製造業"]
[null,null,null,null,null,null,"272　","サービス用・娯楽用機械器具製造業",null,null,null,null,null,null,null,null,"272　 サービス用・娯楽用機械器具製造業"]
[null,null,null,null,null,null,"273　","計量器・測定器・分析機器・試験機・測量機械器具・理化学機械器具製造業",null,null,null,null,null,null,null,null,"273　 計量器・測定器・分析機器・試験機・測量機械器具・理化学機械器具製造業"]
[null,null,null,null,null,null,"274　","医療用機械器具・医療用品製造業",null,null,null,null,null,null,null,null,"274　 医療用機械器具・医療用品製造業"]
[null,null,null,null,null,null,"275　","光学機械器具・レンズ製造業",null,null,null,null,null,null,null,null,"275　 光学機械器具・レンズ製造業"]
[null,null,null,null,null,null,"276　","武器製造業",null,null,null,null,null,null,null,null,"276　 武器製造業"]
[null,null,null,null,28,"電子部品・デバイス・電子回路製造業","280　","管理，補助的経済活動を行う事業所（28電子部品・デバイス・電子回路製造業）",null,null,null,null,null,null,null,{"$f":"E194&\" \"&F194","v":"28 電子部品・デバイス・電子回路製造業"},{"$f":"G194&\" \"&H194","v":"280　 管理，補助的経済活動を行う事業所（28電子部品・デバイス・電子回路製造業）"}]
[null,null,null,null,null,null,"281　","電子デバイス製造業",null,null,null,null,null,null,null,null,"281　 電子デバイス製造業"]
[null,null,null,null,null,null,"282　","電子部品製造業",null,null,null,null,null,null,null,null,"282　 電子部品製造業"]
[null,null,null,null,null,null,"283　","記録メディア製造業",null,null,null,null,null,null,null,null,"283　 記録メディア製造業"]
[null,null,null,null,null,null,"284　","電子回路製造業",null,null,null,null,null,null,null,null,"284　 電子回路製造業"]
[null,null,null,null,null,null,"285　","ユニット部品製造業",null,null,null,null,null,null,null,null,"285　 ユニット部品製造業"]
[null,null,null,null,null,null,"289　","その他の電子部品・デバイス・電子回路製造業",null,null,null,null,null,null,null,null,"289　 その他の電子部品・デバイス・電子回路製造業"]
[null,null,null,null,29,"電気機械器具製造業","290　","管理，補助的経済活動を行う事業所（29電気機械器具製造業）",null,null,null,null,null,null,null,{"$f":"E201&\" \"&F201","v":"29 電気機械器具製造業"},"290　 管理，補助的経済活動を行う事業所（29電気機械器具製造業）"]
[null,null,null,null,null,null,"291　","発電用・送電用・配電用電気機械器具製造業",null,null,null,null,null,null,null,null,"291　 発電用・送電用・配電用電気機械器具製造業"]
[null,null,null,null,null,null,"292　","産業用電気機械器具製造業",null,null,null,null,null,null,null,null,"292　 産業用電気機械器具製造業"]
[null,null,null,null,null,null,"293　","民生用電気機械器具製造業",null,null,null,null,null,null,null,null,"293　 民生用電気機械器具製造業"]
[null,null,null,null,null,null,"294　","電球・電気照明器具製造業",null,null,null,null,null,null,null,null,"294　 電球・電気照明器具製造業"]
[null,null,null,null,null,null,"295　","電池製造業",null,null,null,null,null,null,null,null,"295　 電池製造業"]
[null,null,null,null,null,null,"296　","電子応用装置製造業",null,null,null,null,null,null,null,null,"296　 電子応用装置製造業"]
[null,null,null,null,null,null,"297　","電気計測器製造業",null,null,null,null,null,null,null,null,"297　 電気計測器製造業"]
[null,null,null,null,null,null,"299　","その他の電気機械器具製造業",null,null,null,null,null,null,null,null,"299　 その他の電気機械器具製造業"]
[null,null,null,null,30,"情報通信機械器具製造業","300　","管理，補助的経済活動を行う事業所（30情報通信機械器具製造業）",null,null,null,null,null,null,null,{"$f":"E210&\" \"&F210","v":"30 情報通信機械器具製造業"},"300　 管理，補助的経済活動を行う事業所（30情報通信機械器具製造業）"]
[null,null,null,null,null,null,"301　","通信機械器具・同関連機械器具製造業",null,null,null,null,null,null,null,null,"301　 通信機械器具・同関連機械器具製造業"]
[null,null,null,null,null,null,"302　","映像・音響機械器具製造業",null,null,null,null,null,null,null,null,"302　 映像・音響機械器具製造業"]
[null,null,null,null,null,null,"303　","電子計算機・同附属装置製造業",null,null,null,null,null,null,null,null,"303　 電子計算機・同附属装置製造業"]
[null,null,null,null,31,"輸送用機械器具製造業","310　","管理，補助的経済活動を行う事業所（31輸送用機械器具製造業）",null,null,null,null,null,null,null,{"$f":"E214&\" \"&F214","v":"31 輸送用機械器具製造業"},"310　 管理，補助的経済活動を行う事業所（31輸送用機械器具製造業）"]
[null,null,null,null,null,null,"311　","自動車・同附属品製造業",null,null,null,null,null,null,null,null,"311　 自動車・同附属品製造業"]
[null,null,null,null,null,null,"312　","鉄道車両・同部分品製造業",null,null,null,null,null,null,null,null,"312　 鉄道車両・同部分品製造業"]
[null,null,null,null,null,null,"313　","船舶製造・修理業，舶用機関製造業",null,null,null,null,null,null,null,null,"313　 船舶製造・修理業，舶用機関製造業"]
[null,null,null,null,null,null,"314　","航空機・同附属品製造業",null,null,null,null,null,null,null,null,"314　 航空機・同附属品製造業"]
[null,null,null,null,null,null,"315　","産業用運搬車両・同部分品・附属品製造業",null,null,null,null,null,null,null,null,"315　 産業用運搬車両・同部分品・附属品製造業"]
[null,null,null,null,null,null,"319　","その他の輸送用機械器具製造業",null,null,null,null,null,null,null,null,"319　 その他の輸送用機械器具製造業"]
[null,null,null,null,32,"その他の製造業","320　","管理，補助的経済活動を行う事業所（32その他の製造業）",null,null,null,null,null,null,null,{"$f":"E221&\" \"&F221","v":"32 その他の製造業"},"320　 管理，補助的経済活動を行う事業所（32その他の製造業）"]
[null,null,null,null,null,null,"321　","貴金属・宝石製品製造業",null,null,null,null,null,null,null,null,"321　 貴金属・宝石製品製造業"]
[null,null,null,null,null,null,"322　","装身具・装飾品・ボタン・同関連品製造業（貴金属・宝石製を除く）",null,null,null,null,null,null,null,null,"322　 装身具・装飾品・ボタン・同関連品製造業（貴金属・宝石製を除く）"]
[null,null,null,null,null,null,"323　","時計・同部分品製造業",null,null,null,null,null,null,null,null,"323　 時計・同部分品製造業"]
[null,null,null,null,null,null,"324　","楽器製造業",null,null,null,null,null,null,null,null,"324　 楽器製造業"]
[null,null,null,null,null,null,"325　","がん具・運動用具製造業",null,null,null,null,null,null,null,null,"325　 がん具・運動用具製造業"]
[null,null,null,null,null,null,"326　","ペン・鉛筆・絵画用品・その他の事務用品製造業",null,null,null,null,null,null,null,null,"326　 ペン・鉛筆・絵画用品・その他の事務用品製造業"]
[null,null,null,null,null,null,"327　","漆器製造業",null,null,null,null,null,null,null,null,"327　 漆器製造業"]
[null,null,null,null,null,null,"328　","畳等生活雑貨製品製造業",null,null,null,null,null,null,null,null,"328　 畳等生活雑貨製品製造業"]
[null,null,null,null,null,null,"329　","他に分類されない製造業",null,null,null,null,null,null,null,null,"329　 他に分類されない製造業"]
[null,null,"F","電気・ガス・熱供給・水道業 ",33,"電気業","330　","管理，補助的経済活動を行う事業所（33電気業）",null,null,null,null,null,null,null,{"$f":"E231&\" \"&F231","v":"33 電気業"},"330　 管理，補助的経済活動を行う事業所（33電気業）"]
[null,null,null,null,null,null,"331　","電気業",null,null,null,null,null,null,null,null,"331　 電気業"]
[null,null,null,null,34,"ガス業","340　","管理，補助的経済活動を行う事業所（34ガス業）",null,null,null,null,null,null,null,{"$f":"E233&\" \"&F233","v":"34 ガス業"},"340　 管理，補助的経済活動を行う事業所（34ガス業）"]
[null,null,null,null,null,null,"341　","ガス業",null,null,null,null,null,null,null,null,"341　 ガス業"]
[null,null,null,null,35,"熱供給業","350　","管理，補助的経済活動を行う事業所（35熱供給業）",null,null,null,null,null,null,null,{"$f":"E235&\" \"&F235","v":"35 熱供給業"},"350　 管理，補助的経済活動を行う事業所（35熱供給業）"]
[null,null,null,null,null,null,"351　","熱供給業",null,null,null,null,null,null,null,null,"351　 熱供給業"]
[null,null,null,null,36,"水道業","360　","管理，補助的経済活動を行う事業所（36水道業）",null,null,null,null,null,null,null,{"$f":"E237&\" \"&F237","v":"36 水道業"},"360　 管理，補助的経済活動を行う事業所（36水道業）"]
[null,null,null,null,null,null,"361　","上水道業",null,null,null,null,null,null,null,null,"361　 上水道業"]
[null,null,null,null,null,null,"362　","工業用水道業",null,null,null,null,null,null,null,null,"362　 工業用水道業"]
[null,null,null,null,null,null,"363　","下水道業",null,null,null,null,null,null,null,null,"363　 下水道業"]
[null,null,"G","情報通信業",37,"通信業","370　","管理，補助的経済活動を行う事業所（37通信業）",null,null,null,null,null,null,null,{"$f":"E241&\" \"&F241","v":"37 通信業"},"370　 管理，補助的経済活動を行う事業所（37通信業）"]
[null,null,null,null,null,null,"371　","固定電気通信業",null,null,null,null,null,null,null,null,"371　 固定電気通信業"]
[null,null,null,null,null,null,"372　","移動電気通信業",null,null,null,null,null,null,null,null,"372　 移動電気通信業"]
[null,null,null,null,null,null,"373　","電気通信に附帯するサービス業",null,null,null,null,null,null,null,null,"373　 電気通信に附帯するサービス業"]
[null,null,null,null,38,"放送業","380　","管理，補助的経済活動を行う事業所（38放送業）",null,null,null,null,null,null,null,{"$f":"E245&\" \"&F245","v":"38 放送業"},"380　 管理，補助的経済活動を行う事業所（38放送業）"]
[null,null,null,null,null,null,"381　","公共放送業（有線放送業を除く）",null,null,null,null,null,null,null,null,"381　 公共放送業（有線放送業を除く）"]
[null,null,null,null,null,null,"382　","民間放送業（有線放送業を除く）",null,null,null,null,null,null,null,null,"382　 民間放送業（有線放送業を除く）"]
[null,null,null,null,null,null,"383　","有線放送業",null,null,null,null,null,null,null,null,"383　 有線放送業"]
[null,null,null,null,39,"情報サービス業","390　","管理，補助的経済活動を行う事業所（39情報サービス業）",null,null,null,null,null,null,null,{"$f":"E249&\" \"&F249","v":"39 情報サービス業"},"390　 管理，補助的経済活動を行う事業所（39情報サービス業）"]
[null,null,null,null,null,null,"391　","ソフトウェア業",null,null,null,null,null,null,null,null,"391　 ソフトウェア業"]
[null,null,null,null,null,null,"392　","情報処理・提供サービス業",null,null,null,null,null,null,null,null,"392　 情報処理・提供サービス業"]
[null,null,null,null,40,"インターネット附随サービス業","400　","管理，補助的経済活動を行う事業所（40インターネット附随サービス業）",null,null,null,null,null,null,null,{"$f":"E252&\" \"&F252","v":"40 インターネット附随サービス業"},"400　 管理，補助的経済活動を行う事業所（40インターネット附随サービス業）"]
[null,null,null,null,null,null,"401　","インターネット附随サービス業",null,null,null,null,null,null,null,null,"401　 インターネット附随サービス業"]
[null,null,null,null,41,"映像・音声・文字情報制作業","410　","管理，補助的経済活動を行う事業所（41映像・音声・文字情報制作業）",null,null,null,null,null,null,null,{"$f":"E254&\" \"&F254","v":"41 映像・音声・文字情報制作業"},"410　 管理，補助的経済活動を行う事業所（41映像・音声・文字情報制作業）"]
[null,null,null,null,null,null,"411　","映像情報制作・配給業",null,null,null,null,null,null,null,null,"411　 映像情報制作・配給業"]
[null,null,null,null,null,null,"412　","音声情報制作業",null,null,null,null,null,null,null,null,"412　 音声情報制作業"]
[null,null,null,null,null,null,"413　","新聞業",null,null,null,null,null,null,null,null,"413　 新聞業"]
[null,null,null,null,null,null,"414　","出版業",null,null,null,null,null,null,null,null,{"$f":"G258&\" \"&H258","v":"414　 出版業"}]
[null,null,null,null,null,null,"415　","広告制作業",null,null,null,null,null,null,null,null,"415　 広告制作業"]
[null,null,null,null,null,null,"416　","映像・音声・文字情報制作に附帯するサービス業",null,null,null,null,null,null,null,null,"416　 映像・音声・文字情報制作に附帯するサービス業"]
[null,null,"H","運輸業，郵便業 ",42,"鉄道業","420　","管理，補助的経済活動を行う事業所（42鉄道業）",null,null,null,null,null,null,null,{"$f":"E261&\" \"&F261","v":"42 鉄道業"},"420　 管理，補助的経済活動を行う事業所（42鉄道業）"]
[null,null,null,null,null,null,"421　","鉄道業",null,null,null,null,null,null,null,null,"421　 鉄道業"]
[null,null,null,null,43,"道路旅客運送業","430　","管理，補助的経済活動を行う事業所（43道路旅客運送業）",null,null,null,null,null,null,null,{"$f":"E263&\" \"&F263","v":"43 道路旅客運送業"},"430　 管理，補助的経済活動を行う事業所（43道路旅客運送業）"]
[null,null,null,null,null,null,"431　","一般乗合旅客自動車運送業",null,null,null,null,null,null,null,null,"431　 一般乗合旅客自動車運送業"]
[null,null,null,null,null,null,"432　","一般乗用旅客自動車運送業",null,null,null,null,null,null,null,null,"432　 一般乗用旅客自動車運送業"]
[null,null,null,null,null,null,"433　","一般貸切旅客自動車運送業",null,null,null,null,null,null,null,null,"433　 一般貸切旅客自動車運送業"]
[null,null,null,null,null,null,"439　","その他の道路旅客運送業",null,null,null,null,null,null,null,null,"439　 その他の道路旅客運送業"]
[null,null,null,null,44,"道路貨物運送業","440　","管理，補助的経済活動を行う事業所（44道路貨物運送業）",null,null,null,null,null,null,null,{"$f":"E268&\" \"&F268","v":"44 道路貨物運送業"},"440　 管理，補助的経済活動を行う事業所（44道路貨物運送業）"]
[null,null,null,null,null,null,"441　","一般貨物自動車運送業",null,null,null,null,null,null,null,null,"441　 一般貨物自動車運送業"]
[null,null,null,null,null,null,"442　","特定貨物自動車運送業",null,null,null,null,null,null,null,null,"442　 特定貨物自動車運送業"]
[null,null,null,null,null,null,"443　","貨物軽自動車運送業",null,null,null,null,null,null,null,null,"443　 貨物軽自動車運送業"]
[null,null,null,null,null,null,"444　","集配利用運送業",null,null,null,null,null,null,null,null,"444　 集配利用運送業"]
[null,null,null,null,null,null,"449　","その他の道路貨物運送業",null,null,null,null,null,null,null,null,"449　 その他の道路貨物運送業"]
[null,null,null,null,45,"水運業","450　","管理，補助的経済活動を行う事業所（45水運業）",null,null,null,null,null,null,null,{"$f":"E274&\" \"&F274","v":"45 水運業"},"450　 管理，補助的経済活動を行う事業所（45水運業）"]
[null,null,null,null,null,null,"451　","外航海運業",null,null,null,null,null,null,null,null,"451　 外航海運業"]
[null,null,null,null,null,null,"452　","沿海海運業",null,null,null,null,null,null,null,null,"452　 沿海海運業"]
[null,null,null,null,null,null,"453　","内陸水運業",null,null,null,null,null,null,null,null,"453　 内陸水運業"]
[null,null,null,null,null,null,"454　","船舶貸渡業",null,null,null,null,null,null,null,null,"454　 船舶貸渡業"]
[null,null,null,null,46,"航空運輸業","460　","管理，補助的経済活動を行う事業所（46航空運輸業）",null,null,null,null,null,null,null,{"$f":"E279&\" \"&F279","v":"46 航空運輸業"},"460　 管理，補助的経済活動を行う事業所（46航空運輸業）"]
[null,null,null,null,null,null,"461　","航空運送業",null,null,null,null,null,null,null,null,"461　 航空運送業"]
[null,null,null,null,null,null,"462　","航空機使用業（航空運送業を除く）",null,null,null,null,null,null,null,null,"462　 航空機使用業（航空運送業を除く）"]
[null,null,null,null,47,"倉庫業","470　","管理，補助的経済活動を行う事業所（47倉庫業）",null,null,null,null,null,null,null,{"$f":"E282&\" \"&F282","v":"47 倉庫業"},"470　 管理，補助的経済活動を行う事業所（47倉庫業）"]
[null,null,null,null,null,null,"471　","倉庫業（冷蔵倉庫業を除く）",null,null,null,null,null,null,null,null,"471　 倉庫業（冷蔵倉庫業を除く）"]
[null,null,null,null,null,null,"472　","冷蔵倉庫業",null,null,null,null,null,null,null,null,"472　 冷蔵倉庫業"]
[null,null,null,null,48,"運輸に附帯するサービス業","480　","管理，補助的経済活動を行う事業所（48運輸に附帯するサービス業）",null,null,null,null,null,null,null,{"$f":"E285&\" \"&F285","v":"48 運輸に附帯するサービス業"},"480　 管理，補助的経済活動を行う事業所（48運輸に附帯するサービス業）"]
[null,null,null,null,null,null,"481　","港湾運送業",null,null,null,null,null,null,null,null,"481　 港湾運送業"]
[null,null,null,null,null,null,"482　","貨物運送取扱業（集配利用運送業を除く）",null,null,null,null,null,null,null,null,"482　 貨物運送取扱業（集配利用運送業を除く）"]
[null,null,null,null,null,null,"483　","運送代理店",null,null,null,null,null,null,null,null,"483　 運送代理店"]
[null,null,null,null,null,null,"484　","こん包業",null,null,null,null,null,null,null,null,"484　 こん包業"]
[null,null,null,null,null,null,"485　","運輸施設提供業",null,null,null,null,null,null,null,null,"485　 運輸施設提供業"]
[null,null,null,null,null,null,"489　","その他の運輸に附帯するサービス業",null,null,null,null,null,null,null,null,"489　 その他の運輸に附帯するサービス業"]
[null,null,null,null,49,"郵便業（信書便事業を含む）","490　","管理，補助的経済活動を行う事業所（49郵便業）",null,null,null,null,null,null,null,{"$f":"E292&\" \"&F292","v":"49 郵便業（信書便事業を含む）"},"490　 管理，補助的経済活動を行う事業所（49郵便業）"]
[null,null,null,null,null,null,"491　","郵便業（信書便事業を含む）",null,null,null,null,null,null,null,null,"491　 郵便業（信書便事業を含む）"]
[null,null,"I","卸売業，小売業 ",50,"各種商品卸売業","500　","管理，補助的経済活動を行う事業所（50各種商品卸売業）",null,null,null,null,null,null,null,{"$f":"E294&\" \"&F294","v":"50 各種商品卸売業"},"500　 管理，補助的経済活動を行う事業所（50各種商品卸売業）"]
[null,null,null,null,null,null,"501　","各種商品卸売業",null,null,null,null,null,null,null,null,"501　 各種商品卸売業"]
[null,null,null,null,51,"繊維・衣服等卸売業","510　","管理，補助的経済活動を行う事業所（51繊維・衣服等卸売業）",null,null,null,null,null,null,null,{"$f":"E296&\" \"&F296","v":"51 繊維・衣服等卸売業"},"510　 管理，補助的経済活動を行う事業所（51繊維・衣服等卸売業）"]
[null,null,null,null,null,null,"511　","繊維品卸売業（衣服，身の回り品を除く）",null,null,null,null,null,null,null,null,"511　 繊維品卸売業（衣服，身の回り品を除く）"]
[null,null,null,null,null,null,"512　","衣服卸売業",null,null,null,null,null,null,null,null,"512　 衣服卸売業"]
[null,null,null,null,null,null,"513　","身の回り品卸売業",null,null,null,null,null,null,null,null,"513　 身の回り品卸売業"]
[null,null,null,null,52,"飲食料品卸売業","520　","管理，補助的経済活動を行う事業所（52飲食料品卸売業）",null,null,null,null,null,null,null,{"$f":"E300&\" \"&F300","v":"52 飲食料品卸売業"},"520　 管理，補助的経済活動を行う事業所（52飲食料品卸売業）"]
[null,null,null,null,null,null,"521　","農畜産物・水産物卸売業",null,null,null,null,null,null,null,null,"521　 農畜産物・水産物卸売業"]
[null,null,null,null,null,null,"522　","食料・飲料卸売業",null,null,null,null,null,null,null,null,"522　 食料・飲料卸売業"]
[null,null,null,null,53,"建築材料，鉱物・金属材料等卸売業","530　","管理，補助的経済活動を行う事業所（53建築材料，鉱物・金属材料等卸売業）",null,null,null,null,null,null,null,{"$f":"E303&\" \"&F303","v":"53 建築材料，鉱物・金属材料等卸売業"},"530　 管理，補助的経済活動を行う事業所（53建築材料，鉱物・金属材料等卸売業）"]
[null,null,null,null,null,null,"531　","建築材料卸売業",null,null,null,null,null,null,null,null,"531　 建築材料卸売業"]
[null,null,null,null,null,null,"532　","化学製品卸売業",null,null,null,null,null,null,null,null,"532　 化学製品卸売業"]
[null,null,null,null,null,null,"533　","石油・鉱物卸売業",null,null,null,null,null,null,null,null,"533　 石油・鉱物卸売業"]
[null,null,null,null,null,null,"534　","鉄鋼製品卸売業",null,null,null,null,null,null,null,null,"534　 鉄鋼製品卸売業"]
[null,null,null,null,null,null,"535　","非鉄金属卸売業",null,null,null,null,null,null,null,null,"535　 非鉄金属卸売業"]
[null,null,null,null,null,null,"536　","再生資源卸売業",null,null,null,null,null,null,null,null,"536　 再生資源卸売業"]
[null,null,null,null,54,"機械器具卸売業","540　","管理，補助的経済活動を行う事業所（54機械器具卸売業）",null,null,null,null,null,null,null,{"$f":"E310&\" \"&F310","v":"54 機械器具卸売業"},"540　 管理，補助的経済活動を行う事業所（54機械器具卸売業）"]
[null,null,null,null,null,null,"541　","産業機械器具卸売業",null,null,null,null,null,null,null,null,"541　 産業機械器具卸売業"]
[null,null,null,null,null,null,"542　","自動車卸売業",null,null,null,null,null,null,null,null,"542　 自動車卸売業"]
[null,null,null,null,null,null,"543　","電気機械器具卸売業",null,null,null,null,null,null,null,null,"543　 電気機械器具卸売業"]
[null,null,null,null,null,null,"549　","その他の機械器具卸売業",null,null,null,null,null,null,null,null,"549　 その他の機械器具卸売業"]
[null,null,null,null,55,"その他の卸売業","550　","管理，補助的経済活動を行う事業所（55その他の卸売業）",null,null,null,null,null,null,null,{"$f":"E315&\" \"&F315","v":"55 その他の卸売業"},"550　 管理，補助的経済活動を行う事業所（55その他の卸売業）"]
[null,null,null,null,null,null,"551　","家具・建具・じゅう器等卸売業",null,null,null,null,null,null,null,null,"551　 家具・建具・じゅう器等卸売業"]
[null,null,null,null,null,null,"552　","医薬品・化粧品等卸売業",null,null,null,null,null,null,null,null,"552　 医薬品・化粧品等卸売業"]
[null,null,null,null,null,null,"553　","紙・紙製品卸売業",null,null,null,null,null,null,null,null,"553　 紙・紙製品卸売業"]
[null,null,null,null,null,null,"559　","他に分類されない卸売業",null,null,null,null,null,null,null,null,"559　 他に分類されない卸売業"]
[null,null,null,null,56,"各種商品小売業","560　","管理，補助的経済活動を行う事業所（56各種商品小売業）",null,null,null,null,null,null,null,{"$f":"E320&\" \"&F320","v":"56 各種商品小売業"},"560　 管理，補助的経済活動を行う事業所（56各種商品小売業）"]
[null,null,null,null,null,null,"561　","百貨店，総合スーパー",null,null,null,null,null,null,null,null,"561　 百貨店，総合スーパー"]
[null,null,null,null,null,null,"569　","その他の各種商品小売業（従業者が常時50人未満のもの）",null,null,null,null,null,null,null,null,{"$f":"G322&\" \"&H322","v":"569　 その他の各種商品小売業（従業者が常時50人未満のもの）"}]
[null,null,null,null,57,"織物・衣服・身の回り品小売業","570　","管理，補助的経済活動を行う事業所（57織物・衣服・身の回り品小売業）",null,null,null,null,null,null,null,{"$f":"E323&\" \"&F323","v":"57 織物・衣服・身の回り品小売業"},"570　 管理，補助的経済活動を行う事業所（57織物・衣服・身の回り品小売業）"]
[null,null,null,null,null,null,"571　","呉服・服地・寝具小売業",null,null,null,null,null,null,null,null,"571　 呉服・服地・寝具小売業"]
[null,null,null,null,null,null,"572　","男子服小売業",null,null,null,null,null,null,null,null,"572　 男子服小売業"]
[null,null,null,null,null,null,"573　","婦人・子供服小売業",null,null,null,null,null,null,null,null,"573　 婦人・子供服小売業"]
[null,null,null,null,null,null,"574　","靴・履物小売業",null,null,null,null,null,null,null,null,"574　 靴・履物小売業"]
[null,null,null,null,null,null,"579　","その他の織物・衣服・身の回り品小売業",null,null,null,null,null,null,null,null,"579　 その他の織物・衣服・身の回り品小売業"]
[null,null,null,null,58,"飲食料品小売業","580　","管理，補助的経済活動を行う事業所（58飲食料品小売業）",null,null,null,null,null,null,null,{"$f":"E329&\" \"&F329","v":"58 飲食料品小売業"},"580　 管理，補助的経済活動を行う事業所（58飲食料品小売業）"]
[null,null,null,null,null,null,"581　","各種食料品小売業",null,null,null,null,null,null,null,null,"581　 各種食料品小売業"]
[null,null,null,null,null,null,"582　","野菜・果実小売業",null,null,null,null,null,null,null,null,"582　 野菜・果実小売業"]
[null,null,null,null,null,null,"583　","食肉小売業",null,null,null,null,null,null,null,null,"583　 食肉小売業"]
[null,null,null,null,null,null,"584　","鮮魚小売業",null,null,null,null,null,null,null,null,"584　 鮮魚小売業"]
[null,null,null,null,null,null,"585　","酒小売業",null,null,null,null,null,null,null,null,"585　 酒小売業"]
[null,null,null,null,null,null,"586　","菓子・パン小売業",null,null,null,null,null,null,null,null,"586　 菓子・パン小売業"]
[null,null,null,null,null,null,"589　","その他の飲食料品小売業",null,null,null,null,null,null,null,null,"589　 その他の飲食料品小売業"]
[null,null,null,null,59,"機械器具小売業","590　","管理，補助的経済活動を行う事業所（59機械器具小売業）",null,null,null,null,null,null,null,{"$f":"E337&\" \"&F337","v":"59 機械器具小売業"},"590　 管理，補助的経済活動を行う事業所（59機械器具小売業）"]
[null,null,null,null,null,null,"591　","自動車小売業",null,null,null,null,null,null,null,null,"591　 自動車小売業"]
[null,null,null,null,null,null,"592　","自転車小売業",null,null,null,null,null,null,null,null,"592　 自転車小売業"]
[null,null,null,null,null,null,"593　","機械器具小売業（自動車，自転車を除く）",null,null,null,null,null,null,null,null,"593　 機械器具小売業（自動車，自転車を除く）"]
[null,null,null,null,60,"その他の小売業","600　","管理，補助的経済活動を行う事業所（60その他の小売業）",null,null,null,null,null,null,null,{"$f":"E341&\" \"&F341","v":"60 その他の小売業"},"600　 管理，補助的経済活動を行う事業所（60その他の小売業）"]
[null,null,null,null,null,null,"601　","家具・建具・畳小売業",null,null,null,null,null,null,null,null,"601　 家具・建具・畳小売業"]
[null,null,null,null,null,null,"602　","じゅう器小売業",null,null,null,null,null,null,null,null,"602　 じゅう器小売業"]
[null,null,null,null,null,null,"603　","医薬品・化粧品小売業",null,null,null,null,null,null,null,null,"603　 医薬品・化粧品小売業"]
[null,null,null,null,null,null,"604　","農耕用品小売業",null,null,null,null,null,null,null,null,"604　 農耕用品小売業"]
[null,null,null,null,null,null,"605　","燃料小売業",null,null,null,null,null,null,null,null,"605　 燃料小売業"]
[null,null,null,null,null,null,"606　","書籍・文房具小売業",null,null,null,null,null,null,null,null,"606　 書籍・文房具小売業"]
[null,null,null,null,null,null,"607　","スポーツ用品・がん具・娯楽用品・楽器小売業",null,null,null,null,null,null,null,null,"607　 スポーツ用品・がん具・娯楽用品・楽器小売業"]
[null,null,null,null,null,null,"608　","写真機・時計・眼鏡小売業",null,null,null,null,null,null,null,null,"608　 写真機・時計・眼鏡小売業"]
[null,null,null,null,null,null,"609　","他に分類されない小売業",null,null,null,null,null,null,null,null,"609　 他に分類されない小売業"]
[null,null,null,null,61,"無店舗小売業","610　","管理，補助的経済活動を行う事業所（61無店舗小売業）",null,null,null,null,null,null,null,{"$f":"E351&\" \"&F351","v":"61 無店舗小売業"},"610　 管理，補助的経済活動を行う事業所（61無店舗小売業）"]
[null,null,null,null,null,null,"611　","通信販売・訪問販売小売業",null,null,null,null,null,null,null,null,"611　 通信販売・訪問販売小売業"]
[null,null,null,null,null,null,"612　","自動販売機による小売業",null,null,null,null,null,null,null,null,"612　 自動販売機による小売業"]
[null,null,null,null,null,null,"619　","その他の無店舗小売業",null,null,null,null,null,null,null,null,"619　 その他の無店舗小売業"]
[null,null,"J","金融業，保険業",62,"銀行業","620　","管理，補助的経済活動を行う事業所（62銀行業）",null,null,null,null,null,null,null,{"$f":"E355&\" \"&F355","v":"62 銀行業"},"620　 管理，補助的経済活動を行う事業所（62銀行業）"]
[null,null,null,null,null,null,"621　","中央銀行",null,null,null,null,null,null,null,null,"621　 中央銀行"]
[null,null,null,null,null,null,"622　","銀行（中央銀行を除く）",null,null,null,null,null,null,null,null,"622　 銀行（中央銀行を除く）"]
[null,null,null,null,63,"協同組織金融業","630　","管理，補助的経済活動を行う事業所（63協同組織金融業）",null,null,null,null,null,null,null,{"$f":"E358&\" \"&F358","v":"63 協同組織金融業"},"630　 管理，補助的経済活動を行う事業所（63協同組織金融業）"]
[null,null,null,null,null,null,"631　","中小企業等金融業",null,null,null,null,null,null,null,null,"631　 中小企業等金融業"]
[null,null,null,null,null,null,"632　","農林水産金融業",null,null,null,null,null,null,null,null,"632　 農林水産金融業"]
[null,null,null,null,64,"貸金業，クレジットカード業等非預金信用機関","640　","管理，補助的経済活動を行う事業所（64貸金業，クレジットカード業等非預金信用機関）",null,null,null,null,null,null,null,{"$f":"E361&\" \"&F361","v":"64 貸金業，クレジットカード業等非預金信用機関"},"640　 管理，補助的経済活動を行う事業所（64貸金業，クレジットカード業等非預金信用機関）"]
[null,null,null,null,null,null,"641　","貸金業",null,null,null,null,null,null,null,null,"641　 貸金業"]
[null,null,null,null,null,null,"642　","質屋",null,null,null,null,null,null,null,null,"642　 質屋"]
[null,null,null,null,null,null,"643　","クレジットカード業，割賦金融業",null,null,null,null,null,null,null,null,"643　 クレジットカード業，割賦金融業"]
[null,null,null,null,null,null,"649　","その他の非預金信用機関",null,null,null,null,null,null,null,null,"649　 その他の非預金信用機関"]
[null,null,null,null,65,"金融商品取引業，商品先物取引業","650　","管理，補助的経済活動を行う事業所（65金融商品取引業，商品先物取引業）",null,null,null,null,null,null,null,{"$f":"E366&\" \"&F366","v":"65 金融商品取引業，商品先物取引業"},"650　 管理，補助的経済活動を行う事業所（65金融商品取引業，商品先物取引業）"]
[null,null,null,null,null,null,"651　","金融商品取引業",null,null,null,null,null,null,null,null,"651　 金融商品取引業"]
[null,null,null,null,null,null,"652　","商品先物取引業，商品投資顧問業",null,null,null,null,null,null,null,null,"652　 商品先物取引業，商品投資顧問業"]
[null,null,null,null,66,"補助的金融業等","660　","管理，補助的経済活動を行う事業所（66補助的金融業等）",null,null,null,null,null,null,null,{"$f":"E369&\" \"&F369","v":"66 補助的金融業等"},"660　 管理，補助的経済活動を行う事業所（66補助的金融業等）"]
[null,null,null,null,null,null,"661　","補助的金融業，金融附帯業",null,null,null,null,null,null,null,null,"661　 補助的金融業，金融附帯業"]
[null,null,null,null,null,null,"662　","信託業",null,null,null,null,null,null,null,null,"662　 信託業"]
[null,null,null,null,null,null,"663　","金融代理業",null,null,null,null,null,null,null,null,"663　 金融代理業"]
[null,null,null,null,67,"保険業（保険媒介代理業，保険サービス業を含む）","670　","管理，補助的経済活動を行う事業所（67保険業）",null,null,null,null,null,null,null,{"$f":"E373&\" \"&F373","v":"67 保険業（保険媒介代理業，保険サービス業を含む）"},"670　 管理，補助的経済活動を行う事業所（67保険業）"]
[null,null,null,null,null,null,"671　","生命保険業",null,null,null,null,null,null,null,null,"671　 生命保険業"]
[null,null,null,null,null,null,"672　","損害保険業",null,null,null,null,null,null,null,null,"672　 損害保険業"]
[null,null,null,null,null,null,"673　","共済事業，少額短期保険業",null,null,null,null,null,null,null,null,"673　 共済事業，少額短期保険業"]
[null,null,null,null,null,null,"674　","保険媒介代理業",null,null,null,null,null,null,null,null,"674　 保険媒介代理業"]
[null,null,null,null,null,null,"675　","保険サービス業",null,null,null,null,null,null,null,null,"675　 保険サービス業"]
[null,null,"K","不動産業，物品賃貸業 ",68,"不動産取引業","680　","管理，補助的経済活動を行う事業所（68不動産取引業）",null,null,null,null,null,null,null,{"$f":"E379&\" \"&F379","v":"68 不動産取引業"},"680　 管理，補助的経済活動を行う事業所（68不動産取引業）"]
[null,null,null,null,null,null,"681　","建物売買業，土地売買業",null,null,null,null,null,null,null,null,"681　 建物売買業，土地売買業"]
[null,null,null,null,null,null,"682　","不動産代理業・仲介業",null,null,null,null,null,null,null,null,"682　 不動産代理業・仲介業"]
[null,null,null,null,69,"不動産賃貸業・管理業","690　","管理，補助的経済活動を行う事業所（69不動産賃貸業・管理業）",null,null,null,null,null,null,null,{"$f":"E382&\" \"&F382","v":"69 不動産賃貸業・管理業"},"690　 管理，補助的経済活動を行う事業所（69不動産賃貸業・管理業）"]
[null,null,null,null,null,null,"691　","不動産賃貸業（貸家業，貸間業を除く）",null,null,null,null,null,null,null,null,"691　 不動産賃貸業（貸家業，貸間業を除く）"]
[null,null,null,null,null,null,"692　","貸家業，貸間業",null,null,null,null,null,null,null,null,"692　 貸家業，貸間業"]
[null,null,null,null,null,null,"693　","駐車場業",null,null,null,null,null,null,null,null,"693　 駐車場業"]
[null,null,null,null,null,null,"694　","不動産管理業",null,null,null,null,null,null,null,null,{"$f":"G386&\" \"&H386","v":"694　 不動産管理業"}]
[null,null,null,null,70,"物品賃貸業","700　","管理，補助的経済活動を行う事業所（70物品賃貸業）",null,null,null,null,null,null,null,{"$f":"E387&\" \"&F387","v":"70 物品賃貸業"},"700　 管理，補助的経済活動を行う事業所（70物品賃貸業）"]
[null,null,null,null,null,null,"701　","各種物品賃貸業",null,null,null,null,null,null,null,null,"701　 各種物品賃貸業"]
[null,null,null,null,null,null,"702　","産業用機械器具賃貸業",null,null,null,null,null,null,null,null,"702　 産業用機械器具賃貸業"]
[null,null,null,null,null,null,"703　","事務用機械器具賃貸業",null,null,null,null,null,null,null,null,"703　 事務用機械器具賃貸業"]
[null,null,null,null,null,null,"704　","自動車賃貸業",null,null,null,null,null,null,null,null,"704　 自動車賃貸業"]
[null,null,null,null,null,null,"705　","スポーツ・娯楽用品賃貸業",null,null,null,null,null,null,null,null,"705　 スポーツ・娯楽用品賃貸業"]
[null,null,null,null,null,null,"709　","その他の物品賃貸業",null,null,null,null,null,null,null,null,"709　 その他の物品賃貸業"]
[null,null,"L","学術研究，専門・技術サービス業 ",71,"学術・開発研究機関","710　","管理，補助的経済活動を行う事業所（71学術・開発研究機関）",null,null,null,null,null,null,null,{"$f":"E394&\" \"&F394","v":"71 学術・開発研究機関"},"710　 管理，補助的経済活動を行う事業所（71学術・開発研究機関）"]
[null,null,null,null,null,null,"711　","自然科学研究所",null,null,null,null,null,null,null,null,"711　 自然科学研究所"]
[null,null,null,null,null,null,"712　","人文・社会科学研究所",null,null,null,null,null,null,null,null,"712　 人文・社会科学研究所"]
[null,null,null,null,72,"専門サービス業（他に分類されないもの）","720　","管理，補助的経済活動を行う事業所（72専門サービス業）",null,null,null,null,null,null,null,{"$f":"E397&\" \"&F397","v":"72 専門サービス業（他に分類されないもの）"},"720　 管理，補助的経済活動を行う事業所（72専門サービス業）"]
[null,null,null,null,null,null,"721　","法律事務所，特許事務所",null,null,null,null,null,null,null,null,"721　 法律事務所，特許事務所"]
[null,null,null,null,null,null,"722　","公証人役場，司法書士事務所，土地家屋調査士事務所",null,null,null,null,null,null,null,null,"722　 公証人役場，司法書士事務所，土地家屋調査士事務所"]
[null,null,null,null,null,null,"723　","行政書士事務所",null,null,null,null,null,null,null,null,"723　 行政書士事務所"]
[null,null,null,null,null,null,"724　","公認会計士事務所，税理士事務所",null,null,null,null,null,null,null,null,"724　 公認会計士事務所，税理士事務所"]
[null,null,null,null,null,null,"725　","社会保険労務士事務所",null,null,null,null,null,null,null,null,"725　 社会保険労務士事務所"]
[null,null,null,null,null,null,"726　","デザイン業",null,null,null,null,null,null,null,null,"726　 デザイン業"]
[null,null,null,null,null,null,"727　","著述・芸術家業",null,null,null,null,null,null,null,null,"727　 著述・芸術家業"]
[null,null,null,null,null,null,"728　","経営コンサルタント業，純粋持株会社",null,null,null,null,null,null,null,null,"728　 経営コンサルタント業，純粋持株会社"]
[null,null,null,null,null,null,"729　","その他の専門サービス業",null,null,null,null,null,null,null,null,"729　 その他の専門サービス業"]
[null,null,null,null,73,"広告業","730　","管理，補助的経済活動を行う事業所（73広告業）",null,null,null,null,null,null,null,{"$f":"E407&\" \"&F407","v":"73 広告業"},"730　 管理，補助的経済活動を行う事業所（73広告業）"]
[null,null,null,null,null,null,"731　","広告業",null,null,null,null,null,null,null,null,"731　 広告業"]
[null,null,null,null,74,"技術サービス業（他に分類されないもの）","740　","管理，補助的経済活動を行う事業所（74技術サービス業）",null,null,null,null,null,null,null,{"$f":"E409&\" \"&F409","v":"74 技術サービス業（他に分類されないもの）"},"740　 管理，補助的経済活動を行う事業所（74技術サービス業）"]
[null,null,null,null,null,null,"741　","獣医業",null,null,null,null,null,null,null,null,"741　 獣医業"]
[null,null,null,null,null,null,"742　","土木建築サービス業",null,null,null,null,null,null,null,null,"742　 土木建築サービス業"]
[null,null,null,null,null,null,"743　","機械設計業",null,null,null,null,null,null,null,null,"743　 機械設計業"]
[null,null,null,null,null,null,"744　","商品・非破壊検査業",null,null,null,null,null,null,null,null,"744　 商品・非破壊検査業"]
[null,null,null,null,null,null,"745　","計量証明業",null,null,null,null,null,null,null,null,"745　 計量証明業"]
[null,null,null,null,null,null,"746　","写真業",null,null,null,null,null,null,null,null,"746　 写真業"]
[null,null,null,null,null,null,"749　","その他の技術サービス業",null,null,null,null,null,null,null,null,"749　 その他の技術サービス業"]
[null,null,"M","宿泊業，飲食サービス業 ",75,"宿泊業","750　","管理，補助的経済活動を行う事業所（75宿泊業）",null,null,null,null,null,null,null,{"$f":"E417&\" \"&F417","v":"75 宿泊業"},"750　 管理，補助的経済活動を行う事業所（75宿泊業）"]
[null,null,null,null,null,null,"751　","旅館，ホテル",null,null,null,null,null,null,null,null,"751　 旅館，ホテル"]
[null,null,null,null,null,null,"752　","簡易宿所",null,null,null,null,null,null,null,null,"752　 簡易宿所"]
[null,null,null,null,null,null,"753　","下宿業",null,null,null,null,null,null,null,null,"753　 下宿業"]
[null,null,null,null,null,null,"759　","その他の宿泊業",null,null,null,null,null,null,null,null,"759　 その他の宿泊業"]
[null,null,null,null,76,"飲食店","760　","管理，補助的経済活動を行う事業所（76飲食店）",null,null,null,null,null,null,null,{"$f":"E422&\" \"&F422","v":"76 飲食店"},"760　 管理，補助的経済活動を行う事業所（76飲食店）"]
[null,null,null,null,null,null,"761　","食堂，レストラン（専門料理店を除く）",null,null,null,null,null,null,null,null,"761　 食堂，レストラン（専門料理店を除く）"]
[null,null,null,null,null,null,"762　","専門料理店",null,null,null,null,null,null,null,null,"762　 専門料理店"]
[null,null,null,null,null,null,"763　","そば・うどん店",null,null,null,null,null,null,null,null,"763　 そば・うどん店"]
[null,null,null,null,null,null,"764　","すし店",null,null,null,null,null,null,null,null,"764　 すし店"]
[null,null,null,null,null,null,"765　","酒場，ビヤホール",null,null,null,null,null,null,null,null,"765　 酒場，ビヤホール"]
[null,null,null,null,null,null,"766　","バー，キャバレー，ナイトクラブ",null,null,null,null,null,null,null,null,"766　 バー，キャバレー，ナイトクラブ"]
[null,null,null,null,null,null,"767　","喫茶店",null,null,null,null,null,null,null,null,"767　 喫茶店"]
[null,null,null,null,null,null,"769　","その他の飲食店",null,null,null,null,null,null,null,null,"769　 その他の飲食店"]
[null,null,null,null,77,"持ち帰り・配達飲食サービス業","770　","管理，補助的経済活動を行う事業所（77持ち帰り・配達飲食サービス業）",null,null,null,null,null,null,null,{"$f":"E431&\" \"&F431","v":"77 持ち帰り・配達飲食サービス業"},"770　 管理，補助的経済活動を行う事業所（77持ち帰り・配達飲食サービス業）"]
[null,null,null,null,null,null,"771　","持ち帰り飲食サービス業",null,null,null,null,null,null,null,null,"771　 持ち帰り飲食サービス業"]
[null,null,null,null,null,null,"772　","配達飲食サービス業",null,null,null,null,null,null,null,null,"772　 配達飲食サービス業"]
[null,null,"N","生活関連サービス業，娯楽業 ",78,"洗濯・理容・美容・浴場業","780　","管理，補助的経済活動を行う事業所（78洗濯・理容・美容・浴場業）",null,null,null,null,null,null,null,{"$f":"E434&\" \"&F434","v":"78 洗濯・理容・美容・浴場業"},"780　 管理，補助的経済活動を行う事業所（78洗濯・理容・美容・浴場業）"]
[null,null,null,null,null,null,"781　","洗濯業",null,null,null,null,null,null,null,null,"781　 洗濯業"]
[null,null,null,null,null,null,"782　","理容業",null,null,null,null,null,null,null,null,"782　 理容業"]
[null,null,null,null,null,null,"783　","美容業",null,null,null,null,null,null,null,null,"783　 美容業"]
[null,null,null,null,null,null,"784　","一般公衆浴場業",null,null,null,null,null,null,null,null,"784　 一般公衆浴場業"]
[null,null,null,null,null,null,"785　","その他の公衆浴場業",null,null,null,null,null,null,null,null,"785　 その他の公衆浴場業"]
[null,null,null,null,null,null,"789　","その他の洗濯・理容・美容・浴場業",null,null,null,null,null,null,null,null,"789　 その他の洗濯・理容・美容・浴場業"]
[null,null,null,null,79,"その他の生活関連サービス業","790　","管理，補助的経済活動を行う事業所（79その他の生活関連サービス業）",null,null,null,null,null,null,null,{"$f":"E441&\" \"&F441","v":"79 その他の生活関連サービス業"},"790　 管理，補助的経済活動を行う事業所（79その他の生活関連サービス業）"]
[null,null,null,null,null,null,"791　","旅行業",null,null,null,null,null,null,null,null,"791　 旅行業"]
[null,null,null,null,null,null,"792　","家事サービス業",null,null,null,null,null,null,null,null,"792　 家事サービス業"]
[null,null,null,null,null,null,"793　","衣服裁縫修理業",null,null,null,null,null,null,null,null,"793　 衣服裁縫修理業"]
[null,null,null,null,null,null,"794　","物品預り業",null,null,null,null,null,null,null,null,"794　 物品預り業"]
[null,null,null,null,null,null,"795　","火葬・墓地管理業",null,null,null,null,null,null,null,null,"795　 火葬・墓地管理業"]
[null,null,null,null,null,null,"796　","冠婚葬祭業",null,null,null,null,null,null,null,null,"796　 冠婚葬祭業"]
[null,null,null,null,null,null,"799　","他に分類されない生活関連サービス業",null,null,null,null,null,null,null,null,"799　 他に分類されない生活関連サービス業"]
[null,null,null,null,80,"娯楽業","800　","管理，補助的経済活動を行う事業所（80娯楽業）",null,null,null,null,null,null,null,{"$f":"E449&\" \"&F449","v":"80 娯楽業"},"800　 管理，補助的経済活動を行う事業所（80娯楽業）"]
[null,null,null,null,null,null,"801　","映画館",null,null,null,null,null,null,null,null,{"$f":"G450&\" \"&H450","v":"801　 映画館"}]
[null,null,null,null,null,null,"802　","興行場（別掲を除く），興行団",null,null,null,null,null,null,null,null,"802　 興行場（別掲を除く），興行団"]
[null,null,null,null,null,null,"803　","競輪・競馬等の競走場，競技団",null,null,null,null,null,null,null,null,"803　 競輪・競馬等の競走場，競技団"]
[null,null,null,null,null,null,"804　","スポーツ施設提供業",null,null,null,null,null,null,null,null,"804　 スポーツ施設提供業"]
[null,null,null,null,null,null,"805　","公園，遊園地",null,null,null,null,null,null,null,null,"805　 公園，遊園地"]
[null,null,null,null,null,null,"806　","遊戯場",null,null,null,null,null,null,null,null,"806　 遊戯場"]
[null,null,null,null,null,null,"809　","その他の娯楽業",null,null,null,null,null,null,null,null,"809　 その他の娯楽業"]
[null,null,"O","教育，学習支援業 ",81,"学校教育","810　","管理，補助的経済活動を行う事業所（81学校教育）",null,null,null,null,null,null,null,{"$f":"E457&\" \"&F457","v":"81 学校教育"},"810　 管理，補助的経済活動を行う事業所（81学校教育）"]
[null,null,null,null,null,null,"811　","幼稚園",null,null,null,null,null,null,null,null,"811　 幼稚園"]
[null,null,null,null,null,null,"812　","小学校",null,null,null,null,null,null,null,null,"812　 小学校"]
[null,null,null,null,null,null,"813　","中学校",null,null,null,null,null,null,null,null,"813　 中学校"]
[null,null,null,null,null,null,"814　","高等学校，中等教育学校",null,null,null,null,null,null,null,null,"814　 高等学校，中等教育学校"]
[null,null,null,null,null,null,"815　","特別支援学校",null,null,null,null,null,null,null,null,"815　 特別支援学校"]
[null,null,null,null,null,null,"816　","高等教育機関",null,null,null,null,null,null,null,null,"816　 高等教育機関"]
[null,null,null,null,null,null,"817　","専修学校，各種学校",null,null,null,null,null,null,null,null,"817　 専修学校，各種学校"]
[null,null,null,null,null,null,"818　","学校教育支援機関",null,null,null,null,null,null,null,null,"818　 学校教育支援機関"]
[null,null,null,null,null,null,"819　","幼保連携型認定こども園",null,null,null,null,null,null,null,null,"819　 幼保連携型認定こども園"]
[null,null,null,null,82,"その他の教育，学習支援業","820　","管理，補助的経済活動を行う事業所（82その他の教育，学習支援業）",null,null,null,null,null,null,null,{"$f":"E467&\" \"&F467","v":"82 その他の教育，学習支援業"},"820　 管理，補助的経済活動を行う事業所（82その他の教育，学習支援業）"]
[null,null,null,null,null,null,"821　","社会教育",null,null,null,null,null,null,null,null,"821　 社会教育"]
[null,null,null,null,null,null,"822　","職業・教育支援施設",null,null,null,null,null,null,null,null,"822　 職業・教育支援施設"]
[null,null,null,null,null,null,"823　","学習塾",null,null,null,null,null,null,null,null,"823　 学習塾"]
[null,null,null,null,null,null,"824　","教養・技能教授業",null,null,null,null,null,null,null,null,"824　 教養・技能教授業"]
[null,null,null,null,null,null,"829　","他に分類されない教育，学習支援業",null,null,null,null,null,null,null,null,"829　 他に分類されない教育，学習支援業"]
[null,null,"P","医療，福祉 ",83,"医療業","830　","管理，補助的経済活動を行う事業所（83医療業）",null,null,null,null,null,null,null,{"$f":"E473&\" \"&F473","v":"83 医療業"},"830　 管理，補助的経済活動を行う事業所（83医療業）"]
[null,null,null,null,null,null,"831　","病院",null,null,null,null,null,null,null,null,"831　 病院"]
[null,null,null,null,null,null,"832　","一般診療所",null,null,null,null,null,null,null,null,"832　 一般診療所"]
[null,null,null,null,null,null,"833　","歯科診療所",null,null,null,null,null,null,null,null,"833　 歯科診療所"]
[null,null,null,null,null,null,"834　","助産・看護業",null,null,null,null,null,null,null,null,"834　 助産・看護業"]
[null,null,null,null,null,null,"835　","療術業",null,null,null,null,null,null,null,null,"835　 療術業"]
[null,null,null,null,null,null,"836　","医療に附帯するサービス業",null,null,null,null,null,null,null,null,"836　 医療に附帯するサービス業"]
[null,null,null,null,84,"保健衛生","840　","管理，補助的経済活動を行う事業所（84保健衛生）",null,null,null,null,null,null,null,{"$f":"E480&\" \"&F480","v":"84 保健衛生"},"840　 管理，補助的経済活動を行う事業所（84保健衛生）"]
[null,null,null,null,null,null,"841　","保健所",null,null,null,null,null,null,null,null,"841　 保健所"]
[null,null,null,null,null,null,"842　","健康相談施設",null,null,null,null,null,null,null,null,"842　 健康相談施設"]
[null,null,null,null,null,null,"849　","その他の保健衛生",null,null,null,null,null,null,null,null,"849　 その他の保健衛生"]
[null,null,null,null,85,"社会保険・社会福祉・介護事業","850　","管理，補助的経済活動を行う事業所（85社会保険・社会福祉・介護事業）",null,null,null,null,null,null,null,{"$f":"E484&\" \"&F484","v":"85 社会保険・社会福祉・介護事業"},"850　 管理，補助的経済活動を行う事業所（85社会保険・社会福祉・介護事業）"]
[null,null,null,null,null,null,"851　","社会保険事業団体",null,null,null,null,null,null,null,null,"851　 社会保険事業団体"]
[null,null,null,null,null,null,"852　","福祉事務所",null,null,null,null,null,null,null,null,"852　 福祉事務所"]
[null,null,null,null,null,null,"853　","児童福祉事業",null,null,null,null,null,null,null,null,"853　 児童福祉事業"]
[null,null,null,null,null,null,"854　","老人福祉・介護事業",null,null,null,null,null,null,null,null,"854　 老人福祉・介護事業"]
[null,null,null,null,null,null,"855　","障害者福祉事業",null,null,null,null,null,null,null,null,"855　 障害者福祉事業"]
[null,null,null,null,null,null,"859　","その他の社会保険・社会福祉・介護事業",null,null,null,null,null,null,null,null,"859　 その他の社会保険・社会福祉・介護事業"]
[null,null,"Q","複合サービス事業",86,"郵便局","860　","管理，補助的経済活動を行う事業所（86郵便局）",null,null,null,null,null,null,null,{"$f":"E491&\" \"&F491","v":"86 郵便局"},"860　 管理，補助的経済活動を行う事業所（86郵便局）"]
[null,null,null,null,null,null,"861　","郵便局",null,null,null,null,null,null,null,null,"861　 郵便局"]
[null,null,null,null,null,null,"862　","郵便局受託業",null,null,null,null,null,null,null,null,"862　 郵便局受託業"]
[null,null,null,null,87,"協同組合（他に分類されないもの）","870　","管理，補助的経済活動を行う事業所（87協同組合）",null,null,null,null,null,null,null,{"$f":"E494&\" \"&F494","v":"87 協同組合（他に分類されないもの）"},"870　 管理，補助的経済活動を行う事業所（87協同組合）"]
[null,null,null,null,null,null,"871　","農林水産業協同組合（他に分類されないもの）",null,null,null,null,null,null,null,null,"871　 農林水産業協同組合（他に分類されないもの）"]
[null,null,null,null,null,null,"872　","事業協同組合（他に分類されないもの）",null,null,null,null,null,null,null,null,"872　 事業協同組合（他に分類されないもの）"]
[null,null,"R","サービス業（他に分類されないもの）",88,"廃棄物処理業","880　","管理，補助的経済活動を行う事業所（88廃棄物処理業）",null,null,null,null,null,null,null,{"$f":"E497&\" \"&F497","v":"88 廃棄物処理業"},"880　 管理，補助的経済活動を行う事業所（88廃棄物処理業）"]
[null,null,null,null,null,null,"881　","一般廃棄物処理業",null,null,null,null,null,null,null,null,"881　 一般廃棄物処理業"]
[null,null,null,null,null,null,"882　","産業廃棄物処理業",null,null,null,null,null,null,null,null,"882　 産業廃棄物処理業"]
[null,null,null,null,null,null,"889　","その他の廃棄物処理業",null,null,null,null,null,null,null,null,"889　 その他の廃棄物処理業"]
[null,null,null,null,89,"自動車整備業","890　","管理，補助的経済活動を行う事業所（89自動車整備業）",null,null,null,null,null,null,null,{"$f":"E501&\" \"&F501","v":"89 自動車整備業"},"890　 管理，補助的経済活動を行う事業所（89自動車整備業）"]
[null,null,null,null,null,null,"891　","自動車整備業",null,null,null,null,null,null,null,null,"891　 自動車整備業"]
[null,null,null,null,90,"機械等修理業（別掲を除く）","900　","管理，補助的経済活動を行う事業所（90機械等修理業）",null,null,null,null,null,null,null,{"$f":"E503&\" \"&F503","v":"90 機械等修理業（別掲を除く）"},"900　 管理，補助的経済活動を行う事業所（90機械等修理業）"]
[null,null,null,null,null,null,"901　","機械修理業（電気機械器具を除く）",null,null,null,null,null,null,null,null,"901　 機械修理業（電気機械器具を除く）"]
[null,null,null,null,null,null,"902　","電気機械器具修理業",null,null,null,null,null,null,null,null,"902　 電気機械器具修理業"]
[null,null,null,null,null,null,"903　","表具業",null,null,null,null,null,null,null,null,"903　 表具業"]
[null,null,null,null,null,null,"909　","その他の修理業",null,null,null,null,null,null,null,null,"909　 その他の修理業"]
[null,null,null,null,91,"職業紹介・労働者派遣業","910　","管理，補助的経済活動を行う事業所（91職業紹介・労働者派遣業）",null,null,null,null,null,null,null,{"$f":"E508&\" \"&F508","v":"91 職業紹介・労働者派遣業"},"910　 管理，補助的経済活動を行う事業所（91職業紹介・労働者派遣業）"]
[null,null,null,null,null,null,"911　","職業紹介業",null,null,null,null,null,null,null,null,"911　 職業紹介業"]
[null,null,null,null,null,null,"912　","労働者派遣業",null,null,null,null,null,null,null,null,"912　 労働者派遣業"]
[null,null,null,null,92,"その他の事業サービス業","920　","管理，補助的経済活動を行う事業所（92その他の事業サービス業）",null,null,null,null,null,null,null,{"$f":"E511&\" \"&F511","v":"92 その他の事業サービス業"},"920　 管理，補助的経済活動を行う事業所（92その他の事業サービス業）"]
[null,null,null,null,null,null,"921　","速記・ワープロ入力・複写業",null,null,null,null,null,null,null,null,"921　 速記・ワープロ入力・複写業"]
[null,null,null,null,null,null,"922　","建物サービス業",null,null,null,null,null,null,null,null,"922　 建物サービス業"]
[null,null,null,null,null,null,"923　","警備業",null,null,null,null,null,null,null,null,"923　 警備業"]
[null,null,null,null,null,null,"929　","他に分類されない事業サービス業",null,null,null,null,null,null,null,null,{"$f":"G515&\" \"&H515","v":"929　 他に分類されない事業サービス業"}]
[null,null,null,null,93,"政治・経済・文化団体","931　","経済団体",null,null,null,null,null,null,null,{"$f":"E516&\" \"&F516","v":"93 政治・経済・文化団体"},"931　 経済団体"]
[null,null,null,null,null,null,"932　","労働団体",null,null,null,null,null,null,null,null,"932　 労働団体"]
[null,null,null,null,null,null,"933　","学術・文化団体",null,null,null,null,null,null,null,null,"933　 学術・文化団体"]
[null,null,null,null,null,null,"934　","政治団体",null,null,null,null,null,null,null,null,"934　 政治団体"]
[null,null,null,null,null,null,"939　","他に分類されない非営利的団体",null,null,null,null,null,null,null,null,"939　 他に分類されない非営利的団体"]
[null,null,null,null,94,"宗教","941　","神道系宗教",null,null,null,null,null,null,null,{"$f":"E521&\" \"&F521","v":"94 宗教"},"941　 神道系宗教"]
[null,null,null,null,null,null,"942　","仏教系宗教",null,null,null,null,null,null,null,null,"942　 仏教系宗教"]
[null,null,null,null,null,null,"943　","キリスト教系宗教",null,null,null,null,null,null,null,null,"943　 キリスト教系宗教"]
[null,null,null,null,null,null,"949　","その他の宗教",null,null,null,null,null,null,null,null,"949　 その他の宗教"]
[null,null,null,null,95,"その他のサービス業","950　","管理，補助的経済活動を行う事業所（95その他のサービス業）",null,null,null,null,null,null,null,{"$f":"E525&\" \"&F525","v":"95 その他のサービス業"},"950　 管理，補助的経済活動を行う事業所（95その他のサービス業）"]
[null,null,null,null,null,null,"951　","集会場",null,null,null,null,null,null,null,null,"951　 集会場"]
[null,null,null,null,null,null,"952　","と畜場",null,null,null,null,null,null,null,null,"952　 と畜場"]
[null,null,null,null,null,null,"959　","他に分類されないサービス業",null,null,null,null,null,null,null,null,"959　 他に分類されないサービス業"]
[null,null,null,null,96,"外国公務","961　","外国公館",null,null,null,null,null,null,null,{"$f":"E529&\" \"&F529","v":"96 外国公務"},"961　 外国公館"]
[null,null,null,null,null,null,"969　","その他の外国公務",null,null,null,null,null,null,null,null,"969　 その他の外国公務"]
[null,null,"S","公務（他に分類されるものを除く） ",97,"国家公務","971　","立法機関",null,null,null,null,null,null,null,{"$f":"E531&\" \"&F531","v":"97 国家公務"},"971　 立法機関"]
[null,null,null,null,null,null,"972　","司法機関",null,null,null,null,null,null,null,null,"972　 司法機関"]
[null,null,null,null,null,null,"973　","行政機関",null,null,null,null,null,null,null,null,"973　 行政機関"]
[null,null,null,null,98,"地方公務","981　","都道府県機関",null,null,null,null,null,null,null,{"$f":"E534&\" \"&F534","v":"98 地方公務"},"981　 都道府県機関"]
[null,null,null,null,null,null,"982　","市町村機関",null,null,null,null,null,null,null,null,"982　 市町村機関"]
[null,null,"T","分類不能の産業",99,"分類不能の産業","999　","分類不能の産業",null,null,null,null,null,null,null,{"$f":"E536&\" \"&F536","v":"99 分類不能の産業"},"999　 分類不能の産業"]

{"sheet":"非表示_集計シート①","index":8,"n_rows":18,"n_cols":51,"rows_kept":18,"cut":false,"hidden":true,"merged":[[3,24,4,30],[3,2,4,3],[3,11,4,18],[3,19,4,20],[3,21,4,23],[3,4,4,10],[3,37,3,50],[3,31,3,36],[4,34,4,36],[4,37,4,38],[4,39,4,40],[4,41,4,42],[4,43,4,44],[4,45,4,46],[4,47,4,48],[4,49,4,50],[4,31,4,33]]}
[null,null,"INDIRECT用",null,null,null,null,null,null,null,"INDIRECT用",null,null,null,null,null,null,null,null,"INDIRECT用",null,null,null,null,"INDIRECT用",null,null,null,null,null,null,null,null,null,null,null,null,"INDIRECT用"]
[null,null,{"$f":"MID(CELL(\"filename\",'121支援対象者'!AK3),FIND(\"]\",CELL(\"filename\",'121支援対象者'!AK3))+1,LEN(CELL(\"filename\",'121支援対象者'!AK3)))","v":"121支援対象者"},null,null,null,null,null,null,null,{"$f":"RIGHT(CELL(\"filename\",'122CO2排出量'!AH3),LEN(CELL(\"filename\",'122CO2排出量'!AH3))-FIND(\"]\",CELL(\"filename\",'122CO2排出量'!AH3)))","v":"122CO2排出量"},"1=チェックあり","1=チェックあり","1=チェックあり","1=チェックあり","1=チェックあり","1=チェックあり","1=チェックあり",null,{"$f":"MID(CELL(\"filename\",'131支援機関'!AK3),FIND(\"]\",CELL(\"filename\",'131支援機関'!AK3))+1,LEN(CELL(\"filename\",'131支援機関'!AK3)))","v":"131支援機関"},null,null,null,null,{"$f":"MID(CELL(\"filename\",'111支援計画'!AK3),FIND(\"]\",CELL(\"filename\",'111支援計画'!AK3))+1,LEN(CELL(\"filename\",'111支援計画'!AK3)))","v":"111支援計画"},null,null,null,null,null,null,null,null,null,"1=チェックあり","1=チェックあり","1=チェックあり",{"$f":"MID(CELL(\"filename\",'132支援スケジュール'!AK3),FIND(\"]\",CELL(\"filename\",'132支援スケジュール'!AK3))+1,LEN(CELL(\"filename\",'132支援スケジュール'!AK3)))","v":"132支援スケジュール"}]
[]
[null,null,"事業者",null,"事業所",null,null,null,null,null,null,"環境指標",null,null,null,null,null,null,null,"主支援機関",null,"副／共同支援機関",null,null,"事業所の要望",null,null,null,null,null,null,"対策提案方針",null,null,null,null,null,"支援スケジュール"]
[null,null,null,null,null,null,null,null,null,null,null,null,null,null,null,null,null,null,null,null,null,null,null,null,null,null,null,null,null,null,null,"要望に基づく提案",null,null,"脱炭素化促進提案",null,null,"0.支援計画書の作成",null,"1.支援機関・事業者の打ち合わせ",null,"2.現地調査",null,"3.計測機器設置",null,"4.診断結果報告会（対策提案と実施対策の合意）",null,"5.実施計画報告会（実施計画への合意）",null,"6.請求書提出"]
[null,null,"事業者名","所在地","事業所名","所在地","中分類","小分類","参考年度","CO2排出量","エネルギー使用量（GJ換算値）","SBT／中小企業SBT","TCFD（気候関連財務情報開示タスクフォース）","RE100","RE Action","エコアクション２１","ISO14001","エコファースト","備考","支援機関名","支援責任者名","種別","支援機関名","支援責任者名","自由筆記","希望CO2削減率","設備更新補助申請希望","支援対象範囲","支援対象範囲の備考","DXシステム導入","成果物","対策の視点","対策提案方針","DX利用","ガス化または電化等の燃料転換の対策","再生可能エネルギー利用等の対策","低炭素電力への変更（排出係数：0.00037t-CO2/kWh未満・固定値）","計画日","備考","計画日","備考","計画日","備考","計画日","備考","計画日","備考","計画日","備考","計画日","備考"]
[null,null,{"$f":"IF(INDIRECT($C$2&\"!K11\")=\"\",\"★\",INDIRECT($C$2&\"!K11\"))","v":"★"},{"$f":"IF(INDIRECT($C$2&\"!K13\")=\"\",\"★\",INDIRECT($C$2&\"!K13\"))","v":"★"},{"$f":"IF(INDIRECT($C$2&\"!K28\")=\"\",\"★\",INDIRECT($C$2&\"!K28\"))","v":"★"},{"$f":"IF(INDIRECT($C$2&\"!K30\")=\"\",\"★\",INDIRECT($C$2&\"!K30\"))","v":"★"},{"$f":"IF(INDIRECT($C$2&\"!K31\")=\"\",\"★\",INDIRECT($C$2&\"!K31\"))","v":"★"},{"$f":"IF(INDIRECT($C$2&\"!K32\")=\"\",\"★\",INDIRECT($C$2&\"!K32\"))","v":"★"},{"$f":"IF(INDIRECT($C$2&\"!K35\")=\"\",\"★\",INDIRECT($C$2&\"!K35\"))","v":"令和4年度"},{"$f":"IF(INDIRECT($C$2&\"!K36\")=\"\",\"★\",INDIRECT($C$2&\"!K36\"))","v":0},{"$f":"IF(INDIRECT($K$2&\"!X30\")=\"\",\"★\",INDIRECT($K$2&\"!X30\"))","v":0},{"$f":"INDIRECT($C$2&\"!CD43\")*1","v":0},{"$f":"INDIRECT($C$2&\"!CD44\")*1","v":0},{"$f":"INDIRECT($C$2&\"!CD45\")*1","v":0},{"$f":"INDIRECT($C$2&\"!CD46\")*1","v":0},{"$f":"INDIRECT($C$2&\"!CD47\")*1","v":0},{"$f":"INDIRECT($C$2&\"!CD48\")*1","v":0},{"$f":"INDIRECT($C$2&\"!CD49\")*1","v":0},{"$f":"IF(INDIRECT($C$2&\"!C48\")=\"\",\"★\",INDIRECT($C$2&\"!C48\"))","v":"★"},{"$f":"IF(INDIRECT($T$2&\"!K10\")=\"\",\"★\",INDIRECT($T$2&\"!K10\"))","v":"★"},{"$f":"IF(INDIRECT($T$2&\"!K13\")=\"\",\"★\",INDIRECT($T$2&\"!K13\"))","v":"★"},{"$f":"IF(INDIRECT($T$2&\"!B24\")=\"\",\"★\",INDIRECT($T$2&\"!B24\"))","v":"副支援機関／共同支援機関"},{"$f":"IF(INDIRECT($T$2&\"!K26\")=\"\",\"★\",INDIRECT($T$2&\"!K26\"))","v":"★"},{"$f":"IF(INDIRECT($T$2&\"!K29\")=\"\",\"★\",INDIRECT($T$2&\"!K29\"))","v":"★"},{"$f":"IF(INDIRECT($Y$2&\"!B26\")=\"\",\"★\",INDIRECT($Y$2&\"!B26\"))","v":"★"},{"$f":"IF(INDIRECT($Y$2&\"!I32\")=\"\",\"★\",INDIRECT($Y$2&\"!I32\"))","v":"★"},{"$f":"IF(INDIRECT($Y$2&\"!I33\")=\"\",\"★\",INDIRECT($Y$2&\"!I33\"))","v":"①申請希望あり（A/B事業）"},{"$f":"IF(INDIRECT($Y$2&\"!CH34\")=\"\",\"★\",INDIRECT($Y$2&\"!CH34\"))","v":0},{"$f":"IF(INDIRECT($Y$2&\"!J35\")=\"\",\"★\",INDIRECT($Y$2&\"!J35\"))","v":"★"},{"$f":"IF(INDIRECT($Y$2&\"!CH38\")=\"\",\"★\",INDIRECT($Y$2&\"!CH38\"))","v":2},{"$f":"IF(INDIRECT($Y$2&\"!I39\")=\"\",\"★\",INDIRECT($Y$2&\"!I39\"))","v":"・算定報告書　・診断報告書　・実施計画書A/B"},{"$f":"IF(INDIRECT($Y$2&\"!B48\")=\"\",\"★\",INDIRECT($Y$2&\"!B48\"))","v":"★"},{"$f":"IF(INDIRECT($Y$2&\"!L48\")=\"\",\"★\",INDIRECT($Y$2&\"!L48\"))","v":"★"},{"$f":"IF(INDIRECT($Y$2&\"!AJ48\")=\"\",\"★\",INDIRECT($Y$2&\"!AJ48\"))","v":"★"},{"$f":"INDIRECT($Y$2&\"!CH63\")*1","v":0},{"$f":"INDIRECT($Y$2&\"!CH64\")*1","v":0},{"$f":"INDIRECT($Y$2&\"!CH65\")*1","v":0},{"$f":"IF(INDIRECT($AL$2&\"!R10\")=\"\",\"★\",INDIRECT($AL$2&\"!R10\"))","v":"★"},{"$f":"IF(INDIRECT($AL$2&\"!AB10\")=\"\",\"★\",INDIRECT($AL$2&\"!AB10\"))","v":"★"},{"$f":"IF(INDIRECT($AL$2&\"!R11\")=\"\",\"★\",INDIRECT($AL$2&\"!R11\"))","v":"★"},{"$f":"IF(INDIRECT($AL$2&\"!AB11\")=\"\",\"★\",INDIRECT($AL$2&\"!AB11\"))","v":"★"},{"$f":"IF(INDIRECT($AL$2&\"!R12\")=\"\",\"★\",INDIRECT($AL$2&\"!R12\"))","v":"★"},{"$f":"IF(INDIRECT($AL$2&\"!AB12\")=\"\",\"★\",INDIRECT($AL$2&\"!AB12\"))","v":"★"},{"$f":"IF(INDIRECT($AL$2&\"!R13\")=\"\",\"★\",INDIRECT($AL$2&\"!R13\"))","v":"★"},{"$f":"IF(INDIRECT($AL$2&\"!AB13\")=\"\",\"★\",INDIRECT($AL$2&\"!AB13\"))","v":"★"},{"$f":"IF(INDIRECT($AL$2&\"!R14\")=\"\",\"★\",INDIRECT($AL$2&\"!R14\"))","v":"★"},{"$f":"IF(INDIRECT($AL$2&\"!AB14\")=\"\",\"★\",INDIRECT($AL$2&\"!AB14\"))","v":"★"},{"$f":"IF(INDIRECT($AL$2&\"!R15\")=\"\",\"★\",INDIRECT($AL$2&\"!R15\"))","v":"★"},{"$f":"IF(INDIRECT($AL$2&\"!AB15\")=\"\",\"★\",INDIRECT($AL$2&\"!AB15\"))","v":"★"},{"$f":"IF(INDIRECT($AL$2&\"!R16\")=\"\",\"★\",INDIRECT($AL$2&\"!R16\"))","v":"★"},{"$f":"IF(INDIRECT($AL$2&\"!AB16\")=\"\",\"★\",INDIRECT($AL$2&\"!AB16\"))","v":"★"}]
[null,null,null,null,null,null,null,null,null,null,null,null,null,null,null,null,null,null,null,null,null,null,null,null,null,null,null,null,null,null,null,{"$f":"IF(INDIRECT($Y$2&\"!B50\")=\"\",\"★\",INDIRECT($Y$2&\"!B50\"))","v":"★"},{"$f":"IF(INDIRECT($Y$2&\"!L50\")=\"\",\"★\",INDIRECT($Y$2&\"!L50\"))","v":"★"},{"$f":"IF(INDIRECT($Y$2&\"!AJ50\")=\"\",\"★\",INDIRECT($Y$2&\"!AJ50\"))","v":"★"}]
[null,null,null,null,null,null,null,null,null,null,null,null,null,null,null,null,null,null,null,null,null,null,null,null,null,null,null,null,null,null,null,{"$f":"IF(INDIRECT($Y$2&\"!B52\")=\"\",\"★\",INDIRECT($Y$2&\"!B52\"))","v":"★"},{"$f":"IF(INDIRECT($Y$2&\"!L52\")=\"\",\"★\",INDIRECT($Y$2&\"!L52\"))","v":"★"},{"$f":"IF(INDIRECT($Y$2&\"!AJ52\")=\"\",\"★\",INDIRECT($Y$2&\"!AJ52\"))","v":"★"}]
[null,null,null,null,null,null,null,null,null,null,null,null,null,null,null,null,null,null,null,null,null,null,null,null,null,null,null,null,null,null,null,{"$f":"IF(INDIRECT($Y$2&\"!B54\")=\"\",\"★\",INDIRECT($Y$2&\"!B54\"))","v":"★"},{"$f":"IF(INDIRECT($Y$2&\"!L54\")=\"\",\"★\",INDIRECT($Y$2&\"!L54\"))","v":"★"},{"$f":"IF(INDIRECT($Y$2&\"!AJ54\")=\"\",\"★\",INDIRECT($Y$2&\"!AJ54\"))","v":"★"}]
[null,null,null,null,null,null,null,null,null,null,null,null,null,null,null,null,null,null,null,null,null,null,null,null,null,null,null,null,null,null,null,{"$f":"IF(INDIRECT($Y$2&\"!B56\")=\"\",\"★\",INDIRECT($Y$2&\"!B56\"))","v":"★"},{"$f":"IF(INDIRECT($Y$2&\"!L56\")=\"\",\"★\",INDIRECT($Y$2&\"!L56\"))","v":"★"},{"$f":"IF(INDIRECT($Y$2&\"!AJ56\")=\"\",\"★\",INDIRECT($Y$2&\"!AJ56\"))","v":"★"}]
[null,null,null,null,null,null,null,null,null,null,null,null,null,null,null,null,null,null,null,null,null,null,null,null,null,null,null,null,null,null,null,{"$f":"IF(INDIRECT($Y$2&\"!B58\")=\"\",\"★\",INDIRECT($Y$2&\"!B58\"))","v":"★"},{"$f":"IF(INDIRECT($Y$2&\"!L58\")=\"\",\"★\",INDIRECT($Y$2&\"!L58\"))","v":"★"},{"$f":"IF(INDIRECT($Y$2&\"!AJ58\")=\"\",\"★\",INDIRECT($Y$2&\"!AJ58\"))","v":"★"}]
[]
[]
[]
[null,null,null,null,null,null,null,null,null,null,null,null,null,null,null,null,null,null,null,null,null,null,null,null,null,null,null,"1=事業所全体",null,"1=あり"]
[null,null,null,null,null,null,null,null,null,null,null,null,null,null,null,null,null,null,null,null,null,null,null,null,null,null,null,"2=システム（単一）",null,"2=なし"]
[null,null,null,null,null,null,null,null,null,null,null,null,null,null,null,null,null,null,null,null,null,null,null,null,null,null,null,"3=システム（複数）"]

{"sheet":"非表示_集計シート②","index":9,"n_rows":36,"n_cols":10,"rows_kept":36,"cut":false,"hidden":true,"merged":[[4,6,4,9],[6,2,27,2],[28,2,35,2],[4,2,5,3],[4,4,5,4],[4,5,5,5]]}
[null,null,null,"INDIRECT用"]
[null,null,null,{"$f":"MID(CELL(\"filename\",'111支援計画'!AK3),FIND(\"]\",CELL(\"filename\",'111支援計画'!AK3))+1,LEN(CELL(\"filename\",'111支援計画'!AK3)))","v":"111支援計画"}]
[null,null,"支援計画（対象システム・設備）"]
[]
[null,null,"対象システム・設備",null,"診断\n対象","対象数","実施項目"]
[null,"INDIRECT用",null,null,null,null,"提案","計測","DX","計測予定項目"]
[null,74,"ユーティリティ・一般設備","空調システム",{"$f":"IF(INDIRECT($D$2&\"!L\"&$B7)=\"\",\"\",INDIRECT($D$2&\"!L\"&$B7))","v":""},{"$f":"IF(INDIRECT($D$2&\"!N\"&$B7)=\"\",\"\",INDIRECT($D$2&\"!N\"&$B7))","v":""},{"$f":"IF(INDIRECT($D$2&\"!P\"&$B7)=\"\",\"\",INDIRECT($D$2&\"!P\"&$B7))","v":""},{"$f":"IF(INDIRECT($D$2&\"!R\"&$B7)=\"\",\"\",INDIRECT($D$2&\"!R\"&$B7))","v":""},{"$f":"IF(INDIRECT($D$2&\"!T\"&$B7)=\"\",\"\",INDIRECT($D$2&\"!T\"&$B7))","v":""},{"$f":"IF(INDIRECT($D$2&\"!V\"&$B7)=\"\",\"\",INDIRECT($D$2&\"!V\"&$B7))","v":""}]
[null,75,null,"蒸気システム",{"$f":"IF(INDIRECT($D$2&\"!L\"&$B8)=\"\",\"\",INDIRECT($D$2&\"!L\"&$B8))","v":""},{"$f":"IF(INDIRECT($D$2&\"!N\"&$B8)=\"\",\"\",INDIRECT($D$2&\"!N\"&$B8))","v":""},{"$f":"IF(INDIRECT($D$2&\"!P\"&$B8)=\"\",\"\",INDIRECT($D$2&\"!P\"&$B8))","v":""},{"$f":"IF(INDIRECT($D$2&\"!R\"&$B8)=\"\",\"\",INDIRECT($D$2&\"!R\"&$B8))","v":""},{"$f":"IF(INDIRECT($D$2&\"!T\"&$B8)=\"\",\"\",INDIRECT($D$2&\"!T\"&$B8))","v":""},{"$f":"IF(INDIRECT($D$2&\"!V\"&$B8)=\"\",\"\",INDIRECT($D$2&\"!V\"&$B8))","v":""}]
[null,76,null,"冷却水システム","","","","","",""]
[null,77,null,"圧空システム","","","","","",""]
[null,78,null,"照明設備","","","","","",""]
[null,79,null,"受変電・配電設備","","","","","",""]
[null,80,null,"OA機器","","","","","",""]
[null,81,null,"電動機・ポンプ・ファン","","","","","",""]
[null,82,null,"工業炉","","","","","",""]
[null,83,null,"冷凍・冷蔵設備","","","","","",""]
[null,84,null,"排水処理設備",{"$f":"IF(INDIRECT($D$2&\"!L\"&$B17)=\"\",\"\",INDIRECT($D$2&\"!L\"&$B17))","v":""},"","","","",""]
[null,85,null,"昇降設備","","","","","",""]
[null,86,null,"給湯設備","","","","","",""]
[null,87,null,"発電設備","","","","","",""]
[null,88,null,"水利用設備","","","","","",""]
[null,89,null,"エネルギー管理設備","","","","","",""]
[null,90,null,{"$f":"IF(INDIRECT($D$2&\"!C\"&$B23)=\"\",\"\",INDIRECT($D$2&\"!C\"&$B23))","v":""},"","","","","",""]
[null,91,null,{"$f":"IF(INDIRECT($D$2&\"!C\"&$B24)=\"\",\"\",INDIRECT($D$2&\"!C\"&$B24))","v":""},"","","","","",""]
[null,92,null,"","","","","","",""]
[null,93,null,"","","","","","",""]
[null,94,null,"","","","","","",""]
[null,95,null,"","","","","","",""]
[null,97,"生産設備","","","","","","",""]
[null,98,null,"","","","","","",""]
[null,99,null,"","","","","","",""]
[null,100,null,"","","","","","",""]
[null,101,null,"","","","","","",""]
[null,102,null,"","","","","","",""]
[null,103,null,"","","","","","",""]
[null,104,null,"","","","","","",""]

{"sheet":"非表示_集計シート③","index":10,"n_rows":45,"n_cols":31,"rows_kept":45,"cut":false,"hidden":true,"merged":[[25,30,27,30],[25,27,27,27],[25,28,27,28],[25,29,27,29],[25,5,27,5],[25,6,26,7],[25,8,26,9],[25,10,26,11],[25,12,27,12],[25,2,27,2],[25,3,27,3],[25,13,26,13],[25,14,27,14],[25,15,26,26],[25,4,27,4]]}
[null,"INDIRECT用"]
[null,{"$f":"MID(CELL(\"filename\",'122CO2排出量'!AF3),FIND(\"]\",CELL(\"filename\",'122CO2排出量'!AF3))+1,LEN(CELL(\"filename\",'122CO2排出量'!AF3)))","v":"122CO2排出量"},"１．主要排出源"]
[]
[]
[]
[null,"INDIRECT用","主要排出源","主な活動種別","備考"]
[null,12,{"$f":"IF(INDIRECT($B$2&\"!B\"&$B7)=\"\",\"\",INDIRECT($B$2&\"!B\"&$B7))","v":""},{"$f":"IF(INDIRECT($B$2&\"!P\"&$B7)=\"\",\"\",INDIRECT($B$2&\"!P\"&$B7))","v":""},{"$f":"IF(INDIRECT($B$2&\"!U\"&$B7)=\"\",\"\",INDIRECT($B$2&\"!U\"&$B7))","v":""}]
[null,13,{"$f":"IF(INDIRECT($B$2&\"!B\"&$B8)=\"\",\"\",INDIRECT($B$2&\"!B\"&$B8))","v":""},{"$f":"IF(INDIRECT($B$2&\"!P\"&$B8)=\"\",\"\",INDIRECT($B$2&\"!P\"&$B8))","v":""},{"$f":"IF(INDIRECT($B$2&\"!U\"&$B8)=\"\",\"\",INDIRECT($B$2&\"!U\"&$B8))","v":""}]
[null,14,"","",""]
[null,15,"","",""]
[null,16,"","",""]
[null,17,"","",""]
[null,18,"","",""]
[null,19,"","",""]
[null,20,"","",""]
[null,21,"","",""]
[]
[]
[]
[]
[]
[]
[]
[null,null,null,null,null,"２．CO2排出量",null,null,null,null,null,null,null,null,null,null,null,null,null,null,null,null,null,null,null,null,null,null,null,null,"3．エネルギー使用量（GJ換算値"]
[]
[null,null,"参考年度","CO2排出量(t-CO2/年）","エネルギー使用量(GJ換算値/年）","活動種別","活動量",null,"単位発熱量",null,"CO2排出係数",null,"CO2排出量\n[t-CO2]","活動量","年度開始\n時点の\n在庫量","月別の活動量（使用量・購買量）　",null,null,null,null,null,null,null,null,null,null,null,"年度終了\n時点の\n在庫量","製品中への注入量","備考","GJ換算量"]
[]
[null,"INDIRECT用",null,null,null,null,"量","単位","係数","単位","係数","単位",null,"把握対象",null,"４月","５月","６月","７月","８月","９月","１０月","１１月","１２月","１月","２月","３月"]
[null,35,{"$f":"IF(INDIRECT($B$2&\"!I29\")=\"\",\"\",INDIRECT($B$2&\"!I29\"))","v":"令和4年度"},{"$f":"IF(INDIRECT($B$2&\"!I30\")=\"\",\"\",INDIRECT($B$2&\"!I30\"))","v":0},{"$f":"IF(INDIRECT($B$2&\"!X30\")=\"\",\"\",INDIRECT($B$2&\"!X30\"))","v":0},{"$f":"IF(INDIRECT($B$2&\"!B\"&$B29)=\"\",\"\",INDIRECT($B$2&\"!B\"&$B29))","v":""},{"$f":"IF(INDIRECT($B$2&\"!I\"&$B29)=\"\",\"\",INDIRECT($B$2&\"!I\"&$B29))","v":0},{"$f":"IF(INDIRECT($B$2&\"!N\"&$B29)=\"\",\"\",INDIRECT($B$2&\"!N\"&$B29))","v":""},{"$f":"IF(INDIRECT($B$2&\"!P\"&$B29)=\"\",\"\",INDIRECT($B$2&\"!P\"&$B29))","v":""},{"$f":"IF(INDIRECT($B$2&\"!Q\"&$B29)=\"\",\"\",INDIRECT($B$2&\"!Q\"&$B29))","v":""},{"$f":"IF(INDIRECT($B$2&\"!T\"&$B29)=\"\",\"\",INDIRECT($B$2&\"!T\"&$B29))","v":""},{"$f":"IF(INDIRECT($B$2&\"!U\"&$B29)=\"\",\"\",INDIRECT($B$2&\"!U\"&$B29))","v":""},{"$f":"IF(INDIRECT($B$2&\"!Y\"&$B29)=\"\",\"\",INDIRECT($B$2&\"!Y\"&$B29))","v":""},{"$f":"IF(INDIRECT($B$2&\"!AC\"&$B29)=\"\",\"\",INDIRECT($B$2&\"!AC\"&$B29))","v":""},{"$f":"IF(INDIRECT($B$2&\"!AG\"&$B29)=\"\",\"\",INDIRECT($B$2&\"!AG\"&$B29))","v":""},{"$f":"IF(INDIRECT($B$2&\"!AH\"&$B29)=\"\",\"\",INDIRECT($B$2&\"!AH\"&$B29))","v":""},{"$f":"IF(INDIRECT($B$2&\"!AI\"&$B29)=\"\",\"\",INDIRECT($B$2&\"!AI\"&$B29))","v":""},{"$f":"IF(INDIRECT($B$2&\"!AJ\"&$B29)=\"\",\"\",INDIRECT($B$2&\"!AJ\"&$B29))","v":""},{"$f":"IF(INDIRECT($B$2&\"!AK\"&$B29)=\"\",\"\",INDIRECT($B$2&\"!AK\"&$B29))","v":""},{"$f":"IF(INDIRECT($B$2&\"!AL\"&$B29)=\"\",\"\",INDIRECT($B$2&\"!AL\"&$B29))","v":""},{"$f":"IF(INDIRECT($B$2&\"!AM\"&$B29)=\"\",\"\",INDIRECT($B$2&\"!AM\"&$B29))","v":""},{"$f":"IF(INDIRECT($B$2&\"!AN\"&$B29)=\"\",\"\",INDIRECT($B$2&\"!AN\"&$B29))","v":""},{"$f":"IF(INDIRECT($B$2&\"!AO\"&$B29)=\"\",\"\",INDIRECT($B$2&\"!AO\"&$B29))","v":""},{"$f":"IF(INDIRECT($B$2&\"!AP\"&$B29)=\"\",\"\",INDIRECT($B$2&\"!AP\"&$B29))","v":""},{"$f":"IF(INDIRECT($B$2&\"!AQ\"&$B29)=\"\",\"\",INDIRECT($B$2&\"!AQ\"&$B29))","v":""},{"$f":"IF(INDIRECT($B$2&\"!AR\"&$B29)=\"\",\"\",INDIRECT($B$2&\"!AR\"&$B29))","v":""},{"$f":"IF(INDIRECT($B$2&\"!AS\"&$B29)=\"\",\"\",INDIRECT($B$2&\"!AS\"&$B29))","v":""},{"$f":"IF(INDIRECT($B$2&\"!AT\"&$B29)=\"\",\"\",INDIRECT($B$2&\"!AT\"&$B29))","v":""},null,{"$f":"IF(INDIRECT($B$2&\"!AV\"&$B29)=\"\",\"\",INDIRECT($B$2&\"!AV\"&$B29))","v":""},{"$f":"IF(INDIRECT($B$2&\"!DH\"&$B29)=\"\",\"\",INDIRECT($B$2&\"!DH\"&$B29))","v":"---"}]
[null,36,null,null,null,"",0,"","","","","","","","","","","","","","","","","","","","","",null,"","---"]
[null,37,null,null,null,"",0,"","","","","","","","","","","","","","","","","","","","","",null,"","---"]
[null,38,null,null,null,"",0,"","","","","","","","","","","","","","","","","","","","","",null,"","---"]
[null,39,null,null,null,"",0,"","","","","","","","","","","","","","","","","","","","","",null,"","---"]
[null,40,null,null,null,"",0,"","","","","","","","","","","","","","","","","","","","","",null,"","---"]
[null,41,null,null,null,"",0,"","","","","","","","","","","","","","","","","","","","","",null,"","---"]
[null,42,null,null,null,"",0,"","","","","","","","","","","","","","","","","","","","","",null,"","---"]
[null,43,null,null,null,"",0,"","","","","","","","","","","","","","","","","","","","","",null,"","---"]
[null,44,null,null,null,"",0,"","","","","","","","","","","","","","","","","","","","","",null,"","---"]
[null,45,null,null,null,"",0,"","","","","","","","","","","","","","","","","","","","","",null,"","---"]
[null,46,null,null,null,"",0,"","","","","","","","","","","","","","","","","","","","","",null,"","---"]
[null,47,null,null,null,"",0,"","","","","","","","","","","","","","","","","","","","","",null,"","---"]
[null,48,null,null,null,"",0,"","","","","","","","","","","","","","","","","","","","","",null,"","---"]
[null,49,null,null,null,"",0,"","","","","","","","","","","","","","","","","","","","","",null,"","---"]
[null,50,null,null,null,"",0,"","","","","","","","","","","","","","","","","","","","","",null,"","---"]
[null,51,null,null,null,"",0,"","","","","","","","","","","","","","","","","","","","","",null,"","---"]